Workbook

Sheet Index
B1: Massachusetts Department of Elementary and Secondary Education
B2: FY16 Charter School End of Year Financial Report Summary
B3: Last Updated: May 2017
B5: Data Context
B6: This data was collected via the FY2016 Charter School End of Year Financial Report (16CSEOYFR) as well as SIMS and EPIMS databases.
B8: Technical Tips
B9: We recommend that you save this workbook to your computer before proceeding, then leave this browser, and open the workbook using EXCEL or My Computer. If you get a "macros not enabled" or similar macro security error message, access the various sheets manually using the tabs at the bottom of the screen. To enable macros, use the "Tools\Macro\Security" commands to re-set the macro security level to "low". Then save the file, file close, and re-open the file.
B11: Instructions for Viewing Data
B12: Use the drop-down menu to select a charter school that was operating in FY16 or a statewide charter summary total (location in FY16 in parenthesis) [Type of charter school in brackets: C = Commonwealth, HM = Horace Mann]. The charter school's location in FY16 is provided in parenthesis. Then use any of the three links below (or click the corresponding worksheet) to view specific financial data.
C15: =VLOOKUP(E15, CSORDER, 2, FALSE) ->  | D15: =VLOOKUP(E15, CSORDER, 3, FALSE) ->  | E15: 1
B18: 1. Statement of Net Position
B19: 2. Statement of Revenues, Expenses and Change in Net Position
B20: 3. Schedule of Functional Expenses
B22: In addition, statewide summary data is available for the following:
B23: 4. Expenditures Per Pupil
B24: 5. Average Teacher Salaries
B26: For researchers, the following raw data sets are available:
B27: BAL16_raw (Balance Sheet Data)
B28: INC16_raw (Income Statement Data)
B29: FE16_raw (Schedule of Functional Expenses Data)
B30: FTE_raw (Student FTE Enrollment Data)
B31: EPIMS16_raw (Teacher FTE Enrollment Data)

Sheet 1. Statement of Net Position
A1: NAME: | B1: =SCHOOLNAME ->  | F1: LEA | G1: =LEA -> 
A3: Statement of Net Position
A4: For the Year Ended June 30, 2016
F6: =B1 ->  | G6: ABC Charter School Foundation (Component Unit) | H6: 2015 Total (Memorandum Only) | J6: Line | K6: Rec. Acct#
C7: ASSETS
C8: Current Assets
A9: 1 | C9: Cash and Cash Equivalents | D9: Assets that are cash or can be converted into cash immediately. | F9: =VLOOKUP($G$1&$A9, BAL, 6,FALSE) ->  | G9: =VLOOKUP($G$1&$A9, BAL, 7,FALSE) ->  | H9: =VLOOKUP($G$1&$A9, BAL, 8,FALSE) ->  | J9: =A9 -> 1 | K9: 10XX
A10: 2 | C10: Accounts Receivable net of doubtful accounts | D10: A school's claim for money, goods and services from customers and other entities. | J10: 2 | K10: 11XX
A11: 3 | C11: Grants Receivable - State | D11: Claims for goods and services provided under state awarded contracts. | J11: 3 | K11: 11XX
A12: 4 | C12: Grants Receivable - Federal | D12: Claims for goods and services provided under federal awarded contracts. | J12: 4 | K12: 11XX
A13: 5 | C13: Grants Receivable - Private | D13: Claims for goods and services provided from private awards received. | J13: 5 | K13: 11XX
A14: 6 | C14: Contributions Receivable | D14: Unconditional promises to give by private individuals or corporations. | J14: 6 | K14: 11XX
A15: 7 | C15: Due from related parties | D15: Amounts to be received from related parties. | J15: 7 | K15: 12XX
A16: 8 | C16: Prepaid Expenses / Inventory | D16: An expense paid but not incurred as of year end. Also include short-term inventories of supplies such as uniforms. | J16: 8 | K16: 13XX
A17: 9 | C17: Short-Term Investments | D17: Readily marketable security for which the intention of the school is the conversion to cash in the short term. | J17: 9 | K17: 14XX
A18: 10 | C18: Deposit (Security, Other) | D18: Security deposits for leases, or other deposits. | J18: 10 | K18: 15XX
A19: 11 | C19: Restricted Current Assets | D19: Current assets restricted by external sources for future purchases. | J19: 11 | K19: 15XX
A20: 12 | C20: TOTAL CURRENT ASSETS | D20: Calculates automatically. | J20: 12 | K20: NA
C21: Noncurrent Assets
C22: Capital Assets
A23: 13 | C23: - Land and Buildings | D23: Value of land and building inclusive of remodeling, reconditioning, or altering the building purchased to make it available for the purpose for which it was acquired, including construction in progress. | F23: =VLOOKUP($G$1&$A23, BAL, 6,FALSE) ->  | G23: =VLOOKUP($G$1&$A23, BAL, 7,FALSE) ->  | H23: =VLOOKUP($G$1&$A23, BAL, 8,FALSE) ->  | J23: =A23 -> 13 | K23: 15XX
A24: 14 | C24: - Building/Leasehold Improvement | D24: Value of improvements on leased property that revert back to the owners upon termination of the lease. | J24: 14 | K24: 15XX
A25: 15 | C25: - Furniture and Equipment | D25: Value of furniture and equipment that meet the school's capitalization policy. | J25: 15 | K25: 15XX
A26: 16 | C26: - Less Accumulated Depreciation | D26: The aggregate, at a given point in time, of the depreciation charges made during the useful life of the fixed asset. Enter as a negative number. | J26: 16 | K26: 16XX
A27: 17 | C27: Net Capital Assets | D27: Calculates automatically. | J27: 17 | K27: NA
A28: 18 | C28: Restricted Noncurrent Assets | D28: Noncurrent assets restricted by external sources for future purchases. | J28: 18 | K28: 10XX
A29: 19 | C29: Long-Term Investments | D29: Investments that do not meet the criteria of "Short-Term Investments" above. | J29: 19 | K29: 14XX
A30: 20 | C30: Building Acquisition / Financing Costs / Deferred Expenses | D30: Costs related to building acquisition, construction, and/or financing costs which are amortized. Also include long-term pre-paid leases or expenses which are amortized. | J30: 20 | K30: 14XX
A31: 21 | C31: Long-Term Grants / Contributions Receivable | D31: Please enter a brief description in the highlighted green cell, if applicable. | J31: 21 | K31: 14XX
A32: 22 | C32: TOTAL NONCURRENT ASSETS | D32: Calculates automatically. | J32: 22 | K32: NA
A33: 23 | C33: TOTAL ASSETS | D33: Calculates automatically. | J33: 23 | K33: NA
C35: LIABILITIES AND NET ASSETS
C36: Current Liabilities
A37: 24 | C37: Accounts Payable | D37: Obligations for goods or services purchased for which invoices have been received. | F37: =VLOOKUP($G$1&$A37, BAL, 6,FALSE) ->  | G37: =VLOOKUP($G$1&$A37, BAL, 7,FALSE) ->  | H37: =VLOOKUP($G$1&$A37, BAL, 8,FALSE) ->  | J37: =A37 -> 24 | K37: 20XX
A38: 25 | C38: Accrued Expenses / Accrued Payroll | D38: An unpaid expense incurred that has not been paid as of the end of the period, including accrued payroll. | J38: 25 | K38: 21XX
A39: 26 | C39: Deferred Revenue | D39: Cash received for services not performed (i.e., grant funds received that were not expended). | J39: 26 | K39: 22XX
A40: 27 | C40: Due to related parties | D40: Amounts due to related parties such as the school's component unit. | J40: 27 | K40: 23XX
A41: 28 | C41: Current Debt Payable | D41: Debt obligations due within one year of financial statement date. | J41: 28 | K41: 24XX
A42: 29 | C42: Current Lease Obligations Payable | D42: Lease obligations due within one year of financial statement date. | J42: 29 | K42: 24XX
A43: 30 | C43: TOTAL CURRENT LIABILITIES | D43: Calculates automatically. | J43: 30 | K43: NA
C44: Noncurrent Liabilities
A45: 31 | C45: Noncurrent Lease Obligations | D45: Lease obligations due after one year of financial statement date. | F45: =VLOOKUP($G$1&$A45, BAL, 6,FALSE) ->  | G45: =VLOOKUP($G$1&$A45, BAL, 7,FALSE) ->  | H45: =VLOOKUP($G$1&$A45, BAL, 8,FALSE) ->  | J45: =A45 -> 31 | K45: 26XX
A46: 32 | C46: Long-Term Debt | D46: Debt obligations due after one year of financial statement date. | F46: =VLOOKUP($G$1&$A46, BAL, 6,FALSE) ->  | G46: =VLOOKUP($G$1&$A46, BAL, 7,FALSE) ->  | H46: =VLOOKUP($G$1&$A46, BAL, 8,FALSE) ->  | J46: =A46 -> 32 | K46: 26XX
A47: 33 | C47: Deferred Revenue | D47: Cash received for services not performed (i.e., grant funds received that were not expended). | F47: =VLOOKUP($G$1&$A47, BAL, 6,FALSE) ->  | G47: =VLOOKUP($G$1&$A47, BAL, 7,FALSE) ->  | H47: =VLOOKUP($G$1&$A47, BAL, 8,FALSE) ->  | J47: =A47 -> 33 | K47: 2XXX
A48: 34 | C48: TOTAL NONCURRENT LIABILITIES | D48: Calculates automatically. | F48: =VLOOKUP($G$1&$A48, BAL, 6,FALSE) ->  | G48: =VLOOKUP($G$1&$A48, BAL, 7,FALSE) ->  | H48: =VLOOKUP($G$1&$A48, BAL, 8,FALSE) ->  | J48: =A48 -> 34 | K48: NA
A49: 35 | C49: TOTAL LIABILITIES | D49: Calculates automatically. | F49: =VLOOKUP($G$1&$A49, BAL, 6,FALSE) ->  | G49: =VLOOKUP($G$1&$A49, BAL, 7,FALSE) ->  | H49: =VLOOKUP($G$1&$A49, BAL, 8,FALSE) ->  | J49: =A49 -> 35 | K49: NA
C51: NET ASSETS
A52: 36 | C52: Investment in capital assets (net of related debt) | D52: Represents capital assets reduced by accumulated depreciation and any outstanding debt used to acquire, construct or improve those assets. | F52: =VLOOKUP($G$1&$A52, BAL, 6,FALSE) ->  | G52: =VLOOKUP($G$1&$A52, BAL, 7,FALSE) ->  | H52: =VLOOKUP($G$1&$A52, BAL, 8,FALSE) ->  | J52: =A52 -> 36 | K52: 3XXX
A53: 37 | C53: Temporarily Restricted | D53: Net assets that are temporarily restricted by a funder or the school's Board for a specific purpose. | J53: 37 | K53: 32XX
A54: 38 | C54: Permanently Restricted | D54: Net assets that are restricted by an outside agency or person, as contrasted with assets over which the entity has control and discretion. E.g., a donor scholarship fund. | J54: 38 | K54: 33XX
A55: 39 | C55: Unrestricted (non-capital) | D55: Net assets that do not meet the definitions of any of the above categories. | J55: 39 | K55: 30XX
A56: 40 | C56: TOTAL NET ASSETS | D56: Calculates automatically. | J56: 40 | K56: NA
A57: 41 | C57: TOTAL LIABILITIES AND NET ASSETS | D57: Calculates automatically. MUST RECONCILE WITH LINE 23 (TOTAL ASSETS) | J57: 41 | K57: NA

Sheet 2. Stmt Rev, Exp and Change
B1: NAME: | C1: =SCHOOLNAME ->  | F1: LEA | G1: =LEA ->  | M1: =3 -> 3
A3: Statement of Revenues, Expenses and Change in Net Position
A4: For the Year Ended June 30, 2016
D6: Restricted – The use of these funds are restricted to a particular purpose or project. Unrestricted – These use of these funds are unrestricted and came be used toward any purpose. | F6: =C1 ->  | G6: ABC Charter School Foundation (Component Unit) | H6: 2015 Total (Memorandum Only) | J6: Line | K6: Rec. Acct#
C7: REVENUES
A8: 1 | C8: Tuition | D8: Total tuition paid to the charter school by either the Commonwealth or sending school district (Horace Mann), inclusive of local transportation and facilities reimbursement embedded in Commonwealth tuition payments. This should include any reimbursements received for local transportation reimbursement, if applicable. | F8: =VLOOKUP($G$1&$A8, INC, 6,FALSE) ->  | H8: =VLOOKUP($G$1&$A8, INC, 8,FALSE) ->  | J8: =A8 -> 1 | K8: 4000
A9: 2a | B9: ^ | C9: Grants - State - passed through ESE | D9: Grants awarded through the ESE. | G9: =VLOOKUP($G$1&$A9, INC, 7,FALSE) ->  | J9: 2a | K9: 41XX
A10: 2b | B10: ^ | C10: Grants - State - other non-ESE pass-through | D10: Grants awarded directly by the Commonwealth of MA. | J10: 2b | K10: 41XX
A11: 3 | B11: ^ | C11: Grants - Federal - Passed through ESE | D11: Grants from federal sources that pass through ESE such as Title I, IDEA, Charter School Start-Up Assistance, etc. | J11: 3 | K11: 41XX
A12: 4 | B12: ^ | C12: Grants - Federal - Direct or other pass-through | D12: Grants from federal sources awarded directly from federal agencies or passed-through other agencies. | J12: 4 | K12: 41XX
A13: 5a | B13: ^ | C13: Grants - Private (restricted) | D13: Grants awarded by private (non-governmental) foundations, corporations, or individuals that are restricted. | J13: 5a | K13: 41XX
A14: 5b | C14: Grants - Private (unrestricted) | D14: Grants awarded by private (non-governmental) foundations, corporations, or individuals that are unrestricted. | J14: 5b | K14: 41XX
A15: 6 | B15: ^ | C15: Nutrition Funding - State | D15: Funding for nutrition programs is split between the federal and state governments. | J15: 6 | K15: 42XX
A16: 7 | B16: ^ | C16: Nutrition Funding - Federal | D16: Funding for nutrition programs is split between the federal and state governments. | J16: 7 | K16: 42XX
A17: 8 | C17: Nutrition Funding - Fees | D17: Fees collected from students for nutrition programs. | J17: 8 | K17: 42XX
A18: 9 | C18: Other Program / Student Activity Fees | D18: Any fees that the school collects for transportation, uniforms, etc. | G18: =VLOOKUP($G$1&$A18, INC, 7,FALSE) ->  | J18: 9 | K18: 43XX
A19: 10 | C19: Regional Transportation Aid | D19: Reimbursements from the Commonwealth for regional transportation costs, if applicable. | J19: 10 | K19: 45XX
A20: 11 | C20: Medicaid Reimbursements | D20: Reimbursement from Medicaid | J20: 11 | K20: 45XX
A21: 12 | C21: Circuit Breaker Reimbursements | D21: Reimbursements from the Commonwealth for high-cost special education students, if applicable. | J21: 12 | K21: 45XX
A22: 13a | C22: Contributions, in-kind, host district | D22: Recorded monetary value of in-kind donations for services that would otherwise have been purchased, provided by the school's host district (e.g. transportation, food). | J22: 13a | K22: 44XX
A23: 13b | C23: Contributions, in-kind, other | D23: Recorded monetary value of in-kind donations for services that would otherwise have been purchased, provided by individuals/organizations other than the host district. | G23: =VLOOKUP($G$1&$A23, INC, 7,FALSE) ->  | J23: 13b | K23: 44XX
A24: 14 | C24: Contributions, from Component Unit (restricted) | D24: Restricted contributions made to the School by the Component Unit | J24: 14 | K24: 44XX
A25: 14b | C25: Contributions, from Component Unit (unrestricted) | D25: Unrestricted contributions made to the School by the Component Unit | J25: 14b | K25: 44XX
A26: 15 | C26: Contributions / Fundraising (restricted) | D26: Restricted donations from individuals, businesses, or corporations. | J26: 15 | K26: 44XX
A27: 15b | C27: Contributions / Fundraising (unrestricted) | D27: Unrestricted donations from individuals, businesses, or corporations. | J27: 15b | K27: 44XX
A28: 16 | C28: Interest / Investment Income (restricted) | D28: Restricted income generated from interest/investments. | J28: 16 | K28: 47XX
A29: 16a | C29: Interest / Investment Income (unrestricted) | D29: Unrestricted income generated from interest/investments. | J29: 16b | K29: 47XX
A30: 17 | C30: Rental Income | D30: Income generated from rental of space. | J30: =A30 -> 17 | K30: 46XX
A31: 18 | C31: Loan Forgiveness or Other Reimbursement | D31: Revenue recorded for loan forgiveness or other credit. | J31: =A31 -> 18 | K31: 4XXX
A32: 19 | C32: Miscellaneous Income | D32: Miscellaneous Income. | J32: =A32 -> 19 | K32: 4XXX
A33: 20 | C33: TOTAL REVENUES | D33: Calculates automatically. | J33: =A33 -> 20 | K33: NA
B34: ^ | C34: Non-"General Fund" revenue sources
C36: EXPENSES
A37: 21 | C37: Administration | D37: Charter School figures will be populated from the Sch_FuncExp sheet. | F37: =VLOOKUP($G$1&$A37, INC, 6,FALSE) ->  | H37: =VLOOKUP($G$1&$A37, INC, 8,FALSE) ->  | J37: =A37 -> 21 | K37: NA
A38: 22 | C38: Instructional Services | D38: Charter School figures will be populated from the Sch_FuncExp sheet. | J38: 22 | K38: NA
A39: 23 | C39: Pupil Services | D39: Charter School figures will be populated from the Sch_FuncExp sheet. | J39: 23 | K39: NA
A40: 24 | C40: Operation & Maintenance of Plant | D40: Charter School figures will be populated from the Sch_FuncExp sheet. | J40: 24 | K40: NA
A41: 25 | C41: Fixed Charges | D41: Charter School figures will be populated from the Sch_FuncExp sheet. | J41: 25 | K41: NA
A42: 26 | C42: Community Services | D42: Charter School figures will be populated from the Sch_FuncExp sheet. | J42: 26 | K42: NA
A43: 27 | C43: Non-Operating Financing Expenses | D43: Charter School figures will be populated from the Sch_FuncExp sheet. | J43: 27 | K43: NA
A44: 28 | C44: Component Unit Expenses | D44: Aggregate operating expenses for the Component Unit. | G44: =VLOOKUP($G$1&$A44, INC, 7,FALSE) ->  | J44: 28 | K44: NA
A45: 29 | C45: Contributions to School | D45: Contributions made by the Component Unit to the School | G45: =VLOOKUP($G$1&$A45, INC, 7,FALSE) ->  | J45: 29 | K45: NA
A46: 30 | C46: TOTAL EXPENSES | D46: Calculates automatically. | F46: =VLOOKUP($G$1&$A46, INC, 6,FALSE) ->  | G46: =VLOOKUP($G$1&$A46, INC, 7,FALSE) ->  | J46: 30 | K46: NA
A48: 31 | C48: TOTAL GAIN/(LOSS) | D48: Calculates automatically. | F48: =VLOOKUP($G$1&$A48, INC, 6,FALSE) ->  | G48: =VLOOKUP($G$1&$A48, INC, 7,FALSE) ->  | H48: =VLOOKUP($G$1&$A48, INC, 8,FALSE) ->  | J48: =A48 -> 31 | K48: NA
A49: 32 | C49: Gain/Loss on Sale of Asset or Lease Transaction | D49: Gain/Loss recorded on sale of school assets or lease transaction. | F49: =VLOOKUP($G$1&$A49, INC, 6,FALSE) ->  | G49: =VLOOKUP($G$1&$A49, INC, 7,FALSE) ->  | H49: =VLOOKUP($G$1&$A49, INC, 8,FALSE) ->  | J49: =A49 -> 32 | K49: 5XXX
A50: 33 | C50: Other Gain/Loss | D50: Other Gain or Loss that is a non-recurring, unusual occurrence such as a prior-period adjustment | F50: =VLOOKUP($G$1&$A50, INC, 6,FALSE) ->  | G50: =VLOOKUP($G$1&$A50, INC, 7,FALSE) ->  | H50: =VLOOKUP($G$1&$A50, INC, 8,FALSE) ->  | J50: =A50 -> 33 | K50: 5XXX
A51: 34 | C51: TOTAL CHANGES IN NET ASSETS: | D51: Calculates automatically. | F51: =VLOOKUP($G$1&$A51, INC, 6,FALSE) ->  | G51: =VLOOKUP($G$1&$A51, INC, 7,FALSE) ->  | H51: =VLOOKUP($G$1&$A51, INC, 8,FALSE) ->  | J51: =A51 -> 34 | K51: NA
A53: 35 | C53: NET ASSETS AT BEGINNING OF YEAR | D53: Please enter values from previous year's audit. | F53: =VLOOKUP($G$1&$A53, INC, 6,FALSE) ->  | G53: =VLOOKUP($G$1&$A53, INC, 7,FALSE) ->  | H53: =VLOOKUP($G$1&$A53, INC, 8,FALSE) ->  | J53: =A53 -> 35 | K53: NA
A54: 36 | C54: NET ASSETS AT END OF YEAR | D54: Calculates automatically. MUST RECONCILE WITH BALANCE SHEET LINE 40 (TOTAL NET ASSETS) | F54: =VLOOKUP($G$1&$A54, INC, 6,FALSE) ->  | G54: =VLOOKUP($G$1&$A54, INC, 7,FALSE) ->  | H54: =VLOOKUP($G$1&$A54, INC, 8,FALSE) ->  | J54: =A54 -> 36 | K54: NA
F55: 0 | G55: 0 | H55: 0

Sheet 3. Schedule of Func Exp
B1: NAME: | C1: =SCHOOLNAME ->  | H1: =LEA -> 
A3: Schedule of Functional Expenses
A4: For the Year Ended June 30, 2016
F5: "General" Fund
F6: 1 | G6: 2 | H6: 3 | I6: 4 | J6: 5 | K6: 6 | L6: 7
F7: General Education | G7: Special Education | H7: Undistributed | I7: State Grants & Nut. Reimb. | J7: Federal Grants & Nut. Reimb. | K7: Private Grants (Designated) | L7: TOTAL | O7: Rec. | Q7: Crosswalk to EOYR, if possible
A8: Line | C8: Functional Category | D8: For salaried personnel, please provide a full-time equivalency (FTE) total that corresponds to the salary expense reported. | F8: Expenses | G8: Expenses | H8: Expenses | I8: Expenses | J8: Expenses | K8: Expenses | L8: Expenses | N8: Line | O8: Acct# | S8: Defintions
A10: 100 | C10: Administration | D10: =C10&" - Calculates automatically." -> Administration - Calculates automatically. | H10: =VLOOKUP($H$1&$A10, FE, 8,FALSE) ->  | I10: =VLOOKUP($H$1&$A10, FE, 9,FALSE) ->  | J10: =VLOOKUP($H$1&$A10, FE, 10,FALSE) ->  | K10: =VLOOKUP($H$1&$A10, FE, 11,FALSE) ->  | L10: =VLOOKUP($H$1&$A10, FE, 12,FALSE) ->  | N10: =A10 -> 100 | O10: NA | Q10: 1000 series | S10: 1 | T10: General Education | U10: Expenditures from "operating" revenues recognized on all lines except 2 - 5a and 6 - 7 of the Income Statement for General Education programs (defined as non-special education programs). These expenditures should include English Language Learner programs, required summer school, and extended programs.
A11: 110 | C11: Subtotal - Board of Trustees | D11: Calculates automatically | H11: =VLOOKUP($H$1&$A11, FE, 8,FALSE) ->  | N11: 110 | O11: NA | Q11: 1100 | S11: 2 | T11: Special Education | U11: Expenditures from "operating" revenues recognized on all lines except 2 - 5a and 6 - 7 of the Income Statement for Special Education, defined as programs for instruction of students with special needs, provided for under MGL Ch. 71B and 603 CMR 28.00. Note that all special education expenditures by charter schools will be for "in-district" students, as the fiscal responsibility of any special needs student currently enrolled in or determined to require a private day or residential school shall remain with the school district where the student resides per MGL Chapter 71 Section 89(s).
A12: 111 | C12: Contracted Services | D12: Contracted professional services, including all related expenses covered by the contract. (Ex: board training consultant, facilitator for board retreat, board attorney) | N12: 111 | O12: 53X1 | Q12: 1100 | S12: 3 | T12: Undistributed | U12: Expenditures that cannot be assigned to either General Education and Special Education program areas from "operating" revenues recognized on all lines except 2 - 5a and 6 - 7 of the Income Statement.
A13: 112 | C13: Travel and other expenses | D13: Travel and other expenses for board members such as dues, subscriptions and memberships. (Ex: board member travels to charter school conference, dues for board-specific professional association) | N13: 112 | O13: 57X1 | Q13: 1100 | S13: 4 | T13: State Grants & Funding | U13: Expenditures from state revenue sources recognized in Line 2 and 6 of the Income Statement. Amounts here should reconcile with final expenditure reports for state grants filed with ESE.
A14: 120 | C14: Subtotal - School Leaders | D14: Calculates automatically | N14: 120 | O14: NA | Q14: 1210, 1220 | S14: 5 | T14: Federal Grants & Funding | U14: Expenditures from federal revenue sources recognized in Line 3, 4, and 7 of the Income Statement. Amounts here should reconcile with final expenditure reports for state and federal grants filed with ESE.
A15: 121 | C15: Salaries - Professional | D15: Salaries for non-instructional school-wide administrative personnel (Ex: executive director). Principals and Instructional Leaders should be noted in Instructional Services. If role is instructional and administrative, split accordingly. | N15: 121 | O15: 5XX1 | Q15: 1210, 1220 | S15: 6 | T15: Private Grants (Restricted) | U15: Expenditures from restricted private grants for operating expenses listed in the Income Statement as line 5a. Note that all other private donations/contributions should be captured in the "general fund" columns.
A16: 122 | C16: Contracted Services | D16: Contracted professional services, including all related expenses covered by the contract. (Ex: interim school leader) | N16: 122 | O16: 53X1 | Q16: 1210, 1220
A17: 130 | C17: Subtotal - Business and Finance | D17: Calculates automatically | N17: 130 | O17: NA | Q17: 1410
A18: 131 | C18: Salaries - Professional | D18: Salaries for non-instructional school-wide administrative personnel. (Ex: business manager, accountant, chief financial officer) | N18: 131 | O18: 5XX1 | Q18: 1410
A19: 132 | C19: Contracted Services | D19: Contracted professional services, including all related expenses covered by the contract. (Ex: contracted accounting/book keeping firm, auditor) | N19: 132 | O19: 53X1 | Q19: 1410
A20: 140 | C20: Subtotal - Human Resources | D20: Calculates automatically | N20: 140 | O20: NA | Q20: 1420
A21: 141 | C21: Salaries - Professional | D21: Salaries for non-instructional school-wide administrative personnel. (Ex: HR director, Staff Recruitment) | N21: 141 | O21: 5XX1 | Q21: 1420
A22: 142 | C22: Contracted Services | D22: Contracted professional services, including all related expenses covered by the contract. (Ex: contracted HR company, payroll company) | N22: 142 | O22: 53X1 | Q22: 1420
A23: 150 | C23: Subtotal - Legal Services | D23: Calculates automatically | N23: 150 | O23: NA | Q23: 1430, 1435
A24: 151 | C24: Salaries - Professional | D24: Salaries for non-instructional school-wide administrative personnel. (Ex. school attorney) | N24: 151 | O24: 5XX1 | Q24: 1430, 1435
A25: 152 | C25: Contracted Services | D25: Contracted professional services, including all related expenses covered by the contract. (Ex: contracted attorney) | N25: 152 | O25: 53X1 | Q25: 1430, 1435
A26: 160 | C26: Subtotal - Info. Management & Technology | D26: Calculates automatically | N26: 160 | O26: NA | Q26: 1450
A27: 161 | C27: Salaries - Professional | D27: Salaries for non-instructional school-wide administrative personnel. (Ex: network support technician, Enrollment Director/Registrar, SIMS administrator) | N27: 161 | O27: 5XX1 | Q27: 1450
A28: 162 | C28: Contracted Services | D28: Contracted professional services, including all related expenses covered by the contract. (Ex: contracted IT professional) | N28: 162 | O28: 53X1 | Q28: 1450
A29: 163 | C29: Supplies and Materials | D29: Materials and items of an expendable nature. Unit price of less than $5000. (Ex: non-instructional computers, non-instructional software such accounting software) | N29: 163 | O29: 54X1 | Q29: 1230
A30: 164 | C30: Depreciation for Information Technology | D30: Annual depreciation expense for capitalized Information Management and Technology. | N30: 164 | O30: 5701 | Q30: 1450
A31: 170 | C31: Subtotal - Development (Private) | D31: Calculates automatically | N31: 170 | O31: NA | Q31: 1230
A32: 170a | C32: Salaries - Professional - Private | D32: Salaries apportioned to private development personnel (this could be % of a salary). (Ex: grant writer) | N32: 170a | O32: 5XX1 | Q32: 1230
A33: 170b | C33: Contracted Services - Private | D33: Contracts apportioned to professional services for private development (including all related expenses covered by the contract). (Ex: contracted fundraiser, contracted grant writer) | N33: 170b | O33: 53X1 | Q33: 1230??
A34: 170c | C34: Fundraising - Private | D34: Expenses related to private fundraising. (Ex: invitations to fundraiser, fundraising software, space rental for fundraising event) | N34: 170c | O34: 5891
A35: 171 | C35: Subtotal - Development (Public) | D35: Calculates automatically | N35: 171 | O35: NA
A36: 171a | C36: Salaries - Professional - Public | D36: Salaries apportioned to public development personnel (this could be a % of a salary). (Ex: grant writer) | N36: 171a | O36: 5XX1
A37: 171b | C37: Contracted Services - Public | D37: Contracts apportioned to professional services for public development (including all related expenses covered by the contract). (Ex: contracted grant writer) | N37: 171b | O37: 53X1
A38: 180 | C38: Subtotal - Other Administration | D38: Calculates automatically | N38: 180 | O38: NA | Q38: 1230
A39: 181 | C39: Salaries | D39: Salaries for student recruitment personnel and administrative support personnel who prepare, transcribe, systematize or preserve communications, records and transactions. (Ex: registrar, office secretary) | N39: 181 | O39: 5XX1 | Q39: 1230
A40: 182 | C40: Contracted Services | D40: Contracts for student recruitment personnel and administrative support personnel who prepare, transcribe, systematize or preserve communications, records and transactions. (Ex: registrar, office secretary) | N40: 182
A41: 183 | C41: Recruitment/Advertising | D41: Recruiting/advertising for students, staff, and board members. (Ex: brochures for open house) | N41: =A41 -> 183 | O41: 58X1 | Q41: 1230??
A42: 184 | C42: Travel, Dues, and other expenses | D42: Travel and other expenses for non-instructional staff and the school such as dues, subscriptions and memberships. (Ex: IT director attends IT conference, business manager attends finance conference) | N42: 184 | O42: 57X1 | Q42: 1230
A43: 185 | C43: Supplies and Materials | D43: Materials and items of an expendable nature. Unit price of less than $5000. (Ex: office furniture, office supplies) | L43: =SUM(F43,G43,H43,I43,J43,K43) ->  | N43: 185 | O43: 54X1 | Q43: 1230
A45: 200 | C45: Instructional Services | D45: Calculates automatically | F45: =VLOOKUP($H$1&$A45, FE, 6,FALSE) ->  | G45: =VLOOKUP($H$1&$A45, FE, 7,FALSE) ->  | H45: =VLOOKUP($H$1&$A45, FE, 8,FALSE) ->  | I45: =VLOOKUP($H$1&$A45, FE, 9,FALSE) ->  | J45: =VLOOKUP($H$1&$A45, FE, 10,FALSE) ->  | K45: =VLOOKUP($H$1&$A45, FE, 11,FALSE) ->  | L45: =VLOOKUP($H$1&$A45, FE, 12,FALSE) ->  | N45: =A45 -> 200 | O45: NA | Q45: 2000 series
A46: 210 | C46: Subtotal - Instructional Leadership | D46: Calculates automatically | N46: 210 | O46: NA | Q46: 2100s, 2200s, 2315
A47: 211 | C47: Salaries - Professional | D47: Salaries for instructional personnel in leadership roles. (Ex: Principal/Asst. Principals (undistributed), Curriculum Directors (including SPED), Department Heads, Technology/Instructional Coordinators, Team Leaders) | N47: 211 | O47: 5XX2 | Q47: 2110, 2120, 2210, 2220, 2250, 2315
A48: 212 | C48: Salaries - Clerical | D48: Salaries for administrative support personnel who prepare, transcribe, systematize or preserve communications, records and transactions. (Ex: secretary) | N48: 212 | O48: 5XX2 | Q48: 2110, 2120, 2210, 2220, 2250, 2315
A49: 213 | C49: Contracted Services | D49: Contracted professional services, including all related expenses covered by the contract. (Ex: contracted instructional consultant) | N49: 213 | O49: 53X2 | Q49: 2110, 2120, 2210, 2220, 2250, 2315
A50: 214 | C50: Supplies and Materials | D50: Materials and items of an expendable nature. Unit price of less than $5000. (Ex: white boards, instructional computers) | N50: 214 | O50: 54X2 | Q50: 2110, 2120, 2210, 2220, 2250, 2315
A51: 215 | C51: Travel and other expenses | D51: Travel and other expenses for staff such as dues, subscriptions and memberships. (Ex: teaching seminar) | N51: 215 | O51: 57X2 | Q51: 2110, 2120, 2210, 2220, 2250, 2315
A52: 220 | C52: Subtotal - Classroom and Specialist Teachers | D52: Calculates automatically | N52: 220 | O52: NA | Q52: 2300
A53: 221 | C53: Salaries - Teachers, Classroom | D53: Salaries for teachers with primary responsibility for teaching designated curriculum to established "classes" of students in a group instruction setting. Also includes itinerant music, art, health, physical education teachers who travel from classroom-to-classroom. Teacher EPIMS codes: 2305 - Teacher, 2306 - Co Teacher, 2307 - Virtual Teacher, 2308 - Virtual Teacher – Co Teacher | N53: 221 | O53: 5XX2 | Q53: 2305
A54: 222 | C54: Salaries - Teachers, Specialists | D54: Salaries for teachers who provide individualized instruction to students (1-on-1 or small groups) to supplement the services delivered by the students' classroom teachers, e.g. reading recovery, Title I reading specialists, special education, academic support, and language acquisitions services. NOT paraprofessionals. Teacher EPIMS codes: 23010 - Teacher - specialized content instruction | N54: 222 | O54: 5XX2 | Q54: 2310
A55: 230 | C55: Subtotal - Other Teaching Services | D55: Calculates automatically | N55: 230 | O55: NA | Q55: 2300
A56: 231 | C56: Salaries - Professional | D56: Salaries for Medical/Therapeutic service professionals. (Ex: OT, PT, Speech, Vision and other therapeutic services that are provided by licensed practitioners, librarians, media center directors, substitute teachers on payroll, after-school teachers, MCAS administrator) | N56: 231 | O56: 5XX2 | Q56: 2320, 2325, 2340
A57: 232 | C57: Salaries - Nonclerical Paraprofessionals | D57: Salaries for paraprofessionals hired to assist teachers/specialists with classroom instruction in the preparation or reproduction of instructional materials or classroom instruction. (Ex: American Sign Language Specialists, general teacher's assistant, after-school employees) | N57: 232 | O57: 5XX2 | Q57: 2330
A58: 233 | C58: Salaries - Clerical | D58: Salaries for administrative support personnel who prepare, transcribe, systematize or preserve communications, records and transactions. (Ex: secretary, after-school employees) | N58: 233 | O58: 5XX2 | Q58: 2320, 2325, 2340
A59: 234 | C59: Contracted Services | D59: Contracted professional services, including all related expenses covered by the contract, for other teaching services (Ex: non-payroll substitute teachers should be included here, contracted OT, PT, after-school contracted workers) | N59: 234 | O59: 53X2 | Q59: 2320, 2325, 2340
A60: 240 | C60: Subtotal - Professional Development | D60: Calculates automatically | H60: =VLOOKUP($H$1&$A60, FE, 8,FALSE) ->  | N60: 240 | O60: NA | Q60: 2350s
A61: 241 | C61: Salaries - Professional | D61: Salaries for full-time or prorated salary of director/staff for professional development, including training for new teachers, new curriculum or instructional practices, master and mentor teachers, coaches; Also salaries of teacher/instructional staff. | H61: =VLOOKUP($H$1&$A61, FE, 8,FALSE) ->  | N61: 241 | O61: 5XX2 | Q61: 2351, 2353
A62: 242 | C62: Contracted Services | D62: Contracted professional services, including all related expenses covered by the contract, for professional development (Ex: non-payroll substitute teachers) | H62: =VLOOKUP($H$1&$A62, FE, 8,FALSE) ->  | N62: 242 | O62: 53X2 | Q62: 2351, 2353
A63: 243 | C63: Supplies and Materials | D63: Materials and items of an expendable nature. Unit price of less than $5000. (Ex: professional development handouts) | H63: =VLOOKUP($H$1&$A63, FE, 8,FALSE) ->  | N63: 243 | O63: 54X2 | Q63: 2351, 2353
A64: 244 | C64: Travel and other expenses | D64: Travel and other expenses for staff such as dues, subscriptions and memberships. (Ex: professional development seminar, tuition reimbursements for teacher higher education coursework) | H64: =VLOOKUP($H$1&$A64, FE, 8,FALSE) ->  | N64: 244 | O64: 57X2 | Q64: 2351, 2353
A65: 250 | C65: Subtotal - Guidance, Psychological & Testing | D65: Calculates automatically | N65: 250 | O65: NA | Q65: 2700s, 2800s
A66: 251 | C66: Salaries - Professional | D66: Salaries for Guidance, Pyschological & Testing Professionals (Ex: Director of Guidance, school social workers, and counselors for guidance, school adjustment, higher education, career planning, and workplace learning placement; psychological evaluations and other services provided by a licensed mental health professional.) | N66: 251 | O66: 5XX2 | Q66: 2710, 2720, 2800
A67: 252 | C67: Salaries - Clerical | D67: Salaries for administrative support personnel who prepare, transcribe, systematize or preserve communications, records and transactions. (Ex: secretary) | N67: 252 | O67: 5XX2 | Q67: 2710, 2720, 2800
A68: 253 | C68: Contracted Services | D68: Contracted professional services, including all related expenses covered by the contract, for guidance, psychological, and testing. (Ex: contracted guidance counselor) | N68: 253 | O68: 53X2 | Q68: 2710, 2720, 2800
A69: 254 | C69: Supplies and Materials | D69: Materials and items of an expendable nature. Unit price of less than $5000. (Ex: pyschological (not academic related) testing materials) | N69: 254 | O69: 54X2 | Q69: 2710, 2720, 2800
A70: 260 | C70: Subtotal - Materials, Equipment & Technology | D70: Calculates automatically | H70: =VLOOKUP($H$1&$A70, FE, 8,FALSE) ->  | N70: 260 | O70: NA | Q70: 2451
A71: 261 | C71: Textbooks & Related Media/Materials | D71: Expenditures for all textbooks and related media/materials (Ex: hard copy and online text books.) | N71: 261 | O71: 54X2 | Q71: 2410
A72: 262 | C72: Other Instructional Materials | D72: Books and other materials, excluding textbooks but including online materials, for use in school libraries or classroom libraries (Ex: trade books, subscription to online magazine, periodicals, reference materials, etc.) | N72: 262 | O72: 54X2 | Q72: 2415
A73: 263 | C73: Instructional Equipment | D73: Non-capitalized expenditures for purchase of science laboratory, physical education, equipment, irrespective of unit cost. Also includes lease/purchase of copy equipment primarily used to produce instructional materials. Does not include classroom technology equipment. | N73: 263 | O73: 54X2 | Q73: 2420
A74: 264 | C74: General Supplies | D74: Papers, pens, pencils, crayons, chalk, paint, toner printer cartridges, calculators, etc. | N74: 264 | O74: 54X2 | Q74: 2430
A75: 265 | C75: Other Instructional Services | D75: Cost for field trips, including admissions and transportation costs. Also, distance learning services. | N75: 265 | O75: 58X2 | Q75: 2440
A76: 266 | C76: Classroom Instructional Technology | D76: Computers, servers, networks, scanners, digital cameras, etc. used in the classroom or in computer laboratories. | H76: =VLOOKUP($H$1&$A76, FE, 8,FALSE) ->  | N76: 266 | O76: 54X2 | Q76: 2451
A77: 267 | C77: Other Instructional Hardware | D77: Computers, servers, networks, scanners, digital cameras, etc. for school libraries and media centers. | H77: =VLOOKUP($H$1&$A77, FE, 8,FALSE) ->  | N77: 267 | O77: 54X2 | Q77: 2453
A78: 268 | C78: Instructional Software | D78: Software licenses (Ex: Online textbook guide, student data communication software such as Edline, Powerschool) | F78: =VLOOKUP($H$1&$A78, FE, 6,FALSE) ->  | G78: =VLOOKUP($H$1&$A78, FE, 7,FALSE) ->  | N78: 268 | O78: 54X2 | Q78: 2455
A79: 269 | C79: Depreciation for Instructional Equipment | D79: Annual depreciation expense for capitalized Instructional Materials, Equipment, & Technology. | F79: =VLOOKUP($H$1&$A79, FE, 6,FALSE) ->  | G79: =VLOOKUP($H$1&$A79, FE, 7,FALSE) ->  | N79: 269 | O79: 5702 | Q79: NA
A81: 300 | C81: Pupil Services | D81: Calculates automatically | F81: =VLOOKUP($H$1&$A81, FE, 6,FALSE) ->  | G81: =VLOOKUP($H$1&$A81, FE, 7,FALSE) ->  | H81: =VLOOKUP($H$1&$A81, FE, 8,FALSE) ->  | I81: =VLOOKUP($H$1&$A81, FE, 9,FALSE) ->  | J81: =VLOOKUP($H$1&$A81, FE, 10,FALSE) ->  | K81: =VLOOKUP($H$1&$A81, FE, 11,FALSE) ->  | L81: =VLOOKUP($H$1&$A81, FE, 12,FALSE) ->  | N81: =A81 -> 300 | O81: NA | Q81: 3000 series
A82: 310 | C82: Health Services | D82: Salaries for school physicians, school nurses, and clerical support staff. Expenses for school medical supplies, dues and subscriptions, and travel. | N82: 310 | O82: 5XX3 | Q82: various salary 3000's
A83: 315 | C83: Health Services - Contracted | D83: Contracted services for school physicians, school nurses, and clerical support staff. Expenses for school medical supplies, dues and subscriptions, and travel. | N83: 315
A84: 320 | C84: Athletic Services | D84: Salaries for coaches, trainers and assistants. Expenses for athletic supplies, uniforms, travel expenses and transportation to and from athletic events. | N84: 320
A85: 325 | C85: Athletic Services - Contracted | D85: Contracted services for coaches, trainers and assistants. Expenses for athletic supplies, uniforms, travel expenses and transportation to and from athletic events. | N85: 325
A86: 330 | C86: Food Services | D86: Salaries for cafeteria workers, food directors, and other food-related services for personell on payroll. Expenses for food, supplies, dues and subscriptions, and travel. | N86: 330 | O86: 5XX3 | Q86: various salary 3000's
A87: 335 | C87: Food Services - Contracted | D87: Contracted services for cafeteria workers, food directors, and other food-related services for personell on payroll. Expenses for food, supplies, dues and subscriptions, and travel. | N87: 335
A88: 340 | C88: Student Transportation (to and from school) | D88: Salaries and related costs incurred by the school; Or, monetary fair market value of services provided by sending district. (Please note: More detail is required in the Schedule 7C worksheet for those seeking reimbursement.) | N88: 340 | O88: 58X3 | Q88: 3300
A89: 345 | C89: Student Transportation (to and from school) | D89: Contracted professional services and related costs incurred by the school; Or, monetary fair market value of services provided by sending district. (Please note: More detail is required in the Schedule 7C worksheet for those seeking reimbursement.) | N89: 345
A90: 350 | C90: Depreciation of Transportation Vehicles | D90: Annual depreciation expense for capitalized transportation vehicles. (Please note: More detail is required in the Schedule 7C worksheet for those seeking state or district reimbursement for transportation costs.) | N90: 350 | O90: 5703 | Q90: 3300
A91: 360 | C91: Other Student Activities | D91: Salaries and contracted services for other student activities such as musical directors, drama coaches and other extra-curricular personnel. Expenses for supplies and materials, travel expenses and transportation to and from related events. | N91: 360 | O91: 58X3 | Q91: 3520/3600
A93: 400 | C93: Operation & Maintenance of Plant | D93: Calculates automatically | H93: =VLOOKUP($H$1&$A93, FE, 8,FALSE) ->  | I93: =VLOOKUP($H$1&$A93, FE, 9,FALSE) ->  | J93: =VLOOKUP($H$1&$A93, FE, 10,FALSE) ->  | K93: =VLOOKUP($H$1&$A93, FE, 11,FALSE) ->  | L93: =VLOOKUP($H$1&$A93, FE, 12,FALSE) ->  | N93: =A93 -> 400 | O93: NA | Q93: 4000 series
A94: 410 | C94: Operation & Maintenance of Buildings and Grounds | D94: Salaries and contracted services for plant managers, custodians, maintenance, etc. Expenses for supplies and travel expenses. | N94: 410 | O94: 5XX4 | Q94: various 4000's salaries
A95: 420 | C95: Utilities | D95: Cost of fuel, oil, electricity, gas, water, trash, waste disposal, telephone services, etc. | N95: 420 | O95: 55X4 | Q95: 4120 and 4130
A96: 430 | C96: Maintenance of Equipment | D96: Equipment parts and repair, materials, and tools, contracted services, including vehicles. | N96: 430 | O96: 55X4 | Q96: 4230
A97: 440 | C97: Networking and Telecommunications | D97: Costs for installing and maintaining school technology infrastructure, including wiring, file servers, etc. | N97: 440 | O97: 54X4 | Q97: 4400
A99: 500 | C99: Fixed Charges | D99: Calculates automatically | H99: =VLOOKUP($H$1&$A99, FE, 8,FALSE) ->  | I99: =VLOOKUP($H$1&$A99, FE, 9,FALSE) ->  | J99: =VLOOKUP($H$1&$A99, FE, 10,FALSE) ->  | K99: =VLOOKUP($H$1&$A99, FE, 11,FALSE) ->  | L99: =VLOOKUP($H$1&$A99, FE, 12,FALSE) ->  | N99: =A99 -> 500 | O99: NA | Q99: 5000 series
A100: 510 | C100: Employee Retirement | D100: "Payroll taxes", including contributions to Medicaid, social security, pension plans, and other employee retirement systems, school's portion, for non-MTRS employees; and Federal grant MTRS "surcharge" | N100: 510 | O100: 52X5 | Q100: 5100
A101: 520 | C101: Fringe Benefits | D101: Employee unemployment, health, and life insurance premiums or payments, and worker's compensation or other benefits, paid by the school for the benefit of the employee. | N101: 520 | O101: 52X5 | Q101: 5200, 5250
A102: 530 | C102: Insurance (non-employee) | D102: Insurance premiums for property, fire, liability, fidelity bonds; self-insurance costs. | N102: 530 | O102: 52X5 | Q102: 5260
A103: 550 | C103: Rental/Lease of Equipment | D103: Annual operating lease/rental costs of equipment. | N103: 550 | O103: 56X5 | Q103: 5300
A104: 560 | C104: Short-Term Interest | D104: Interest costs for short-term (less than one year) lines of credit that are needed to sustain cash flow for ongoing operations. | N104: 560 | O104: 57X5 | Q104: 5400, 5450
A106: 600 | C106: Community Services | D106: Calculates automatically | H106: =VLOOKUP($H$1&$A106, FE, 8,FALSE) ->  | I106: =VLOOKUP($H$1&$A106, FE, 9,FALSE) ->  | J106: =VLOOKUP($H$1&$A106, FE, 10,FALSE) ->  | K106: =VLOOKUP($H$1&$A106, FE, 11,FALSE) ->  | L106: =VLOOKUP($H$1&$A106, FE, 12,FALSE) ->  | N106: =A106 -> 600 | O106: NA | Q106: 6000 series
A107: 610 | C107: Dissemination Activities | D107: Activities designed to disseminate the school's best practices to external groups, including presentations at or hosting of conferences, etc. | H107: =VLOOKUP($H$1&$A107, FE, 8,FALSE) ->  | I107: =VLOOKUP($H$1&$A107, FE, 9,FALSE) ->  | J107: =VLOOKUP($H$1&$A107, FE, 10,FALSE) ->  | K107: =VLOOKUP($H$1&$A107, FE, 11,FALSE) ->  | L107: =VLOOKUP($H$1&$A107, FE, 12,FALSE) ->  | N107: =A107 -> 610 | O107: 58X6 | Q107: 6200
A108: 620 | C108: Civic Activities | D108: Materials and items of an expendable nature. Unit price of less than $5000. (Ex: fundraising activities for a charitable agency) | H108: =VLOOKUP($H$1&$A108, FE, 8,FALSE) ->  | I108: =VLOOKUP($H$1&$A108, FE, 9,FALSE) ->  | J108: =VLOOKUP($H$1&$A108, FE, 10,FALSE) ->  | K108: =VLOOKUP($H$1&$A108, FE, 11,FALSE) ->  | L108: =VLOOKUP($H$1&$A108, FE, 12,FALSE) ->  | N108: =A108 -> 620 | O108: 58X6 | Q108: 6200
A110: 700 | C110: Non-Operating / Capital Facilities Costs | D110: Calculates automatically | H110: =VLOOKUP($H$1&$A110, FE, 8,FALSE) ->  | I110: =VLOOKUP($H$1&$A110, FE, 9,FALSE) ->  | J110: =VLOOKUP($H$1&$A110, FE, 10,FALSE) ->  | K110: =VLOOKUP($H$1&$A110, FE, 11,FALSE) ->  | L110: =VLOOKUP($H$1&$A110, FE, 12,FALSE) ->  | N110: =A110 -> 700 | O110: NA | Q110: 7000 series
A111: 720 | C111: Long-Term Interest, facilities related | D111: Annual debt service costs for long-term financing (greater than one year) related to capital facilities costs. | H111: =VLOOKUP($H$1&$A111, FE, 8,FALSE) ->  | N111: 720 | O111: 57X7 | Q111: 8200
A112: 725 | C112: Long-Term Interest, non-facilities related | D112: Annual debt service costs for long-term financing (greater than one year) not related to capital facilities costs | N112: 725 | O112: 57X7 | Q112: 8300
A113: 730 | C113: Other costs related to capital facilities acquisition | D113: Expenses (e.g.,architectural design, closing costs, site exploration, etc.) related to capital facilities acquisition or lease. | N113: 730 | O113: 58X7 | Q113: 8000
A114: 740 | C114: Rental/Lease of Buildings & Grounds | D114: Annual operating lease/rental costs of Building & Grounds. | N114: 740 | O114: 58X7 | Q114: 7000
A115: 750 | C115: Depreciation of Equipment, Building, & Grounds | D115: Annual depreciation expense for capitalized Equipment, Networking and Telecommunications, Building, & Grounds. | N115: 750 | O115: 5707 | Q115: 5350*
A116: 760 | C116: Bad debt / loss on disposal of assets | D116: Write-off costs for bad debt or loss on disposal of assets | N116: 760 | O116: 5707 | Q116: NA
A118: 800 | C118: TOTALS | D118: Calculates automatically | F118: =VLOOKUP($H$1&$A118, FE, 6,FALSE) ->  | G118: =VLOOKUP($H$1&$A118, FE, 7,FALSE) ->  | H118: =VLOOKUP($H$1&$A118, FE, 8,FALSE) ->  | I118: =VLOOKUP($H$1&$A118, FE, 9,FALSE) ->  | J118: =VLOOKUP($H$1&$A118, FE, 10,FALSE) ->  | K118: =VLOOKUP($H$1&$A118, FE, 11,FALSE) ->  | L118: =VLOOKUP($H$1&$A118, FE, 12,FALSE) ->  | N118: =A118 -> 800 | O118: NA
A120: 910 | C120: Reference: Capitalized Expenditures | D120: Reference line for cash expenditures that are not expensed in the fiscal year | H120: =VLOOKUP($H$1&$A120, FE, 8,FALSE) ->  | I120: =VLOOKUP($H$1&$A120, FE, 9,FALSE) ->  | J120: =VLOOKUP($H$1&$A120, FE, 10,FALSE) ->  | K120: =VLOOKUP($H$1&$A120, FE, 11,FALSE) ->  | L120: =VLOOKUP($H$1&$A120, FE, 12,FALSE) ->  | N120: =A120 -> 910
A121: 920 | C121: Reference: Deferrals/Carryovers | D121: Reference line for cash expenditures that are not expensed in the fiscal year | H121: =VLOOKUP($H$1&$A121, FE, 8,FALSE) ->  | I121: =VLOOKUP($H$1&$A121, FE, 9,FALSE) ->  | J121: =VLOOKUP($H$1&$A121, FE, 10,FALSE) ->  | K121: =VLOOKUP($H$1&$A121, FE, 11,FALSE) ->  | L121: =VLOOKUP($H$1&$A121, FE, 12,FALSE) ->  | N121: =A121 -> 920
A122: 900 | C122: Reference: Totals | H122: =VLOOKUP($H$1&$A122, FE, 8,FALSE) ->  | I122: =VLOOKUP($H$1&$A122, FE, 9,FALSE) ->  | J122: =VLOOKUP($H$1&$A122, FE, 10,FALSE) ->  | K122: =VLOOKUP($H$1&$A122, FE, 11,FALSE) ->  | L122: =VLOOKUP($H$1&$A122, FE, 12,FALSE) ->  | N122: =A122 -> 900

Sheet 4. EXPPP
A1: Massachusetts Department of Elementary and Secondary Education
A2: FY16 Charter School Expenditures Per Pupil, All Funds, Summary By Function
A3: =Index!B3 -> Last Updated: May 2017
B4: Return to Index | F4: ----------------------------- Operating Expenditures Per Pupil In The Charter School ------------------------------------------- | S4: --- Exp pp Facilities Costs2 ---
E5: fte pupils | G5: instruc- | H5: classroom & | I5: other | J5: profes- | K5: instructn'l | L5: guidance, | N5: operations | O5: insurance, | P5: total operating | Q5: total operating | S5: Rental/Lease of | T5: Capital
D6: location | E6: at the | F6: admini- | G6: tional | H6: specialist | I6: teaching | J6: sional dev- | K6: materials, | L6: counseling | M6: pupil | N6: and | O6: retirement | P6: expenditures | Q6: expenditures | S6: Building & | T6: Facilities
A7: LEA | B7: Charter School | C7: type | D7: in FY14 | E7: charter | F7: stration | G7: leadership | H7: teachers | I7: services | J7: elopment | K7: equip & tech | L7: & testing | M7: services | N7: maintenance | O7: & other 1 | P7: aggregate | Q7: per pupil | S7: Grounds | T7: Expenses3
F8: 100 | G8: 210 | H8: 220 | I8: 230 | J8: 240 | K8: 260 | L8: 250 | M8: 300 | N8: 400 | O8: 500 | S8: 540 | T8: 720
A9: 445 | B9: Abby Kelley Foster Charter Public School | C9: =VLOOKUP(A9, FACTS, 3, FALSE) -> C | D9: =VLOOKUP(A9, FACTS, 6, FALSE) -> Worcester | E9: =VLOOKUP(A9, FTE, 2, FALSE) -> 1423.256831 | F9: =VLOOKUP($A9&100, FE, 12, FALSE)/$E9 -> 619.6360636 | G9: =VLOOKUP($A9&210, FE, 12, FALSE)/$E9 -> 883.7575432 | H9: =VLOOKUP($A9&220, FE, 12, FALSE)/$E9 -> 4575.909351 | I9: =VLOOKUP($A9&230, FE, 12, FALSE)/$E9 -> 860.6746468 | J9: =VLOOKUP($A9&240, FE, 12, FALSE)/$E9 -> 49.79357097 | K9: =VLOOKUP($A9&260, FE, 12, FALSE)/$E9 -> 273.8396483 | L9: =VLOOKUP($A9&250, FE, 12, FALSE)/$E9 -> 347.6620237 | M9: =VLOOKUP($A9&300, FE, 12, FALSE)/$E9 -> 1535.035085 | N9: =VLOOKUP($A9&400, FE, 12, FALSE)/$E9 -> 1235.897943 | O9: =VLOOKUP($A9&500, FE, 12, FALSE)/$E9 -> 2364.965541 | P9: =VLOOKUP($A9&800,FE,12,FALSE)-VLOOKUP($A9&700,FE,12,FALSE)-VLOOKUP($A9&600,FE,12,FALSE) -> 18142498.79 | Q9: =SUM(F9:O9) -> 12747.17142 | S9: =VLOOKUP($A9&740, FE, 12, FALSE)/$E9 -> 0 | T9: =(VLOOKUP($A9&700, FE, 12, FALSE)-VLOOKUP($A9&740, FE, 12, FALSE)-VLOOKUP($A9&725, FE, 12, FALSE))/$E9 -> 1516.177125
A10: 412 | B10: Academy of the Pacific Rim Charter Public School | C10: C | D10: Boston | E10: 521.5 | F10: 1381.119847 | G10: 1243.390221 | H10: 5223.081496 | I10: 475.0488974 | J10: 182.1514861 | K10: 644.3739214 | L10: 591.6145733 | M10: 2193.470757 | N10: 967.78907 | O10: 3217.698945 | P10: 8406444 | Q10: =SUM(F10:O10) -> 16119.73921 | S10: 0 | T10: 2452.972196
A11: 430 | B11: Advanced Math and Science Academy Charter School | C11: C | D11: Marlborough | E11: 985.3611111 | F11: 1889.843002 | G11: 643.1103713 | H11: 4894.655021 | I11: 83.70091845 | J11: 228.5677276 | K11: 314.516015 | L11: 303.397208 | M11: 1462.923789 | N11: 563.8560967 | O11: 2846.880315 | P11: 13037756.73 | Q11: 13231.45046 | S11: 1677.343444 | T11: 18.25535816
A12: 409 | B12: Alma del Mar Charter School | C12: C | D12: New Bedford | E12: 282.3606557 | F12: 1915.439311 | G12: 772.8204889 | H12: 4457.853722 | I12: 966.0522968 | J12: 446.0694061 | K12: 902.9341193 | L12: 62.88893172 | M12: 2918.628333 | N12: 723.2981148 | O12: 2128.478199 | P12: 4318554.58 | Q12: 15294.46292 | S12: 216.8762494 | T12: 2012.107524
A13: 3509 | B13: Argosy Collegiate Charter School | C13: C | D13: Fall River | E13: 203.0162162 | F13: 1623.658623 | G13: 1261.19206 | H13: 3642.027981 | I13: 1097.841907 | J13: 262.7808802 | K13: 1075.287108 | L13: 218.0904108 | M13: 2156.906813 | N13: 615.7511569 | O13: 1334.133623 | P13: 2697612.6 | Q13: 13287.67056 | S13: 957.6520715 | T13: 272.9486394
A14: 491 | B14: Atlantis Charter School | C14: C | D14: Fall River | E14: 1026.377846 | F14: 1118.816004 | G14: 886.4745606 | H14: 3708.363704 | I14: 1603.461548 | J14: 27.5477497 | K14: 213.1258979 | L14: 365.3060727 | M14: 979.5677528 | N14: 760.686528 | O14: 2865.845197 | P14: 12859688.19 | Q14: 12529.19501 | S14: 637.1009688 | T14: 83.09020926
A15: 427 | B15: Barnstable Community Horace Mann Charter Public School | C15: HM | D15: Barnstable | E15: 289.7944444 | F15: 843.7118264 | G15: 34.97651592 | H15: 6071.365527 | I15: 1214.43667 | J15: 33.95165155 | K15: 227.2265782 | L15: 547.367291 | M15: 1238.236298 | N15: 1049.989073 | O15: 1247.335851 | P15: 3624922 | Q15: 12508.59728 | S15: 505.6239097 | T15: 0
A16: 3502 | B16: Baystate Academy Charter Public School | C16: C | D16: Springfield | E16: 305.9398907 | F16: 1397.539069 | G16: 1076.087983 | H16: 4008.176564 | I16: 739.7835224 | J16: 396.3612908 | K16: 765.1768766 | L16: 413.412941 | M16: 2848.436462 | N16: 557.7659376 | O16: 2141.951442 | P16: 4388613.53 | Q16: 14344.69209 | S16: 1326.711169 | T16: 254.4693659
A17: 420 | B17: Benjamin Banneker Charter Public School | C17: C | D17: Cambridge | E17: 347.4888889 | F17: 2395.681867 | G17: 1782.737664 | H17: 4746.317286 | I17: 2273.198583 | J17: 380.0535621 | K17: 959.2608301 | L17: 341.8990184 | M17: 2794.285432 | N17: 900.3303127 | O17: 3748.723374 | P17: 7061838.75 | Q17: 20322.48793 | S17: 1343.282087 | T17: 419.8902603
A18: 447 | B18: Benjamin Franklin Classical Charter Public School | C18: C | D18: Franklin | E18: 446.2944444 | F18: 1342.684516 | G18: 607.5281317 | H18: 4130.919672 | I18: 1179.594383 | J18: 68.91064942 | K18: 593.0473106 | L18: 292.93934 | M18: 810.3041266 | N18: 495.4048672 | O18: 2712.502307 | P18: 5459892.73 | Q18: 12233.8353 | S18: 548.9649335 | T18: 69.96053926
A19: 3511 | B19: Bentley Academy Charter School | C19: HM | D19: Salem | E19: 244.929303 | F19: 307.0641164 | G19: 1763.116927 | H19: 6171.638026 | I19: 1289.446612 | J19: 272.6011105 | K19: 170.1715536 | L19: 255.8167571 | M19: 1881.710332 | N19: 841.2917421 | O19: 1094.242284 | P19: 3440546.28 | Q19: 14047.09946 | S19: 0 | T19: 0
A20: 414 | B20: Berkshire Arts and Technology Charter Public School | C20: C | D20: Adams | E20: 346.4095745 | F20: 1555.89233 | G20: 2087.575094 | H20: 4166.458165 | I20: 1240.055217 | J20: 400.2631862 | K20: 609.3826948 | L20: 531.480691 | M20: 2009.367094 | N20: 1124.180821 | O20: 2687.445927 | P20: 5685309 | Q20: 16412.10122 | S20: 0 | T20: 1495.52737
A21: 449 | B21: Boston Collegiate Charter School | C21: C | D21: Boston | E21: 688.2216216 | F21: 1765.911985 | G21: 1563.214212 | H21: 5924.987478 | I21: 125.0031346 | J21: 136.8353261 | K21: 135.3270474 | L21: 990.8448363 | M21: 1626.241162 | N21: 873.1825783 | O21: 3009.896718 | P21: 11115773.31 | Q21: 16151.44448 | S21: 13.17308221 | T21: 2142.498802
A22: 424 | B22: Boston Day and Evening Academy Charter School | C22: HM | D22: Boston | E22: 366.5083799 | F22: 1261.559149 | G22: 302.5033153 | H22: 6165.015929 | I22: 910.4075604 | J22: 128.957488 | K22: 425.2426644 | L22: 1004.626416 | M22: 266.7524274 | N22: 46.74654371 | O22: 101.4219648 | P22: 3889839 | Q22: 10613.23346 | S22: 0 | T22: 0
A23: 411 | B23: Boston Green Academy Horace Mann Charter School | C23: HM | D23: Boston | E23: 450.3 | F23: 653.0526094 | G23: 1832.467244 | H23: 7486.464579 | I23: 1122.06529 | J23: 47.54608039 | K23: 261.9986676 | L23: 0 | M23: 2093.331113 | N23: 845.5207639 | O23: 1260.77113 | P23: 7026128.83 | Q23: 15603.21748 | S23: 0 | T23: 1.243615368
A24: 416 | B24: Boston Preparatory Charter Public School | C24: C | D24: Boston | E24: 411.4578947 | F24: 2642.784192 | G24: 1209.567264 | H24: 5476.859306 | I24: 213.1105056 | J24: 150.6594011 | K24: 1196.720263 | L24: 841.3983652 | M24: 2706.710928 | N24: 963.7899894 | O24: 3666.234187 | P24: 7845611 | Q24: 19067.8344 | S24: 1166.304028 | T24: 50.66131983
A25: 481 | B25: Boston Renaissance Charter Public School | C25: C | D25: Boston | E25: 945.3031566 | F25: 1717.121199 | G25: 812.3123832 | H25: 5631.903441 | I25: 1839.091553 | J25: 511.6458531 | K25: 781.2724573 | L25: 229.6896488 | M25: 2132.071004 | N25: 956.7450862 | O25: 4048.722469 | P25: 17639900.54 | Q25: 18660.57509 | S25: 0 | T25: 1739.71703
A26: 417 | B26: Bridge Boston Charter School | C26: C | D26: Boston | E26: 226.9666667 | F26: 2228.755118 | G26: 1044.425922 | H26: 5788.514187 | I26: 1559.326068 | J26: 47.36193274 | K26: 640.1268615 | L26: 486.2855926 | M26: 2771.716875 | N26: 1136.869937 | O26: 3481.727126 | P26: 4354380.38 | Q26: 19185.10962 | S26: 1546.372448 | T26: 317.2442062
A27: 457 | B27: Brooke Charter School East Boston | C27: C | D27: Boston | E27: 499.805 | F27: 1563.976831 | G27: 1144.323766 | H27: 5192.482828 | I27: 1142.762817 | J27: 16.59237102 | K27: 887.9081042 | L27: 471.0207181 | M27: 2188.483769 | N27: 745.2132132 | O27: 1986.445274 | P27: 7666613.7 | Q27: 15339.20969 | S27: 1569.100949 | T27: 70.25055772
A28: 443 | B28: Brooke Charter School Mattapan | C28: C | D28: Boston | E28: 486.2102564 | F28: 1631.407153 | G28: 1068.71857 | H28: 5282.501317 | I28: 1135.958739 | J28: 22.57033836 | K28: 693.2061707 | L28: 405.5213098 | M28: 2490.817839 | N28: 847.5407389 | O28: 2270.198696 | P28: 7705674.5 | Q28: 15848.44087 | S28: 4112.152579 | T28: 57.19079274
A29: 428 | B29: Brooke Charter School Roslindale | C29: C | D29: Boston | E29: 507.5104167 | F29: 4055.274261 | G29: 1409.82657 | H29: 5398.540148 | I29: 1438.557232 | J29: 86.67207323 | K29: 1088.903226 | L29: 1079.446849 | M29: 2262.840786 | N29: 1240.36993 | O29: 3644.323701 | P29: 11015389.14 | Q29: 21704.75478 | S29: 559.753496 | T29: 3832.695184
A30: 432 | B30: Cape Cod Lighthouse Charter School | C30: C | D30: Harwich | E30: 239.6722222 | F30: 1532.559746 | G30: 292.9793004 | H30: 6648.200552 | I30: 500.3166361 | J30: 135.8939292 | K30: 270.4819082 | L30: 348.9849563 | M30: 934.5680443 | N30: 501.5766904 | O30: 3789.679887 | P30: 3584356 | Q30: 14955.24165 | S30: 0 | T30: 1123.20484
A31: 418 | B31: Christa McAuliffe Charter School | C31: C | D31: Framingham | E31: 398.4888889 | F31: 1887.588389 | G31: 1198.781229 | H31: 5851.146832 | I31: 141.9537698 | J31: 44.11415347 | K31: 436.4964867 | L31: 502.5133839 | M31: 1702.253234 | N31: 498.5709904 | O31: 3047.522864 | P31: 6101240 | Q31: 15310.94133 | S31: 1659.664845 | T31: 241.9565581
A32: 437 | B32: City on a Hill Charter Public School Circuit Street | C32: =VLOOKUP(A32, FACTS, 3, FALSE) -> C | D32: =VLOOKUP(A32, FACTS, 6, FALSE) -> Boston | E32: =VLOOKUP(A32, FTE, 2, FALSE) -> 278.2111111 | F32: 4842.64336 | G32: 2570.126431 | H32: 5850.066964 | I32: 1317.070582 | J32: 446.2306322 | K32: 678.1324414 | L32: 696.5968729 | M32: 1677.834426 | N32: 1742.208239 | O32: 4235.323979 | P32: 6692711.57 | Q32: =SUM(F32:O32) -> 24056.23393 | S32: 2120.80498 | T32: 25.45175127
A33: 3504 | B33: City on a Hill Charter Public School Dudley Square | C33: C | D33: Boston | E33: 236.5384615 | F33: 1586.581681 | G33: 2168.349395 | H33: 5225.837278 | I33: 1275.20547 | J33: 152.7688976 | K33: 1329.555743 | L33: 518.4376748 | M33: 1221.617187 | N33: 1470.036111 | O33: 1570.662621 | P33: 3907391.16 | Q33: 16519.05206 | S33: 2513.312745 | T33: 487.9327415
A34: 3507 | B34: City On A Hill Charter Public School New Bedford | C34: C | D34: New Bedford | E34: 130.6187845 | F34: 1507.350192 | G34: 2583.376436 | H34: 5068.248969 | I34: 1143.285558 | J34: 296.3765904 | K34: 876.8250326 | L34: 461.260302 | M34: 2012.886515 | N34: 1704.860375 | O34: 2664.846111 | P34: 2392846.8 | Q34: 18319.31608 | S34: 1677.429481 | T34: 525.3379156
A35: 438 | B35: Codman Academy Charter Public School | C35: C | D35: Boston | E35: 315.014218 | F35: 2552.334352 | G35: 1676.671495 | H35: 5558.279277 | I35: 1354.380392 | J35: 413.2860759 | K35: 859.8063977 | L35: 765.5005273 | M35: 3169.887137 | N35: 838.839725 | O35: 2925.272503 | P35: 6336277.218 | Q35: 20114.25788 | S35: 1177.076649 | T35: 30.10641888
A36: 436 | B36: Community Charter School of Cambridge | C36: C | D36: Cambridge | E36: 402.7944444 | F36: 1323.364826 | G36: 1778.068218 | H36: 5890.552943 | I36: 449.38306 | J36: 393.0019447 | K36: 552.9942209 | L36: 533.3613781 | M36: 1103.312139 | N36: 744.4963657 | O36: 2950.370881 | P36: 6331488 | Q36: 15718.90598 | S36: 2656.007338 | T36: 529.1855509
A37: 426 | B37: Community Day Charter Public School - Gateway | C37: C | D37: Lawrence | E37: 239.8763441 | F37: 1394.497658 | G37: 970.8585517 | H37: 5843.002174 | I37: 563.7446265 | J37: 75.75986732 | K37: 891.3175695 | L37: 263.4148867 | M37: 1800.002421 | N37: 637.6618778 | O37: 2514.666472 | P37: 3587333 | Q37: 14954.9261 | S37: 493.8002555 | T37: 22.81175337
A38: 440 | B38: Community Day Charter Public School - Prospect | C38: C | D38: Lawrence | E38: 398.3333333 | F38: 1213.815063 | G38: 1098.321339 | H38: 5906.932218 | I38: 619.4635983 | J38: 96.06778243 | K38: 332.6912134 | L38: 666.0075314 | M38: 1442.630962 | N38: 752.5305439 | O38: 3077.206695 | P38: 6056924 | Q38: 15205.66695 | S38: 404.8317992 | T38: 10.41087866
A39: 431 | B39: Community Day Charter Public School - R. Kingman Webster | C39: =VLOOKUP(A39, FACTS, 3, FALSE) -> C | D39: =VLOOKUP(A39, FACTS, 6, FALSE) -> Lawrence | E39: =VLOOKUP(A39, FTE, 2, FALSE) -> 239.8870968 | F39: =VLOOKUP($A39&100, FE, 12, FALSE)/$E39 -> 1395.364755 | G39: 1012.83897 | H39: 5591.855577 | I39: 685.5224904 | J39: 61.25381564 | K39: 825.4007934 | L39: 267.8134875 | M39: 1864.635514 | N39: 673.2708936 | O39: 2413.072682 | P39: 3548177 | Q39: 14791.02898 | S39: 493.7781214 | T39: 27.08357426
A40: 439 | B40: Conservatory Lab Charter School | C40: C | D40: Boston | E40: 428.015873 | F40: 1541.951413 | G40: 2991.787877 | H40: 3744.165021 | I40: 1344.181785 | J40: 357.4562759 | K40: 238.2146 | L40: 1.37702837 | M40: 4079.457399 | N40: 442.4394793 | O40: 2443.012738 | P40: 7355043.43 | Q40: 17184.04362 | S40: 1712.749961 | T40: 81.41754126
A41: 475 | B41: Dorchester Collegiate Academy Charter School | C41: C | D41: Boston | E41: 200.6631579 | F41: 2869.465457 | G41: 2731.22882 | H41: 7283.280176 | I41: 1083.965798 | J41: 42.2299743 | K41: 754.8122016 | L41: 922.0626344 | M41: 2372.976709 | N41: 1560.386088 | O41: 3807.036668 | P41: 4701025 | Q41: 23427.44453 | S41: 0 | T41: 1065.153176
A42: 407 | B42: Dudley Street Neighborhood Charter School | C42: HM | D42: Boston | E42: 263.5944444 | F42: 3141.489768 | G42: 1513.12749 | H42: 4542.785424 | I42: 1072.602272 | J42: 281.8230868 | K42: 271.4435054 | L42: 7.063881805 | M42: 1806.760385 | N42: 567.7357894 | O42: 2259.626531 | P42: 4076345.25 | Q42: 15464.45813 | S42: 0 | T42: 73.34752461
A43: 452 | B43: Edward M. Kennedy Academy for Health Careers: A Horace Mann Charter Public School | C43: HM | D43: Boston | E43: 340.05 | F43: 1966.304367 | G43: 755.0007352 | H43: 7151.127775 | I43: 240.1793854 | J43: 57.23570063 | K43: 343.6112336 | L43: 1676.597559 | M43: 1712.180562 | N43: 2.637847375 | O43: 2356.40347 | P43: 5529647.8 | Q43: =SUM(F43:O43) -> 16261.27864 | S43: 950.5637406 | T43: 0
A44: 410 | B44: Excel Academy Charter School | C44: C | D44: Boston/Chelsea | E44: 788.8024121 | F44: 2872.403027 | G44: 2160.392283 | H44: 5482.63909 | I44: 173.5124004 | J44: 143.7901283 | K44: 805.2394748 | L44: 987.6795355 | M44: 1983.60575 | N44: 742.4280035 | O44: 2659.807219 | P44: 14207512.21 | Q44: 18011.49691 | S44: 833.8285861 | T44: 691.9502167
A45: 413 | B45: Four Rivers Charter Public School | C45: C | D45: Greenfield | E45: 216.5888889 | F45: 1505.989018 | G45: 1586.30154 | H45: 5530.038988 | I45: 376.7552455 | J45: 163.3647976 | K45: 559.7193864 | L45: 658.9857898 | M45: 929.5998564 | N45: 895.9831734 | O45: 3369.84969 | P45: 3373715.776 | Q45: 15576.58748 | S45: 2137.515005 | T45: 57.12666085
A46: 446 | B46: Foxborough Regional Charter School | C46: C | D46: Foxborough | E46: 1247.633333 | F46: 863.2878116 | G46: 939.7533864 | H46: 3483.174042 | I46: 640.4344447 | J46: 159.5193112 | K46: 327.1011355 | L46: 614.9445911 | M46: 1265.937786 | N46: 882.3714072 | O46: 2276.714972 | P46: 14289442.61 | Q46: 11453.23889 | S46: 0 | T46: 2507.505672
A47: 478 | B47: Francis W. Parker Charter Essential School | C47: C | D47: Devens | E47: 398.0722222 | F47: 1185.337689 | G47: 1787.693957 | H47: 5295.512016 | I47: 184.7548658 | J47: 137.4806303 | K47: 709.2893481 | L47: 539.8543983 | M47: 1011.103469 | N47: 730.0556376 | O47: 3302.746905 | P47: 5924838.852 | Q47: 14883.82892 | S47: 474.6776576 | T47: 462.1412842
A48: 496 | B48: Global Learning Charter Public School | C48: C | D48: New Bedford | E48: 503.2166667 | F48: 1442.174014 | G48: 1359.493922 | H48: 4693.980062 | I48: 418.5612559 | J48: 229.8731494 | K48: 750.4481171 | L48: 447.8051204 | M48: 1463.620044 | N48: 631.2430033 | O48: 2300.144404 | P48: =VLOOKUP($A48&800,FE,12,FALSE)-VLOOKUP($A48&700,FE,12,FALSE)-VLOOKUP($A48&600,FE,12,FALSE) -> 6912860 | Q48: 13737.34309 | S48: 534.3165634 | T48: 770.3043752
A49: 499 | B49: Hampden Charter School of Science | C49: C | D49: Chicopee | E49: 424.8120301 | F49: 1485.676853 | G49: 726.954366 | H49: 3951.839781 | I49: 673.5307848 | J49: 129.8096713 | K49: 605.0053242 | L49: 431.1191704 | M49: 1996.207428 | N49: 709.686211 | O49: 2706.640864 | P49: 5699478.05 | Q49: 13416.47045 | S49: 945.5404074 | T49: 276.1002083
A50: 419 | B50: Helen Y Davis Leadership Academy Charter Public School | C50: C | D50: Boston | E50: 212.5894737 | F50: 3036.556744 | G50: 471.8013468 | H50: 6675.372846 | I50: 1002.481432 | J50: 150.3131808 | K50: 380.7620321 | L50: 327.471529 | M50: 2300.847693 | N50: 922.5198059 | O50: 3584.693009 | P50: 4007911 | Q50: 18852.81962 | S50: 1604.46326 | T50: 0
A51: 455 | B51: Hill View Montessori Charter Public School | C51: C | D51: Haverhill | E51: 305.4166667 | F51: 1510.847574 | G51: 943.3481583 | H51: 3474.258008 | I51: 1202.340082 | J51: 81.5127749 | K51: 159.8772606 | L51: 144.5075034 | M51: 387.7489768 | N51: 1064.732333 | O51: 1992.836562 | P51: 3347980.32 | Q51: 10962.00923 | S51: 0 | T51: 479.2469304
A52: 450 | B52: Hilltown Cooperative Charter Public School | C52: C | D52: East Hampton | E52: 210.3388889 | F52: 634.8331053 | G52: 949.8623914 | H52: 5429.00234 | I52: 1347.789615 | J52: 55.86361163 | K52: 356.0313568 | L52: 428.546573 | M52: 492.4746467 | N52: 586.9703442 | O52: 2914.995811 | P52: 2775709.76 | Q52: 13196.36979 | S52: 1432.903405 | T52: 97.7343282
A53: 453 | B53: Holyoke Community Charter School | C53: C | D53: Holyoke | E53: 700.8666667 | F53: 770.4518216 | G53: 2624.210977 | H53: 3730.930752 | I53: 682.1644726 | J53: 131.076843 | K53: 701.328831 | L53: 216.2665272 | M53: 2121.804433 | N53: 943.4661847 | O53: 2188.868544 | P53: 9889627.73 | Q53: 14110.56939 | S53: 0 | T53: 826.5694854
A54: 435 | B54: Innovation Academy Charter School | C54: C | D54: Tyngsborough | E54: 784.1693182 | F54: 1254.428064 | G54: 852.6207089 | H54: 4818.894227 | I54: 543.0689395 | J54: 114.6142777 | K54: 133.603799 | L54: 378.1275206 | M54: 1308.212367 | N54: 905.0341343 | O54: 2645.779364 | P54: 10158430 | Q54: 12954.3834 | S54: 0 | T54: 1202.098805
A55: 463 | B55: KIPP Academy Boston Charter School | C55: C | D55: Boston | E55: 429.7557792 | F55: 1431.595431 | G55: 2217.458045 | H55: 4690.524474 | I55: 522.6061193 | J55: 385.8819544 | K55: 974.3999273 | L55: 664.1010635 | M55: 2249.375219 | N55: 580.6949251 | O55: 4677.000304 | P55: 7904772 | Q55: 18393.63746 | S55: 2332.196677 | T55: 288.6383523
A56: 429 | B56: KIPP Academy Lynn Charter School | C56: C | D56: Lynn | E56: 1021.994197 | F56: 2368.16326 | G56: 2173.755003 | H56: 4814.946125 | I56: 446.6708335 | J56: 140.0281923 | K56: 1335.062375 | L56: 662.0487687 | M56: 1199.19174 | N56: 957.2177636 | O56: 3120.439439 | P56: 17596209.11 | Q56: 17217.5235 | S56: 1251.405344 | T56: 270.6013407
A57: 454 | B57: Lawrence Family Development Charter School | C57: C | D57: Lawrence | E57: 697.8250581 | F57: 1175.058119 | G57: 872.9824086 | H57: 4465.484528 | I57: 1204.357726 | J57: 50.18163162 | K57: 362.8531207 | L57: 231.2255746 | M57: 1699.140761 | N57: 1314.383869 | O57: 1779.202374 | P57: 9179798 | Q57: 13154.87011 | S57: 1540.85897 | T57: 192.0424015
A58: 3503 | B58: Lowell Collegiate Charter School | C58: C | D58: Lowell | E58: 499.1555556 | F58: 955.1193905 | G58: 2306.06026 | H58: 2541.950472 | I58: 665.3216543 | J58: 35.81090063 | K58: 766.9444439 | L58: 360.1701474 | M58: 1111.685173 | N58: 566.1780518 | O58: 2816.933488 | P58: 6052847.11 | Q58: 12126.17398 | S58: 1523.050002 | T58: 72.40189876
A59: 456 | B59: Lowell Community Charter Public School | C59: C | D59: Lowell | E59: 816.1513514 | F59: 2170.523013 | G59: 927.9267733 | H59: 4278.505738 | I59: 1309.840826 | J59: 79.0277775 | K59: 466.8335712 | L59: 408.8421093 | M59: 1295.070796 | N59: 1327.445698 | O59: 2473.464336 | P59: 12028014.74 | Q59: 14737.48064 | S59: 690.9341987 | T59: 613.7267054
A60: 458 | B60: Lowell Middlesex Academy Charter School | C60: C | D60: Lowell | E60: 106.2 | F60: 1185.253955 | G60: 2117.034652 | H60: 7719.345574 | I60: 0 | J60: 29.97175141 | K60: 1170.687382 | L60: 119.3514124 | M60: 1081.472787 | N60: 901.265725 | O60: 2979.868173 | P60: 1837711.5 | Q60: 17304.25141 | S60: 0 | T60: 743.1638418
A61: 464 | B61: Marblehead Community Charter Public School | C61: C | D61: Marblehead | E61: 230.0494505 | F61: 1902.95786 | G61: 174.1353431 | H61: 5370.561099 | I61: 797.1611737 | J61: 69.03289689 | K61: 606.9615018 | L61: 184.9889226 | M61: 1175.383159 | N61: 823.393664 | O61: 4202.765048 | P61: 3521445.31 | Q61: 15307.34067 | S61: 0 | T61: 407.9896726
A62: 466 | B62: Martha's Vineyard Public Charter School | C62: C | D62: West Tisbury | E62: 178.6111111 | F62: 2092.171073 | G62: 1968.707309 | H62: 9384.936858 | I62: 1605.549611 | J62: 129.2136858 | K62: 429.385381 | L62: 638.4485226 | M62: 2763.915397 | N62: 1071.669051 | O62: 4065.79409 | P62: 4313421 | Q62: 24149.79098 | S62: 604.6656299 | T62: 126.8790047
A63: 492 | B63: Martin Luther King, Jr. Charter School of Excellence | C63: C | D63: Springfield | E63: 361.9351351 | F63: 1226.960985 | G63: 299.714754 | H63: 5662.572436 | I63: 2358.27975 | J63: 243.1468279 | K63: 678.5808731 | L63: 291.9142403 | M63: 2437.779852 | N63: 854.9940582 | O63: 3349.287323 | P63: 6298840.8 | Q63: =SUM(F63:O63) -> 17403.2311 | S63: 974.481242 | T63: 298.6474357
A64: 469 | B64: Match Charter Public School | C64: C | D64: Boston | E64: 1040.271321 | F64: 956.1755478 | G64: 1979.844065 | H64: 6668.203632 | I64: 606.3158595 | J64: 289.0813137 | K64: 899.7460386 | L64: 719.7824116 | M64: 2434.877276 | N64: 1338.322005 | O64: 2271.652551 | P64: 18895489 | Q64: 18164.0007 | S64: 21.71452731 | T64: 2407.940073
A65: 470 | B65: Mystic Valley Regional Charter School | C65: C | D65: Malden | E65: 1489.782898 | F65: 998.0997913 | G65: 299.2630674 | H65: 3860.751124 | I65: 379.5821529 | J65: 271.6630728 | K65: 649.0059733 | L65: 617.2865865 | M65: 1094.665539 | N65: 1172.562795 | O65: 2238.591276 | P65: 17253878 | Q65: 11581.47138 | S65: 230.3073826 | T65: 736.1669953
A66: 444 | B66: Neighborhood House Charter School | C66: C | D66: Boston | E66: 395.9666667 | F66: 2759.690403 | G66: 971.4327805 | H66: 6320.971462 | I66: 987.9821534 | J66: 539.4558885 | K66: 697.0226871 | L66: 1021.559197 | M66: 1532.010119 | N66: 1338.130112 | O66: 3919.202399 | P66: 7953963.47 | Q66: 20087.4572 | S66: 741.4667565 | T66: 42.65510565
A67: 467 | B67: New Liberty Charter School of Salem | C67: =VLOOKUP(A67, FACTS, 3, FALSE) -> HM | D67: =VLOOKUP(A67, FACTS, 6, FALSE) -> Salem | E67: =VLOOKUP(A67, FTE, 2, FALSE) -> 43.41718184 | F67: 1618.230318 | G67: 2620.18388 | H67: 8300.547035 | I67: 987.4535421 | J67: 604.3704102 | K67: 822.485442 | L67: 1913.689385 | M67: 967.3589629 | N67: 852.8519915 | O67: 484.0203603 | P67: 832359.1 | Q67: =SUM(F67:O67) -> 19171.19133 | S67: 5182.15302 | T67: 1423.008067
A68: 3501 | B68: Paulo Freire Social Justice Charter School | C68: C | D68: Holyoke | E68: 311.2611111 | F68: 1185.685577 | G68: 1232.857194 | H68: 5094.731669 | I68: 2610.324486 | J68: 32.79574491 | K68: 438.5480393 | L68: 225.2173095 | M68: 2271.993753 | N68: 511.247934 | O68: 2278.531062 | P68: 4943428.04 | Q68: 15881.93277 | S68: 2427.081229 | T68: 0
A69: 493 | B69: Phoenix Academy Charter Public High School, Chelsea | C69: C | D69: Chelsea | E69: 157.7365591 | F69: 9635.299567 | G69: 6135.767417 | H69: 5898.307438 | I69: 2645.258476 | J69: 1168.659067 | K69: 203.8836157 | L69: 354.1445959 | M69: 2281.866182 | N69: 1078.513446 | O69: 6542.906449 | P69: 5669778.51 | Q69: 35944.60625 | S69: 2548.337571 | T69: 1476.994308
A70: 3508 | B70: Phoenix Academy Public Charter High School, Springfield | C70: =VLOOKUP(A70, FACTS, 3, FALSE) -> C | D70: =VLOOKUP(A70, FACTS, 6, FALSE) -> Springfield | E70: =VLOOKUP(A70, FTE, 2, FALSE) -> 168.7619048 | F70: =VLOOKUP($A70&100, FE, 12, FALSE)/$E70 -> 3210.501036 | G70: =VLOOKUP($A70&210, FE, 12, FALSE)/$E70 -> 1724.260285 | H70: =VLOOKUP($A70&220, FE, 12, FALSE)/$E70 -> 2969.535872 | I70: =VLOOKUP($A70&230, FE, 12, FALSE)/$E70 -> 1452.799317 | J70: =VLOOKUP($A70&240, FE, 12, FALSE)/$E70 -> 88.02341986 | K70: =VLOOKUP($A70&260, FE, 12, FALSE)/$E70 -> 122.6843821 | L70: =VLOOKUP($A70&250, FE, 12, FALSE)/$E70 -> 344.8222517 | M70: =VLOOKUP($A70&300, FE, 12, FALSE)/$E70 -> 994.2202314 | N70: =VLOOKUP($A70&400, FE, 12, FALSE)/$E70 -> 1056.669692 | O70: =VLOOKUP($A70&500, FE, 12, FALSE)/$E70 -> 2033.462472 | P70: =VLOOKUP($A70&800,FE,12,FALSE)-VLOOKUP($A70&700,FE,12,FALSE)-VLOOKUP($A70&600,FE,12,FALSE) -> 2362156.83 | Q70: 13996.97896 | S70: 2247.977709 | T70: 386.224605
A71: 494 | B71: Pioneer Charter School of Science | C71: C | D71: Everett | E71: 350.6938776 | F71: 2544.40775 | G71: 720.2020798 | H71: 4765.004857 | I71: 485.4107554 | J71: 138.6847137 | K71: 761.4615968 | L71: 536.6142726 | M71: 1325.229979 | N71: 906.3017929 | O71: 3377.554345 | P71: 5457102.59 | Q71: =SUM(F71:O71) -> 15560.87214 | S71: 964.3111319 | T71: 0
A72: 3506 | B72: Pioneer Charter School of Science II | C72: C | D72: Saugus | E72: 265.9343434 | F72: 1857.381576 | G72: 663.0204573 | H72: 4667.52821 | I72: 130.5545931 | J72: 49.75528858 | K72: 667.376871 | L72: 871.2770115 | M72: 1437.886905 | N72: 640.8411858 | O72: 2529.184615 | P72: 3594051.25 | Q72: 13514.80671 | S72: 1882.126443 | T72: 0
A73: 497 | B73: Pioneer Valley Chinese Immersion Charter School | C73: C | D73: Hadley | E73: 435.1722222 | F73: 814.8351662 | G73: 786.3775823 | H73: 6120.890038 | I73: 552.2453128 | J73: 121.0724566 | K73: 412.4664692 | L73: 352.5914619 | M73: 883.4417281 | N73: 636.2752397 | O73: 2506.04711 | P73: 5738286.48 | Q73: 13186.24257 | S73: =VLOOKUP($A73&740, FE, 12, FALSE)/$E73 -> 740.9710076 | T73: =(VLOOKUP($A73&700, FE, 12, FALSE)-VLOOKUP($A73&740, FE, 12, FALSE)-VLOOKUP($A73&725, FE, 12, FALSE))/$E73 -> 637.3191942
A74: 479 | B74: Pioneer Valley Performing Arts Charter Public School | C74: C | D74: South Hadley | E74: 400.5626263 | F74: 1758.099617 | G74: 687.8699657 | H74: 4902.319566 | I74: 785.4951495 | J74: 98.54389155 | K74: 280.7226452 | L74: 496.9834601 | M74: 998.0636579 | N74: 892.7268211 | O74: 3517.749554 | P74: 5775542 | Q74: 14418.57433 | S74: 750.7590082 | T74: 189.2912494
A75: 487 | B75: Prospect Hill Academy Charter School | C75: C | D75: Somerville (K-6); Cambridge (7-12) | E75: 1151.127778 | F75: 2225.084868 | G75: 2090.416065 | H75: 5842.518207 | I75: 1528.513197 | J75: 103.8955034 | K75: 787.0281801 | L75: 381.7491059 | M75: 699.2473082 | N75: 821.160794 | O75: 4001.832889 | P75: 21274506 | Q75: 18481.44612 | S75: 1334.616425 | T75: 1163.059415
A76: 483 | B76: Rising Tide Charter Public School | C76: C | D76: Plymouth | E76: 624.5555556 | F76: 1034.466741 | G76: 1288.609 | H76: 5463.676785 | I76: 135.9627646 | J76: 10.62240171 | K76: 90.83363281 | L76: 111.3139246 | M76: 980.6170397 | N76: 448.6594627 | O76: 2737.280495 | P76: 7683308.83 | Q76: 12302.04225 | S76: 637.6003327 | T76: 3182.445953
A77: 482 | B77: River Valley Charter School | C77: C | D77: Newburyport | E77: 287.9388889 | F77: 1379.549673 | G77: 772.2298327 | H77: 4622.143973 | I77: 1690.712921 | J77: 224.0336491 | K77: 635.8363079 | L77: 261.5798105 | M77: 674.7994366 | N77: 553.7911208 | O77: 2762.867507 | P77: 3909503 | Q77: 13577.54423 | S77: 0 | T77: 1386.915819
A78: 484 | B78: Roxbury Preparatory Charter School | C78: C | D78: Boston | E78: 1136.407621 | F78: 2990.906553 | G78: 1489.045805 | H78: 4961.505799 | I78: 260.3537627 | J78: 338.4410602 | K78: 1229.242021 | L78: 546.3743719 | M78: 1001.164529 | N78: 698.5521617 | O78: 1037.679595 | P78: 16538442 | Q78: 14553.26566 | S78: 1207.879967 | T78: 817.7057097
A79: 441 | B79: Sabis International Charter School | C79: C | D79: Springfield | E79: 1565.716667 | F79: 1344.092545 | G79: 1045.92759 | H79: 3291.949405 | I79: 829.9529843 | J79: 134.2063379 | K79: 753.6512289 | L79: 579.768549 | M79: 2090.819201 | N79: 775.2849962 | O79: 2104.381399 | P79: 20276084.44 | Q79: 12950.03424 | S79: 41.51453541 | T79: 2184.83586
A80: 485 | B80: Salem Academy Charter School | C80: C | D80: Salem | E80: 419.1589744 | F80: 1290.467419 | G80: 1429.352672 | H80: 5954.440088 | I80: 302.119262 | J80: 58.94899432 | K80: 357.294032 | L80: 843.1955931 | M80: 795.8794167 | N80: 282.6373936 | O80: 3156.370449 | P80: 6065526 | Q80: 14470.70532 | S80: 1558.05563 | T80: 160.0061173
A81: 486 | B81: Seven Hills Charter Public School | C81: C | D81: Worcester | E81: 686.388601 | F81: 1195.27626 | G81: 899.4831777 | H81: 4453.638938 | I81: 957.9092645 | J81: 162.7969926 | K81: 437.5713693 | L81: 663.0777366 | M81: 2317.703117 | N81: 785.2446838 | O81: 2688.150702 | P81: 9994403 | Q81: 14560.85224 | S81: 1185.62575 | T81: 0
A82: 477 | B82: Silver Hill Horace Mann Charter School | C82: HM | D82: Haverhill | E82: 579.0333333 | F82: 37.55224224 | G82: 350.6792931 | H82: 4656.341604 | I82: 582.6797536 | J82: 36.2759772 | K82: 135.270278 | L82: 0 | M82: 214.2467331 | N82: 390.1157101 | O82: 1465.425134 | P82: 4556174 | Q82: 7868.586725 | S82: 0 | T82: 0
A83: 474 | B83: Sizer School, A North Central Charter Essential School | C83: C | D83: Fitchburg | E83: 352.2666667 | F83: 1523.698126 | G83: 1091.862547 | H83: 5521.951136 | I83: 504.4164175 | J83: 46.42233157 | K83: 329.1917487 | L83: 847.1906321 | M83: 922.0268073 | N83: 951.7811696 | O83: 2917.519928 | P83: 5162841.7 | Q83: 14656.06084 | S83: 70.96896291 | T83: 47.12032551
A84: 488 | B84: South Shore Charter Public School | C84: C | D84: Norwell | E84: 600.3186813 | F84: 1231.171914 | G84: 700.0781636 | H84: 6110.111369 | I84: 749.8667191 | J84: 108.3074741 | K84: 559.3920537 | L84: 437.890754 | M84: 521.0482528 | N84: 843.7052115 | O84: 3174.5822 | P84: 8666293 | Q84: 14436.15411 | S84: 897.5449487 | T84: 249.5274671
A85: 3510 | B85: Springfield Preparatory Charter School | C85: C | D85: Springfield | E85: 107.6594595 | F85: 2568.053949 | G85: 1410.595602 | H85: 4098.975531 | I85: 445.1677562 | J85: 511.553005 | K85: 1891.754622 | L85: 365.7647939 | M85: 2866.481789 | N85: 165.3974494 | O85: 627.6994176 | P85: 1609664.37 | Q85: 14951.44391 | S85: 1496.440729 | T85: 149.2688156
A86: 489 | B86: Sturgis Charter Public School | C86: =VLOOKUP(A86, FACTS, 3, FALSE) -> C | D86: =VLOOKUP(A86, FACTS, 6, FALSE) -> Hyannis | E86: =VLOOKUP(A86, FTE, 2, FALSE) -> 802.9502762 | F86: 1033.319278 | G86: 933.5908115 | H86: 7211.879952 | I86: 418.2114509 | J86: 0 | K86: 222.8282439 | L86: 843.6786437 | M86: 858.9149545 | N86: 456.6198068 | O86: 3429.557323 | P86: 12372340 | Q86: =SUM(F86:O86) -> 15408.60047 | S86: 1598.106431 | T86: 68.50984629
A87: 480 | B87: UP Academy Charter School of Boston | C87: HM | D87: Boston | E87: 463.9680851 | F87: 1223.932331 | G87: 1937.663847 | H87: 5676.551788 | I87: 703.3740908 | J87: 108.9798234 | K87: 496.1386082 | L87: 422.0206007 | M87: 2914.540037 | N87: 1384.469192 | O87: 1133.625107 | P87: 7424090.398 | Q87: 16001.29542 | S87: 0 | T87: 89.70660124
A88: 3505 | B88: UP Academy Charter School of Dorchester | C88: HM | D88: Boston | E88: 663.6432432 | F88: 1187.589157 | G88: 1471.123273 | H88: 5410.423984 | I88: 712.482399 | J88: 59.88524769 | K88: 563.8033293 | L88: 298.7105678 | M88: 2566.800788 | N88: 1244.554854 | O88: 1057.55833 | P88: 9671227.81 | Q88: 14572.93193 | S88: 0 | T88: 7.666769837
A89: 498 | B89: Veritas Preparatory Charter School | C89: C | D89: Springfield | E89: 300.2756757 | F89: =VLOOKUP($A89&100, FE, 12, FALSE)/$E89 -> 2109.565314 | G89: 931.6614786 | H89: 5084.338971 | I89: 525.2802101 | J89: 154.7529279 | K89: 1258.200682 | L89: 777.2921649 | M89: 2104.265351 | N89: 1058.732777 | O89: 2165.060252 | P89: 4855202.48 | Q89: 16169.15013 | S89: 1250.628041 | T89: 0
A90: C | B90: Commonwealth Charter Statewide Totals | C90: C | E90: =SUMIF(C9:C89,"C",E9:E89) -> 36346.68699 | F90: =VLOOKUP($A90&100, FE, 12, FALSE)/$E90 -> 1661.572976 | G90: 1274.814413 | H90: 4957.664247 | I90: 826.3080627 | J90: 172.5874281 | K90: 618.4917669 | L90: 508.1330914 | M90: 1608.61542 | N90: 870.7451854 | O90: 2780.829268 | P90: 555368721.5 | Q90: =SUM(F90:O90) -> 15279.76186 | S90: 849.297344 | T90: 860.9011732
A91: HM | B91: Horace Mann Charter Statewide Totals | C91: HM | E91: =SUMIF(C9:C89,"HM",E9:E89) -> 3705.238415 | F91: =VLOOKUP($A91&100, FE, 12, FALSE)/$E91 -> 1085.187578 | G91: 1140.473495 | H91: 5886.756289 | I91: 823.305717 | J91: 101.6349335 | K91: 347.6566433 | L91: 442.2393855 | M91: 1657.205791 | N91: 752.9789064 | O91: 1276.20731 | P91: 50071280.47 | Q91: 13513.64605 | S91: 187.5076856 | T91: 34.64986206
A92: ALL | B92: All Charter Schools Statewide Totals | C92: ALL | E92: =SUM(E90:E91) -> 40051.9254 | F92: =VLOOKUP($A92&100, FE, 12, FALSE)/$E92 -> 1608.251062 | G92: 1262.386418 | H92: 5043.615359 | I92: 826.0303131 | J92: 166.0235512 | K92: 593.4365744 | L92: 502.0372074 | M92: 1613.110558 | N92: 859.8505246 | O92: 2641.635383 | P92: 605440002 | Q92: 15116.37695 | S92: 788.0746077 | T92: 784.4639465
F93: ----------------------------- Operating Expenditures Per Pupil In The Charter School -------------------------------------------
A94: Notes: | B94: 1. These figures do not include facilities lease costs -- see data presented at right.
B95: 2. The majority of charter schools lease their facilities. In many cases, Horace Mann charter schools are provided their facilities in kind by their host districts; some report a monetary figure for these in-kind revenues and expenditures, some do not.
B96: 3. Capital facilities costs include facilities-related long-term interest; depreciation of equipment, buildings, and grounds; bad debt or loss on disposal of assets; and other costs related to capital facilities acquisition.
B97: Charter schools that report significant costs in this category either own their buildings or have invested heavily in leasehold improvements.

Sheet 5. AVGTCHSAL
A1: Massachusetts Department of Elementary and Secondary Education
A2: FY16 Average Teacher Salaries
A3: =Index!B3 -> Last Updated: May 2017
A5: Return to Index
A6: Average teacher salaries are calculated from data submitted on the Charter School End of Year Financial Report. The calculation includes professional teachers paid from all funding sources, including tuition revenue, federal and state grants, and private grants/contributions. Beginning in FY08, the Educator Personnel Management Information System (EPIMS) was the source for the total number of theachers, which is shown in full-time equivalents (e.g., a teacher who worked half-time would count as .5 FTE's).
A8: LEA | B8: Charter School | C8: Type | D8: Location | E8: Total Salaries | F8: Total Teachers | G8: Average Salaries
A9: 445 | B9: Abby Kelley Foster Charter Public School | C9: =VLOOKUP(A9, FACTS, 3, FALSE) -> C | D9: =VLOOKUP(A9, FACTS, 6, FALSE) -> Worcester | E9: =VLOOKUP($A9&220, FE, 12, FALSE) -> 6512694.24 | F9: =VLOOKUP(A9, TEACHEREPIMS, 2, FALSE) -> 115.26 | G9: =E9/F9 -> 56504.3748
A10: 412 | B10: Academy of the Pacific Rim Charter Public School | C10: =VLOOKUP(A10, FACTS, 3, FALSE) -> C | D10: Boston | E10: 2723837 | F10: 40.58 | G10: =E10/F10 -> 67122.64662
A11: 430 | B11: Advanced Math and Science Academy Charter School | C11: C | D11: Marlborough | E11: 4823002.71 | F11: 75.71 | G11: 63703.64166
A12: 409 | B12: Alma del Mar Charter School | C12: C | D12: New Bedford | E12: 1258722.5 | F12: 23.92 | G12: 52622.17809
A13: 3509 | B13: Argosy Collegiate Charter School | C13: C | D13: Fall River | E13: 739390.74 | F13: 16.5 | G13: 44811.56
A14: 491 | B14: Atlantis Charter School | C14: C | D14: Fall River | E14: 3806182.35 | F14: 73.94 | G14: 51476.63443
A15: 427 | B15: Barnstable Community Horace Mann Charter Public School | C15: HM | D15: Barnstable | E15: 1759448 | F15: 25.61 | G15: 68701.60094
A16: 3502 | B16: Baystate Academy Charter Public School | C16: C | D16: Springfield | E16: 1226261.1 | F16: 25.35 | G16: 48373.21893
A17: 420 | B17: Benjamin Banneker Charter Public School | C17: C | D17: Cambridge | E17: 1649292.52 | F17: 20.02 | G17: 82382.24376
A18: 447 | B18: Benjamin Franklin Classical Charter Public School | C18: C | D18: Franklin | E18: 1843606.5 | F18: 29.73 | G18: 62011.65489
A19: 3511 | B19: Bentley Academy Charter School | C19: HM | D19: Salem | E19: 1511615 | F19: 25.48 | G19: 59325.54945
A20: 414 | B20: Berkshire Arts and Technology Charter Public School | C20: C | D20: Adams | E20: 1443301 | F20: 31.51 | G20: 45804.53824
A21: 449 | B21: Boston Collegiate Charter School | C21: C | D21: Boston | E21: 4077704.49 | F21: 59.14 | G21: 68950.02519
A22: 424 | B22: Boston Day and Evening Academy Charter School | C22: HM | D22: Boston | E22: 2259530 | F22: 20.75 | G22: 108893.012
A23: 411 | B23: Boston Green Academy Horace Mann Charter School | C23: HM | D23: Boston | E23: 3371155 | F23: 40.59 | G23: 83053.83099
A24: 416 | B24: Boston Preparatory Charter Public School | C24: C | D24: Boston | E24: 2253497 | F24: 32.32 | G24: 69724.53589
A25: 481 | B25: Boston Renaissance Charter Public School | C25: C | D25: Boston | E25: 5323856.1 | F25: 77 | G25: 69140.98831
A26: 417 | B26: Bridge Boston Charter School | C26: C | D26: Boston | E26: 1313799.77 | F26: 16.15 | G26: 81349.83096
A27: 457 | B27: Brooke Charter School East Boston | C27: C | D27: Boston | E27: 2595228.88 | F27: =VLOOKUP(A27, TEACHEREPIMS, 4, FALSE) -> 40 | G27: 64880.722
A28: 443 | B28: Brooke Charter School Mattapan | C28: C | D28: Boston | E28: 2568406.32 | F28: =VLOOKUP(A28, TEACHEREPIMS, 4, FALSE) -> 41 | G28: 62644.05659
A29: 428 | B29: Brooke Charter School Roslindale | C29: C | D29: Boston | E29: 2739815.36 | F29: 39 | G29: 70251.6759
A30: 432 | B30: Cape Cod Lighthouse Charter School | C30: C | D30: Harwich | E30: 1593389 | F30: 20.43 | G30: 77992.60891
A31: 418 | B31: Christa McAuliffe Charter School | C31: C | D31: Framingham | E31: 2331617 | F31: 38.75 | G31: 60170.76129
A32: 437 | B32: City on a Hill Charter Public School Circuit Street | C32: C | D32: Boston | E32: 1627553.63 | F32: 24.52 | G32: 66376.57545
A33: 3504 | B33: City on a Hill Charter Public School Dudley Square | C33: C | D33: Boston | E33: 1236111.51 | F33: 20.2 | G33: 61193.63911
A34: 3507 | B34: City On A Hill Charter Public School New Bedford | C34: C | D34: New Bedford | E34: 662008.52 | F34: 11 | G34: 60182.59273
A35: 438 | B35: Codman Academy Charter Public School | C35: C | D35: Boston | E35: 1750937 | F35: 29.42 | G35: 59515.19375
A36: 436 | B36: Community Charter School of Cambridge | C36: C | D36: Cambridge | E36: 2372682 | F36: 30.51 | G36: 77767.35497
A37: 426 | B37: Community Day Charter Public School - Gateway | C37: C | D37: Lawrence | E37: 1401598 | F37: 23.5 | G37: 59642.46809
A38: 440 | B38: Community Day Charter Public School - Prospect | C38: =VLOOKUP(A38, FACTS, 3, FALSE) -> C | D38: =VLOOKUP(A38, FACTS, 6, FALSE) -> Lawrence | E38: =VLOOKUP($A38&220, FE, 12, FALSE) -> 2352928 | F38: =VLOOKUP(A38, TEACHEREPIMS, 2, FALSE) -> 42 | G38: 56022.09524
A39: 431 | B39: Community Day Charter Public School - R. Kingman Webster | C39: C | D39: Lawrence | E39: 1341414 | F39: 24.52 | G39: 54706.93312
A40: 439 | B40: Conservatory Lab Charter School | C40: C | D40: Boston | E40: 1602562.06 | F40: 13.99 | G40: 114550.5404
A41: 475 | B41: Dorchester Collegiate Academy Charter School | C41: C | D41: Boston | E41: 1461486 | F41: =VLOOKUP(A41, TEACHEREPIMS, 4, FALSE) -> 20.82 | G41: 70196.2536
A42: 407 | B42: Dudley Street Neighborhood Charter School | C42: HM | D42: Boston | E42: 1197453 | F42: =VLOOKUP(A42, TEACHEREPIMS, 2, FALSE) -> 18.21 | G42: 65757.99012
A43: 452 | B43: Edward M. Kennedy Academy for Health Careers: A Horace Mann Charter Public School | C43: HM | D43: Boston | E43: 2431741 | F43: 23.25 | G43: 104591.0108
A44: 410 | B44: Excel Academy Charter School | C44: C | D44: Boston/Chelsea | E44: 4324718.939 | F44: 70.74 | G44: 61135.41051
A45: 413 | B45: Four Rivers Charter Public School | C45: C | D45: Greenfield | E45: 1197745 | F45: 21.75 | G45: 55068.73563
A46: 446 | B46: Foxborough Regional Charter School | C46: C | D46: Foxborough | E46: 4345724.04 | F46: 80.8 | G46: 53783.71337
A47: 478 | B47: Francis W. Parker Charter Essential School | C47: C | D47: Devens | E47: 2107996.236 | F47: 37.56 | G47: 56123.43546
A48: 496 | B48: Global Learning Charter Public School | C48: C | D48: New Bedford | E48: 2362089 | F48: 31.18 | G48: 75756.54266
A49: 499 | B49: Hampden Charter School of Science | C49: C | D49: Chicopee | E49: 1678789.08 | F49: 31.32 | G49: 53601.18391
A50: 419 | B50: Helen Y Davis Leadership Academy Charter Public School | C50: C | D50: Boston | E50: 1419114 | F50: 16 | G50: 88694.625
A51: 455 | B51: Hill View Montessori Charter Public School | C51: C | D51: Haverhill | E51: 1061096.3 | F51: 17.75 | G51: 59780.07324
A52: 450 | B52: Hilltown Cooperative Charter Public School | C52: C | D52: East Hampton | E52: 1141930.32 | F52: 20.06 | G52: 56925.73878
A53: 453 | B53: Holyoke Community Charter School | C53: C | D53: Holyoke | E53: 2614885 | F53: 53.68 | G53: 48712.46274
A54: 435 | B54: Innovation Academy Charter School | C54: C | D54: Tyngsborough | E54: 3778829 | F54: 78.15 | G54: 48353.53807
A55: 463 | B55: KIPP Academy Boston Charter School | C55: C | D55: Boston | E55: 2015780 | F55: 38.5 | G55: 52357.92208
A56: 429 | B56: KIPP Academy Lynn Charter School | C56: C | D56: Lynn | E56: 4920847 | F56: 88.33 | G56: 55709.80414
A57: 454 | B57: Lawrence Family Development Charter School | C57: C | D57: Lawrence | E57: 3116127 | F57: 57.47 | G57: 54221.80268
A58: 3503 | B58: Lowell Collegiate Charter School | C58: C | D58: Lowell | E58: 1268828.7 | F58: 29.1 | G58: 43602.36082
A59: 456 | B59: Lowell Community Charter Public School | C59: C | D59: Lowell | E59: 3491908.24 | F59: 62.65 | G59: 55736.76361
A60: 458 | B60: Lowell Middlesex Academy Charter School | C60: C | D60: Lowell | E60: 819794.5 | F60: 11 | G60: 74526.77273
A61: 464 | B61: Marblehead Community Charter Public School | C61: C | D61: Marblehead | E61: 1235494.63 | F61: 20.65 | G61: 59830.24843
A62: 466 | B62: Martha's Vineyard Public Charter School | C62: C | D62: West Tisbury | E62: 1676254 | F62: 16.93 | G62: 99010.86828
A63: 492 | B63: Martin Luther King, Jr. Charter School of Excellence | C63: C | D63: Springfield | E63: 2049483.92 | F63: 36.72 | G63: 55813.83224
A64: 469 | B64: Match Charter Public School | C64: C | D64: Boston | E64: 6936741 | F64: 67.31 | G64: 103056.6186
A65: 470 | B65: Mystic Valley Regional Charter School | C65: C | D65: Malden | E65: 5751681 | F65: 106.74 | G65: 53884.96346
A66: 444 | B66: Neighborhood House Charter School | C66: C | D66: Boston | E66: 2502894 | F66: 36.5 | G66: 68572.43836
A67: 467 | B67: New Liberty Charter School of Salem | C67: HM | D67: Salem | E67: 360386.36 | F67: =VLOOKUP(A67, TEACHEREPIMS, 4, FALSE) -> 4.49 | G67: 80264.22272
A68: 3501 | B68: Paulo Freire Social Justice Charter School | C68: =VLOOKUP(A68, FACTS, 3, FALSE) -> C | D68: =VLOOKUP(A68, FACTS, 6, FALSE) -> Holyoke | E68: =VLOOKUP($A68&220, FE, 12, FALSE) -> 1585791.84 | F68: =VLOOKUP(A68, TEACHEREPIMS, 2, FALSE) -> 38.28 | G68: 41426.11912
A69: 493 | B69: Phoenix Academy Charter Public High School, Chelsea | C69: C | D69: Chelsea | E69: 930378.72 | F69: 16.16 | G69: =E69/F69 -> 57572.94059
A70: 3508 | B70: Phoenix Academy Public Charter High School, Springfield | C70: C | D70: Springfield | E70: 501144.53 | F70: 11.4 | G70: 43960.04649
A71: 494 | B71: Pioneer Charter School of Science | C71: C | D71: Everett | E71: 1671058.03 | F71: 33.31 | G71: 50166.8577
A72: 3506 | B72: Pioneer Charter School of Science II | C72: C | D72: Saugus | E72: 1241256.05 | F72: 28.44 | G72: 43644.7275
A73: 497 | B73: Pioneer Valley Chinese Immersion Charter School | C73: C | D73: Hadley | E73: 2663641.32 | F73: 55.3 | G73: 48167.11248
A74: 479 | B74: Pioneer Valley Performing Arts Charter Public School | C74: C | D74: South Hadley | E74: 1963686 | F74: 37.28 | G74: 52673.98069
A75: 487 | B75: Prospect Hill Academy Charter School | C75: C | D75: Somerville (K-6); Cambridge (7-12) | E75: 6725485 | F75: 101.36 | G75: 66352.45659
A76: 483 | B76: Rising Tide Charter Public School | C76: C | D76: Plymouth | E76: 3412369.69 | F76: 41.47 | G76: 82285.25898
A77: 482 | B77: River Valley Charter School | C77: C | D77: Newburyport | E77: 1330895 | F77: 19.44 | G77: 68461.67695
A78: 484 | B78: Roxbury Preparatory Charter School | C78: C | D78: Boston | E78: 5638293 | F78: 95.14 | G78: 59263.11751
A79: 441 | B79: Sabis International Charter School | C79: =VLOOKUP(A79, FACTS, 3, FALSE) -> C | D79: =VLOOKUP(A79, FACTS, 6, FALSE) -> Springfield | E79: 5154260.05 | F79: =VLOOKUP(A79, TEACHEREPIMS, 2, FALSE) -> 65.98 | G79: =E79/F79 -> 78118.52152
A80: 485 | B80: Salem Academy Charter School | C80: C | D80: Salem | E80: 2495857 | F80: 42.96 | G80: 58097.22998
A81: 486 | B81: Seven Hills Charter Public School | C81: C | D81: Worcester | E81: 3056927 | F81: 52.39 | G81: 58349.43692
A82: 477 | B82: Silver Hill Horace Mann Charter School | C82: HM | D82: Haverhill | E82: 2696177 | F82: 36.44 | G82: 73989.48957
A83: 474 | B83: Sizer School, A North Central Charter Essential School | C83: C | D83: Fitchburg | E83: 1945199.32 | F83: 37.54 | G83: 51816.71071
A84: 488 | B84: South Shore Charter Public School | C84: =VLOOKUP(A84, FACTS, 3, FALSE) -> C | D84: =VLOOKUP(A84, FACTS, 6, FALSE) -> Norwell | E84: 3668014 | F84: =VLOOKUP(A84, TEACHEREPIMS, 2, FALSE) -> 53.3 | G84: =E84/F84 -> 68818.27392
A85: 3510 | B85: Springfield Preparatory Charter School | C85: C | D85: Springfield | E85: 441293.49 | F85: 6.66 | G85: 66260.28378
A86: 489 | B86: Sturgis Charter Public School | C86: C | D86: Hyannis | E86: 5790781 | F86: 72.16 | G86: 80249.18237
A87: 480 | B87: UP Academy Charter School of Boston | C87: HM | D87: Boston | E87: 2633738.863 | F87: 38.37 | G87: 68640.57501
A88: 3505 | B88: UP Academy Charter School of Dorchester | C88: HM | D88: Boston | E88: 3590591.32 | F88: 52.99 | G88: 67759.7909
A89: 498 | B89: Veritas Preparatory Charter School | C89: C | D89: Springfield | E89: 1526703.32 | F89: 23.3 | G89: 65523.74764
A90: C | B90: Commonwealth Charter Statewide Totals | C90: C | E90: 180194670.6 | F90: =SUMIF($C9:$C89,"C",F9:F89) -> 2919.55 | G90: =E90/F90 -> 61720.01526
A91: HM | B91: Horace Mann Charter Statewide Totals | C91: HM | E91: 21811835.54 | F91: =SUMIF($C9:$C89,"HM",F9:F89) -> 286.18 | G91: =E91/F91 -> 76217.19038
A92: ALL | B92: All Charter Schools Statewide Totals | C92: ALL | E92: 202006506.1 | F92: =SUM(F90:F91) -> 3205.73 | G92: =E92/F92 -> 63014.19836

Sheet BAL16 (hidden)
B1: 1 | C1: 2 | D1: 3 | E1: 4 | F1: 5 | G1: 6 | H1: 7 | I1: 8
A2: FY | B2: vlookup | C2: cha_code | D2: cha_type | E2: balance_id | F2: Line_Desc | G2: balance_sch | H2: balance_found | I2: balance_total
A3: 2016 | B3: =C3&E3 -> 4071 | C3: 407 | D3: =VLOOKUP(C3, TYPE, 3, FALSE) -> HM | E3: 1 | F3: Cash and Cash Equivalents | G3: 40517 | H3: 0 | I3: 40517 | J3: =D3&E3 -> HM1
A4: 2016 | B4: =C4&E4 -> 4072 | C4: 407 | D4: HM | E4: 2 | F4: Accounts Receivable net of doubtful accounts | G4: 0 | H4: 0 | I4: 0 | J4: =D4&E4 -> HM2
A5: 2016 | B5: 4073 | C5: 407 | D5: HM | E5: 3 | F5: Grants Receivable - State | G5: 182812 | H5: 0 | I5: 182812 | J5: HM3
A6: 2016 | B6: 4074 | C6: 407 | D6: HM | E6: 4 | F6: Grants Receivable - Federal | G6: 0 | H6: 0 | I6: 0 | J6: HM4
A7: 2016 | B7: 4075 | C7: 407 | D7: HM | E7: 5 | F7: Grants Receivable - Private | G7: 0 | H7: 0 | I7: 0 | J7: HM5
A8: 2016 | B8: 4076 | C8: 407 | D8: HM | E8: 6 | F8: Contributions Receivable | G8: 0 | H8: 0 | I8: 0 | J8: HM6
A9: 2016 | B9: 4077 | C9: 407 | D9: HM | E9: 7 | F9: Due from related parties | G9: 0 | H9: 0 | I9: 0 | J9: HM7
A10: 2016 | B10: 4078 | C10: 407 | D10: HM | E10: 8 | F10: Prepaid Expenses / Inventory | G10: 2115 | H10: 0 | I10: 2115 | J10: HM8
A11: 2016 | B11: 4079 | C11: 407 | D11: HM | E11: 9 | F11: Short-Term Investments | G11: 0 | H11: 0 | I11: 0 | J11: HM9
A12: 2016 | B12: 40710 | C12: 407 | D12: HM | E12: 10 | F12: Deposit (Security, Other) | G12: 0 | H12: 0 | I12: 0 | J12: HM10
A13: 2016 | B13: 40711 | C13: 407 | D13: HM | E13: 11 | F13: Restricted Current Assets | G13: 0 | H13: 0 | I13: 0 | J13: HM11
A14: 2016 | B14: 40712 | C14: 407 | D14: HM | E14: 12 | F14: TOTAL CURRENT ASSETS | G14: 225444 | H14: 0 | I14: 225444 | J14: HM12
A15: 2016 | B15: 40713 | C15: 407 | D15: HM | E15: 13 | F15: - Land and Buildings | G15: 0 | H15: 0 | I15: 0 | J15: HM13
A16: 2016 | B16: 40714 | C16: 407 | D16: HM | E16: 14 | F16: - Building/Leasehold Improvement | G16: 0 | H16: 0 | I16: 0 | J16: HM14
A17: 2016 | B17: 40715 | C17: 407 | D17: HM | E17: 15 | F17: - Furniture and Equipment | G17: 2863 | H17: 0 | I17: 2863 | J17: HM15
A18: 2016 | B18: 40716 | C18: 407 | D18: HM | E18: 16 | F18: - Less Accumulated Depreciation | G18: 0 | H18: 0 | I18: 0 | J18: HM16
A19: 2016 | B19: 40717 | C19: 407 | D19: HM | E19: 17 | F19: Net Capital Assets | G19: 2863 | H19: 0 | I19: 2863 | J19: HM17
A20: 2016 | B20: 40718 | C20: 407 | D20: HM | E20: 18 | F20: Restricted Noncurrent Assets | G20: 0 | H20: 0 | I20: 0 | J20: HM18
A21: 2016 | B21: 40719 | C21: 407 | D21: HM | E21: 19 | F21: Long-Term Investments | G21: 0 | H21: 0 | I21: 0 | J21: HM19
A22: 2016 | B22: 40720 | C22: 407 | D22: HM | E22: 20 | F22: Building Acquisition / Financing Costs / Deferred Expenses | G22: 0 | H22: 0 | I22: 0 | J22: HM20
A23: 2016 | B23: 40721 | C23: 407 | D23: HM | E23: 21 | F23: Long-Term Grants / Contributions Receivable | G23: 0 | H23: 0 | I23: 0 | J23: HM21
A24: 2016 | B24: 40722 | C24: 407 | D24: HM | E24: 22 | F24: TOTAL NONCURRENT ASSETS | G24: 2863 | H24: 0 | I24: 2863 | J24: HM22
A25: 2016 | B25: 40723 | C25: 407 | D25: HM | E25: 23 | F25: TOTAL ASSETS | G25: 228307 | H25: 0 | I25: 228307 | J25: HM23
A26: 2016 | B26: 40724 | C26: 407 | D26: HM | E26: 24 | F26: Accounts Payable | G26: 13853 | H26: 0 | I26: 13853 | J26: HM24
A27: 2016 | B27: 40725 | C27: 407 | D27: HM | E27: 25 | F27: Accrued Expenses / Accrued Payroll | G27: 7642 | H27: 0 | I27: 7642 | J27: HM25
A28: 2016 | B28: 40726 | C28: 407 | D28: HM | E28: 26 | F28: Deferred Revenue | G28: 0 | H28: 0 | I28: 0 | J28: HM26
A29: 2016 | B29: 40727 | C29: 407 | D29: HM | E29: 27 | F29: Due to related parties | G29: 0 | H29: 0 | I29: 0 | J29: HM27
A30: 2016 | B30: 40728 | C30: 407 | D30: HM | E30: 28 | F30: Current Debt Payable | G30: 0 | H30: 0 | I30: 0 | J30: HM28
A31: 2016 | B31: 40729 | C31: 407 | D31: HM | E31: 29 | F31: Current Lease Obligations Payable | G31: 0 | H31: 0 | I31: 0 | J31: HM29
A32: 2016 | B32: 40730 | C32: 407 | D32: HM | E32: 30 | F32: TOTAL CURRENT LIABILITIES | G32: 21495 | H32: 0 | I32: 21495 | J32: HM30
A33: 2016 | B33: 40731 | C33: 407 | D33: HM | E33: 31 | F33: Noncurrent Lease Obligations | G33: 0 | H33: 0 | I33: 0 | J33: HM31
A34: 2016 | B34: 40732 | C34: 407 | D34: HM | E34: 32 | F34: Long-Term Debt | G34: 0 | H34: 0 | I34: 0 | J34: HM32
A35: 2016 | B35: 40733 | C35: 407 | D35: HM | E35: 33 | F35: Deferred Revenue | G35: 0 | H35: 0 | I35: 0 | J35: HM33
A36: 2016 | B36: 40734 | C36: 407 | D36: HM | E36: 34 | F36: TOTAL NONCURRENT LIABILITIES | G36: 0 | H36: 0 | I36: 0 | J36: HM34
A37: 2016 | B37: 40735 | C37: 407 | D37: HM | E37: 35 | F37: TOTAL LIABILITIES | G37: 21495 | H37: 0 | I37: 21495 | J37: HM35
A38: 2016 | B38: 40736 | C38: 407 | D38: HM | E38: 36 | F38: Investment in capital assets (net of related debt) | G38: 2863 | H38: 0 | I38: 2863 | J38: HM36
A39: 2016 | B39: 40737 | C39: 407 | D39: HM | E39: 37 | F39: Temporarily Restricted | G39: 203949 | H39: 0 | I39: 203949 | J39: HM37
A40: 2016 | B40: 40738 | C40: 407 | D40: HM | E40: 38 | F40: Permanently Restricted | G40: 0 | H40: 0 | I40: 0 | J40: HM38
A41: 2016 | B41: 40739 | C41: 407 | D41: HM | E41: 39 | F41: Unrestricted (non-capital) | G41: 0 | H41: 0 | I41: 0 | J41: HM39
A42: 2016 | B42: 40740 | C42: 407 | D42: HM | E42: 40 | F42: TOTAL NET ASSETS | G42: 206812 | H42: 0 | I42: 206812 | J42: HM40
A43: 2016 | B43: 40741 | C43: 407 | D43: HM | E43: 41 | F43: TOTAL LIABILITIES AND NET ASSETS | G43: 228307 | H43: 0 | I43: 228307 | J43: HM41
A44: 2016 | B44: 4091 | C44: 409 | D44: C | E44: 1 | F44: Cash and Cash Equivalents | G44: 1176025 | H44: 6727536 | I44: 7903561 | J44: C1
A45: 2016 | B45: 4092 | C45: 409 | D45: C | E45: 2 | F45: Accounts Receivable net of doubtful accounts | G45: 70396 | H45: 0 | I45: 70396 | J45: C2
A46: 2016 | B46: 4093 | C46: 409 | D46: C | E46: 3 | F46: Grants Receivable - State | G46: 0 | H46: 0 | I46: 0 | J46: C3
A47: 2016 | B47: 4094 | C47: 409 | D47: C | E47: 4 | F47: Grants Receivable - Federal | G47: 0 | H47: 0 | I47: 0 | J47: C4
A48: 2016 | B48: 4095 | C48: 409 | D48: C | E48: 5 | F48: Grants Receivable - Private | G48: 0 | H48: 0 | I48: 0 | J48: C5
A49: 2016 | B49: 4096 | C49: 409 | D49: C | E49: 6 | F49: Contributions Receivable | G49: 0 | H49: 423511 | I49: 423511 | J49: C6
A50: 2016 | B50: 4097 | C50: 409 | D50: C | E50: 7 | F50: Due from related parties | G50: 45786.88 | H50: 0 | I50: 45786.88 | J50: C7
A51: 2016 | B51: 4098 | C51: 409 | D51: C | E51: 8 | F51: Prepaid Expenses / Inventory | G51: 29777.82 | H51: 0 | I51: 29777.82 | J51: C8
A52: 2016 | B52: 4099 | C52: 409 | D52: C | E52: 9 | F52: Short-Term Investments | G52: 0 | H52: 8369.04 | I52: 8369.04 | J52: C9
A53: 2016 | B53: 40910 | C53: 409 | D53: C | E53: 10 | F53: Deposit (Security, Other) | G53: 5000 | H53: 0 | I53: 5000 | J53: C10
A54: 2016 | B54: 40911 | C54: 409 | D54: C | E54: 11 | F54: Restricted Current Assets | G54: 0 | H54: 0 | I54: 0 | J54: C11
A55: 2016 | B55: 40912 | C55: 409 | D55: C | E55: 12 | F55: TOTAL CURRENT ASSETS | G55: 1326985.7 | H55: 7159416.04 | I55: 8486401.74 | J55: C12
A56: 2016 | B56: 40913 | C56: 409 | D56: C | E56: 13 | F56: - Land and Buildings | G56: 0 | H56: 0 | I56: 0 | J56: C13
A57: 2016 | B57: 40914 | C57: 409 | D57: C | E57: 14 | F57: - Building/Leasehold Improvement | G57: 218769.71 | H57: 0 | I57: 218769.71 | J57: C14
A58: 2016 | B58: 40915 | C58: 409 | D58: C | E58: 15 | F58: - Furniture and Equipment | G58: 48137.36 | H58: 0 | I58: 48137.36 | J58: C15
A59: 2016 | B59: 40916 | C59: 409 | D59: C | E59: 16 | F59: - Less Accumulated Depreciation | G59: -227443 | H59: 0 | I59: -227443 | J59: C16
A60: 2016 | B60: 40917 | C60: 409 | D60: C | E60: 17 | F60: Net Capital Assets | G60: 39464.07 | H60: 0 | I60: 39464.07 | J60: C17
A61: 2016 | B61: 40918 | C61: 409 | D61: C | E61: 18 | F61: Restricted Noncurrent Assets | G61: 0 | H61: 268116 | I61: 268116 | J61: C18
A62: 2016 | B62: 40919 | C62: 409 | D62: C | E62: 19 | F62: Long-Term Investments | G62: 0 | H62: 0 | I62: 0 | J62: C19
A63: 2016 | B63: 40920 | C63: 409 | D63: C | E63: 20 | F63: Building Acquisition / Financing Costs / Deferred Expenses | G63: 0 | H63: 20802711 | I63: 20802711 | J63: C20
A64: 2016 | B64: 40921 | C64: 409 | D64: C | E64: 21 | F64: Long-Term Grants / Contributions Receivable | G64: 0 | H64: 0 | I64: 0 | J64: C21
A65: 2016 | B65: 40922 | C65: 409 | D65: C | E65: 22 | F65: TOTAL NONCURRENT ASSETS | G65: 39464.07 | H65: 21070827 | I65: 21110291.07 | J65: C22
A66: 2016 | B66: 40923 | C66: 409 | D66: C | E66: 23 | F66: TOTAL ASSETS | G66: 1366450 | H66: 28230243 | I66: 29596693 | J66: C23
A67: 2016 | B67: 40924 | C67: 409 | D67: =VLOOKUP(C67, TYPE, 3, FALSE) -> C | E67: 24 | F67: Accounts Payable | G67: 100642.46 | H67: 1186852 | I67: 1287494.46 | J67: C24
A68: 2016 | B68: =C68&E68 -> 40925 | C68: 409 | D68: C | E68: 25 | F68: Accrued Expenses / Accrued Payroll | G68: 223144.69 | H68: 23611 | I68: 246755.69 | J68: =D68&E68 -> C25
A69: 2016 | B69: 40926 | C69: 409 | D69: C | E69: 26 | F69: Deferred Revenue | G69: 0 | H69: 0 | I69: 0 | J69: C26
A70: 2016 | B70: 40927 | C70: 409 | D70: C | E70: 27 | F70: Due to related parties | G70: 0 | H70: 45786.88 | I70: 45786.88 | J70: C27
A71: 2016 | B71: 40928 | C71: 409 | D71: C | E71: 28 | F71: Current Debt Payable | G71: 0 | H71: 0 | I71: 0 | J71: C28
A72: 2016 | B72: 40929 | C72: 409 | D72: C | E72: 29 | F72: Current Lease Obligations Payable | G72: 0 | H72: 0 | I72: 0 | J72: C29
A73: 2016 | B73: 40930 | C73: 409 | D73: C | E73: 30 | F73: TOTAL CURRENT LIABILITIES | G73: 323787.15 | H73: 1256249.88 | I73: 1580037.03 | J73: C30
A74: 2016 | B74: 40931 | C74: 409 | D74: C | E74: 31 | F74: Noncurrent Lease Obligations | G74: 0 | H74: 0 | I74: 0 | J74: C31
A75: 2016 | B75: 40932 | C75: 409 | D75: C | E75: 32 | F75: Long-Term Debt | G75: 0 | H75: 23823914 | I75: 23823914 | J75: C32
A76: 2016 | B76: 40933 | C76: 409 | D76: C | E76: 33 | F76: Deferred Revenue | G76: 0 | H76: 0 | I76: 0 | J76: C33
A77: 2016 | B77: 40934 | C77: 409 | D77: C | E77: 34 | F77: TOTAL NONCURRENT LIABILITIES | G77: 0 | H77: 23823914 | I77: 23823914 | J77: C34
A78: 2016 | B78: 40935 | C78: 409 | D78: C | E78: 35 | F78: TOTAL LIABILITIES | G78: 323787.15 | H78: 25080163.88 | I78: 25403951.03 | J78: C35
A79: 2016 | B79: 40936 | C79: 409 | D79: C | E79: 36 | F79: Investment in capital assets (net of related debt) | G79: 39464 | H79: 0 | I79: 39464 | J79: C36
A80: 2016 | B80: 40937 | C80: 409 | D80: C | E80: 37 | F80: Temporarily Restricted | G80: 0 | H80: 856208 | I80: 856208 | J80: C37
A81: 2016 | B81: 40938 | C81: 409 | D81: C | E81: 38 | F81: Permanently Restricted | G81: 0 | H81: 0 | I81: 0 | J81: C38
A82: 2016 | B82: 40939 | C82: 409 | D82: C | E82: 39 | F82: Unrestricted (non-capital) | G82: 1003199 | H82: 2293870.78 | I82: 3297069.78 | J82: C39
A83: 2016 | B83: 40940 | C83: 409 | D83: C | E83: 40 | F83: TOTAL NET ASSETS | G83: 1042663 | H83: 3150079 | I83: 4192742 | J83: C40
A84: 2016 | B84: 40941 | C84: 409 | D84: C | E84: 41 | F84: TOTAL LIABILITIES AND NET ASSETS | G84: 1366450 | H84: 28230243 | I84: 29596693 | J84: C41
A85: 2016 | B85: 4101 | C85: 410 | D85: C | E85: 1 | F85: Cash and Cash Equivalents | G85: 860308 | H85: 2454452 | I85: 3314760 | J85: C1
A86: 2016 | B86: 4102 | C86: 410 | D86: C | E86: 2 | F86: Accounts Receivable net of doubtful accounts | G86: 120139 | H86: 105522 | I86: 225661 | J86: C2
A87: 2016 | B87: 4103 | C87: 410 | D87: C | E87: 3 | F87: Grants Receivable - State | G87: 0 | H87: 0 | I87: 0 | J87: C3
A88: 2016 | B88: 4104 | C88: 410 | D88: C | E88: 4 | F88: Grants Receivable - Federal | G88: 13282 | H88: 0 | I88: 13282 | J88: C4
A89: 2016 | B89: 4105 | C89: 410 | D89: C | E89: 5 | F89: Grants Receivable - Private | G89: 0 | H89: 0 | I89: 0 | J89: C5
A90: 2016 | B90: 4106 | C90: 410 | D90: C | E90: 6 | F90: Contributions Receivable | G90: 0 | H90: 1101212 | I90: 1101212 | J90: C6
A91: 2016 | B91: 4107 | C91: 410 | D91: C | E91: 7 | F91: Due from related parties | G91: -1550743 | H91: 1550743 | I91: 0 | J91: C7
A92: 2016 | B92: 4108 | C92: 410 | D92: C | E92: 8 | F92: Prepaid Expenses / Inventory | G92: 125996 | H92: 0 | I92: 125996 | J92: C8
A93: 2016 | B93: 4109 | C93: 410 | D93: C | E93: 9 | F93: Short-Term Investments | G93: 0 | H93: 0 | I93: 0 | J93: C9
A94: 2016 | B94: 41010 | C94: 410 | D94: C | E94: 10 | F94: Deposit (Security, Other) | G94: 70917 | H94: 37050 | I94: 107967 | J94: C10
A95: 2016 | B95: 41011 | C95: 410 | D95: C | E95: 11 | F95: Restricted Current Assets | G95: 966444 | H95: 282382 | I95: 1248826 | J95: C11
A96: 2016 | B96: 41012 | C96: 410 | D96: C | E96: 12 | F96: TOTAL CURRENT ASSETS | G96: 606343 | H96: 5531361 | I96: 6137704 | J96: C12
A97: 2016 | B97: 41013 | C97: 410 | D97: C | E97: 13 | F97: - Land and Buildings | G97: 8151974 | H97: 21895926 | I97: 30047900 | J97: C13
A98: 2016 | B98: 41014 | C98: 410 | D98: C | E98: 14 | F98: - Building/Leasehold Improvement | G98: 706434 | H98: 0 | I98: 706434 | J98: C14
A99: 2016 | B99: 41015 | C99: 410 | D99: C | E99: 15 | F99: - Furniture and Equipment | G99: 439198 | H99: 673611 | I99: 1112809 | J99: C15
A100: 2016 | B100: 41016 | C100: 410 | D100: C | E100: 16 | F100: - Less Accumulated Depreciation | G100: -1466400 | H100: 0 | I100: -1466400 | J100: C16
A101: 2016 | B101: 41017 | C101: 410 | D101: C | E101: 17 | F101: Net Capital Assets | G101: 7831206 | H101: 22569537 | I101: 30400743 | J101: C17
A102: 2016 | B102: 41018 | C102: 410 | D102: C | E102: 18 | F102: Restricted Noncurrent Assets | G102: 0 | H102: 0 | I102: 0 | J102: C18
A103: 2016 | B103: 41019 | C103: 410 | D103: C | E103: 19 | F103: Long-Term Investments | G103: 18115224 | H103: 6283999 | I103: 24399223 | J103: C19
A104: 2016 | B104: 41020 | C104: 410 | D104: C | E104: 20 | F104: Building Acquisition / Financing Costs / Deferred Expenses | G104: 0 | H104: 8430075 | I104: 8430075 | J104: C20
A105: 2016 | B105: 41021 | C105: 410 | D105: C | E105: 21 | F105: Long-Term Grants / Contributions Receivable | G105: 0 | H105: 999214 | I105: 999214 | J105: C21
A106: 2016 | B106: 41022 | C106: 410 | D106: C | E106: 22 | F106: TOTAL NONCURRENT ASSETS | G106: 25946430 | H106: 38282825 | I106: 64229255 | J106: C22
A107: 2016 | B107: 41023 | C107: 410 | D107: C | E107: 23 | F107: TOTAL ASSETS | G107: 26552773 | H107: 43814186 | I107: 70366959 | J107: C23
A108: 2016 | B108: 41024 | C108: 410 | D108: C | E108: 24 | F108: Accounts Payable | G108: 392308 | H108: 2288139 | I108: 2680447 | J108: C24
A109: 2016 | B109: 41025 | C109: 410 | D109: C | E109: 25 | F109: Accrued Expenses / Accrued Payroll | G109: 647590 | H109: 92943 | I109: 740533 | J109: C25
A110: 2016 | B110: 41026 | C110: 410 | D110: C | E110: 26 | F110: Deferred Revenue | G110: 0 | H110: 0 | I110: 0 | J110: C26
A111: 2016 | B111: 41027 | C111: 410 | D111: C | E111: 27 | F111: Due to related parties | G111: 0 | H111: 0 | I111: 0 | J111: C27
A112: 2016 | B112: 41028 | C112: 410 | D112: C | E112: 28 | F112: Current Debt Payable | G112: 0 | H112: 121554 | I112: 121554 | J112: C28
A113: 2016 | B113: 41029 | C113: 410 | D113: C | E113: 29 | F113: Current Lease Obligations Payable | G113: 0 | H113: 0 | I113: 0 | J113: C29
A114: 2016 | B114: 41030 | C114: 410 | D114: C | E114: 30 | F114: TOTAL CURRENT LIABILITIES | G114: 1039898 | H114: 2502636 | I114: 3542534 | J114: C30
A115: 2016 | B115: 41031 | C115: 410 | D115: C | E115: 31 | F115: Noncurrent Lease Obligations | G115: 8556475 | H115: 0 | I115: 8556475 | J115: C31
A116: 2016 | B116: 41032 | C116: 410 | D116: C | E116: 32 | F116: Long-Term Debt | G116: 18115224 | H116: 30941563 | I116: 49056787 | J116: C32
A117: 2016 | B117: 41033 | C117: 410 | D117: C | E117: 33 | F117: Deferred Revenue | G117: 0 | H117: 361000 | I117: 361000 | J117: C33
A118: 2016 | B118: 41034 | C118: 410 | D118: C | E118: 34 | F118: TOTAL NONCURRENT LIABILITIES | G118: 26671699 | H118: 31302563 | I118: 57974262 | J118: C34
A119: 2016 | B119: 41035 | C119: 410 | D119: C | E119: 35 | F119: TOTAL LIABILITIES | G119: 27711597 | H119: 33805199 | I119: 61516796 | J119: C35
A120: 2016 | B120: 41036 | C120: 410 | D120: C | E120: 36 | F120: Investment in capital assets (net of related debt) | G120: -597003 | H120: 4859414 | I120: 4262411 | J120: C36
A121: 2016 | B121: 41037 | C121: 410 | D121: C | E121: 37 | F121: Temporarily Restricted | G121: 0 | H121: 1563389 | I121: 1563389 | J121: C37
A122: 2016 | B122: 41038 | C122: 410 | D122: C | E122: 38 | F122: Permanently Restricted | G122: 0 | H122: 0 | I122: 0 | J122: C38
A123: 2016 | B123: 41039 | C123: 410 | D123: C | E123: 39 | F123: Unrestricted (non-capital) | G123: -561821 | H123: 3586184 | I123: 3024363 | J123: C39
A124: 2016 | B124: 41040 | C124: 410 | D124: C | E124: 40 | F124: TOTAL NET ASSETS | G124: -1158824 | H124: 10008987 | I124: 8850163 | J124: C40
A125: 2016 | B125: 41041 | C125: 410 | D125: C | E125: 41 | F125: TOTAL LIABILITIES AND NET ASSETS | G125: 26552773 | H125: 43814186 | I125: 70366959 | J125: C41
A126: 2016 | B126: 4111 | C126: 411 | D126: HM | E126: 1 | F126: Cash and Cash Equivalents | G126: 45005 | H126: 132014.71 | I126: 177019.71 | J126: HM1
A127: 2016 | B127: 4112 | C127: 411 | D127: HM | E127: 2 | F127: Accounts Receivable net of doubtful accounts | G127: 130867 | H127: 0 | I127: 130867 | J127: HM2
A128: 2016 | B128: 4113 | C128: 411 | D128: HM | E128: 3 | F128: Grants Receivable - State | G128: 0 | H128: 0 | I128: 0 | J128: HM3
A129: 2016 | B129: 4114 | C129: 411 | D129: HM | E129: 4 | F129: Grants Receivable - Federal | G129: 335169.82 | H129: 0 | I129: 335169.82 | J129: HM4
A130: 2016 | B130: 4115 | C130: 411 | D130: HM | E130: 5 | F130: Grants Receivable - Private | G130: 0 | H130: 0 | I130: 0 | J130: HM5
A131: 2016 | B131: 4116 | C131: 411 | D131: =VLOOKUP(C131, TYPE, 3, FALSE) -> HM | E131: 6 | F131: Contributions Receivable | G131: 0 | H131: 0 | I131: 0 | J131: HM6
A132: 2016 | B132: =C132&E132 -> 4117 | C132: 411 | D132: HM | E132: 7 | F132: Due from related parties | G132: 3332 | H132: -3332 | I132: 0 | J132: =D132&E132 -> HM7
A133: 2016 | B133: 4118 | C133: 411 | D133: HM | E133: 8 | F133: Prepaid Expenses / Inventory | G133: 2779.38 | H133: 0 | I133: 2779.38 | J133: HM8
A134: 2016 | B134: 4119 | C134: 411 | D134: HM | E134: 9 | F134: Short-Term Investments | G134: 0 | H134: 0 | I134: 0 | J134: HM9
A135: 2016 | B135: 41110 | C135: 411 | D135: HM | E135: 10 | F135: Deposit (Security, Other) | G135: 0 | H135: 0 | I135: 0 | J135: HM10
A136: 2016 | B136: 41111 | C136: 411 | D136: HM | E136: 11 | F136: Restricted Current Assets | G136: 0 | H136: 0 | I136: 0 | J136: HM11
A137: 2016 | B137: 41112 | C137: 411 | D137: HM | E137: 12 | F137: TOTAL CURRENT ASSETS | G137: 517153.2 | H137: 128682.71 | I137: 645835.91 | J137: HM12
A138: 2016 | B138: 41113 | C138: 411 | D138: HM | E138: 13 | F138: - Land and Buildings | G138: 0 | H138: 0 | I138: 0 | J138: HM13
A139: 2016 | B139: 41114 | C139: 411 | D139: HM | E139: 14 | F139: - Building/Leasehold Improvement | G139: 0 | H139: 0 | I139: 0 | J139: HM14
A140: 2016 | B140: 41115 | C140: 411 | D140: HM | E140: 15 | F140: - Furniture and Equipment | G140: 30844.49 | H140: 0 | I140: 30844.49 | J140: HM15
A141: 2016 | B141: 41116 | C141: 411 | D141: HM | E141: 16 | F141: - Less Accumulated Depreciation | G141: -15659.29 | H141: 0 | I141: -15659.29 | J141: HM16
A142: 2016 | B142: 41117 | C142: 411 | D142: HM | E142: 17 | F142: Net Capital Assets | G142: 15185.2 | H142: 0 | I142: 15185.2 | J142: HM17
A143: 2016 | B143: 41118 | C143: 411 | D143: HM | E143: 18 | F143: Restricted Noncurrent Assets | G143: 0 | H143: 0 | I143: 0 | J143: HM18
A144: 2016 | B144: 41119 | C144: 411 | D144: HM | E144: 19 | F144: Long-Term Investments | G144: 0 | H144: 0 | I144: 0 | J144: HM19
A145: 2016 | B145: 41120 | C145: 411 | D145: HM | E145: 20 | F145: Building Acquisition / Financing Costs / Deferred Expenses | G145: 0 | H145: 0 | I145: 0 | J145: HM20
A146: 2016 | B146: 41121 | C146: 411 | D146: HM | E146: 21 | F146: Long-Term Grants / Contributions Receivable | G146: 0 | H146: 0 | I146: 0 | J146: HM21
A147: 2016 | B147: 41122 | C147: 411 | D147: HM | E147: 22 | F147: TOTAL NONCURRENT ASSETS | G147: 15185.2 | H147: 0 | I147: 15185.2 | J147: HM22
A148: 2016 | B148: 41123 | C148: 411 | D148: HM | E148: 23 | F148: TOTAL ASSETS | G148: 532338 | H148: 128683 | I148: 661021 | J148: HM23
A149: 2016 | B149: 41124 | C149: 411 | D149: HM | E149: 24 | F149: Accounts Payable | G149: 392696 | H149: 0 | I149: 392696 | J149: HM24
A150: 2016 | B150: 41125 | C150: 411 | D150: HM | E150: 25 | F150: Accrued Expenses / Accrued Payroll | G150: 0 | H150: 0 | I150: 0 | J150: HM25
A151: 2016 | B151: 41126 | C151: 411 | D151: HM | E151: 26 | F151: Deferred Revenue | G151: 0 | H151: 0 | I151: 0 | J151: HM26
A152: 2016 | B152: 41127 | C152: 411 | D152: HM | E152: 27 | F152: Due to related parties | G152: 0 | H152: 0 | I152: 0 | J152: HM27
A153: 2016 | B153: 41128 | C153: 411 | D153: HM | E153: 28 | F153: Current Debt Payable | G153: 0 | H153: 0 | I153: 0 | J153: HM28
A154: 2016 | B154: 41129 | C154: 411 | D154: HM | E154: 29 | F154: Current Lease Obligations Payable | G154: 0 | H154: 0 | I154: 0 | J154: HM29
A155: 2016 | B155: 41130 | C155: 411 | D155: HM | E155: 30 | F155: TOTAL CURRENT LIABILITIES | G155: 392696 | H155: 0 | I155: 392696 | J155: HM30
A156: 2016 | B156: 41131 | C156: 411 | D156: HM | E156: 31 | F156: Noncurrent Lease Obligations | G156: 0 | H156: 0 | I156: 0 | J156: HM31
A157: 2016 | B157: 41132 | C157: 411 | D157: HM | E157: 32 | F157: Long-Term Debt | G157: 0 | H157: 0 | I157: 0 | J157: HM32
A158: 2016 | B158: 41133 | C158: 411 | D158: HM | E158: 33 | F158: Deferred Revenue | G158: 0 | H158: 0 | I158: 0 | J158: HM33
A159: 2016 | B159: 41134 | C159: 411 | D159: HM | E159: 34 | F159: TOTAL NONCURRENT LIABILITIES | G159: 0 | H159: 0 | I159: 0 | J159: HM34
A160: 2016 | B160: 41135 | C160: 411 | D160: HM | E160: 35 | F160: TOTAL LIABILITIES | G160: 392696 | H160: 0 | I160: 392696 | J160: HM35
A161: 2016 | B161: 41136 | C161: 411 | D161: HM | E161: 36 | F161: Investment in capital assets (net of related debt) | G161: 15185 | H161: 0 | I161: 15185 | J161: HM36
A162: 2016 | B162: 41137 | C162: 411 | D162: HM | E162: 37 | F162: Temporarily Restricted | G162: 12860 | H162: 18000 | I162: 30860 | J162: HM37
A163: 2016 | B163: 41138 | C163: 411 | D163: HM | E163: 38 | F163: Permanently Restricted | G163: 0 | H163: 0 | I163: 0 | J163: HM38
A164: 2016 | B164: 41139 | C164: 411 | D164: HM | E164: 39 | F164: Unrestricted (non-capital) | G164: 111597 | H164: 110682.71 | I164: 222279.71 | J164: HM39
A165: 2016 | B165: 41140 | C165: 411 | D165: HM | E165: 40 | F165: TOTAL NET ASSETS | G165: 139642 | H165: 128683 | I165: 268325 | J165: HM40
A166: 2016 | B166: 41141 | C166: 411 | D166: HM | E166: 41 | F166: TOTAL LIABILITIES AND NET ASSETS | G166: 532338 | H166: 128683 | I166: 661021 | J166: HM41
A167: 2016 | B167: 4121 | C167: 412 | D167: C | E167: 1 | F167: Cash and Cash Equivalents | G167: 3331467 | H167: 244230 | I167: 3575697 | J167: C1
A168: 2016 | B168: 4122 | C168: 412 | D168: C | E168: 2 | F168: Accounts Receivable net of doubtful accounts | G168: 0 | H168: 0 | I168: 0 | J168: C2
A169: 2016 | B169: 4123 | C169: 412 | D169: C | E169: 3 | F169: Grants Receivable - State | G169: 0 | H169: 0 | I169: 0 | J169: C3
A170: 2016 | B170: 4124 | C170: 412 | D170: C | E170: 4 | F170: Grants Receivable - Federal | G170: 184044 | H170: 0 | I170: 184044 | J170: C4
A171: 2016 | B171: 4125 | C171: 412 | D171: C | E171: 5 | F171: Grants Receivable - Private | G171: 0 | H171: 0 | I171: 0 | J171: C5
A172: 2016 | B172: 4126 | C172: 412 | D172: C | E172: 6 | F172: Contributions Receivable | G172: 0 | H172: 0 | I172: 0 | J172: C6
A173: 2016 | B173: 4127 | C173: 412 | D173: C | E173: 7 | F173: Due from related parties | G173: 0 | H173: 0 | I173: 0 | J173: C7
A174: 2016 | B174: 4128 | C174: 412 | D174: C | E174: 8 | F174: Prepaid Expenses / Inventory | G174: 27796 | H174: 0 | I174: 27796 | J174: C8
A175: 2016 | B175: 4129 | C175: 412 | D175: C | E175: 9 | F175: Short-Term Investments | G175: 0 | H175: 13673 | I175: 13673 | J175: C9
A176: 2016 | B176: 41210 | C176: 412 | D176: C | E176: 10 | F176: Deposit (Security, Other) | G176: 22030 | H176: 0 | I176: 22030 | J176: C10
A177: 2016 | B177: 41211 | C177: 412 | D177: C | E177: 11 | F177: Restricted Current Assets | G177: 0 | H177: 0 | I177: 0 | J177: C11
A178: 2016 | B178: 41212 | C178: 412 | D178: C | E178: 12 | F178: TOTAL CURRENT ASSETS | G178: 3565337 | H178: 257903 | I178: 3823240 | J178: C12
A179: 2016 | B179: 41213 | C179: 412 | D179: C | E179: 13 | F179: - Land and Buildings | G179: 5000000 | H179: 0 | I179: 5000000 | J179: C13
A180: 2016 | B180: 41214 | C180: 412 | D180: C | E180: 14 | F180: - Building/Leasehold Improvement | G180: 10360446 | H180: 0 | I180: 10360446 | J180: C14
A181: 2016 | B181: 41215 | C181: 412 | D181: C | E181: 15 | F181: - Furniture and Equipment | G181: 1790246 | H181: 0 | I181: 1790246 | J181: C15
A182: 2016 | B182: 41216 | C182: 412 | D182: C | E182: 16 | F182: - Less Accumulated Depreciation | G182: -5740209 | H182: 0 | I182: -5740209 | J182: C16
A183: 2016 | B183: 41217 | C183: 412 | D183: C | E183: 17 | F183: Net Capital Assets | G183: 11410483 | H183: 0 | I183: 11410483 | J183: C17
A184: 2016 | B184: 41218 | C184: 412 | D184: C | E184: 18 | F184: Restricted Noncurrent Assets | G184: 7055002 | H184: 0 | I184: 7055002 | J184: C18
A185: 2016 | B185: 41219 | C185: 412 | D185: C | E185: 19 | F185: Long-Term Investments | G185: 0 | H185: 0 | I185: 0 | J185: C19
A186: 2016 | B186: 41220 | C186: 412 | D186: C | E186: 20 | F186: Building Acquisition / Financing Costs / Deferred Expenses | G186: 1110207 | H186: 0 | I186: 1110207 | J186: C20
A187: 2016 | B187: 41221 | C187: 412 | D187: C | E187: 21 | F187: Long-Term Grants / Contributions Receivable | G187: 0 | H187: 0 | I187: 0 | J187: C21
A188: 2016 | B188: 41222 | C188: 412 | D188: C | E188: 22 | F188: TOTAL NONCURRENT ASSETS | G188: 19575692 | H188: 0 | I188: 19575692 | J188: C22
A189: 2016 | B189: 41223 | C189: 412 | D189: C | E189: 23 | F189: TOTAL ASSETS | G189: 23141029 | H189: 257903 | I189: 23398932 | J189: C23
A190: 2016 | B190: 41224 | C190: 412 | D190: C | E190: 24 | F190: Accounts Payable | G190: 60701 | H190: 0 | I190: 60701 | J190: C24
A191: 2016 | B191: 41225 | C191: 412 | D191: C | E191: 25 | F191: Accrued Expenses / Accrued Payroll | G191: 550333 | H191: 0 | I191: 550333 | J191: C25
A192: 2016 | B192: 41226 | C192: 412 | D192: C | E192: 26 | F192: Deferred Revenue | G192: 0 | H192: 0 | I192: 0 | J192: C26
A193: 2016 | B193: 41227 | C193: 412 | D193: C | E193: 27 | F193: Due to related parties | G193: 0 | H193: 0 | I193: 0 | J193: C27
A194: 2016 | B194: 41228 | C194: 412 | D194: C | E194: 28 | F194: Current Debt Payable | G194: 355000 | H194: 0 | I194: 355000 | J194: C28
A195: 2016 | B195: 41229 | C195: 412 | D195: =VLOOKUP(C195, TYPE, 3, FALSE) -> C | E195: 29 | F195: Current Lease Obligations Payable | G195: 0 | H195: 0 | I195: 0 | J195: C29
A196: 2016 | B196: =C196&E196 -> 41230 | C196: 412 | D196: C | E196: 30 | F196: TOTAL CURRENT LIABILITIES | G196: 966034 | H196: 0 | I196: 966034 | J196: =D196&E196 -> C30
A197: 2016 | B197: 41231 | C197: 412 | D197: C | E197: 31 | F197: Noncurrent Lease Obligations | G197: 0 | H197: 0 | I197: 0 | J197: C31
A198: 2016 | B198: 41232 | C198: 412 | D198: C | E198: 32 | F198: Long-Term Debt | G198: 14795000 | H198: 0 | I198: 14795000 | J198: C32
A199: 2016 | B199: 41233 | C199: 412 | D199: C | E199: 33 | F199: Deferred Revenue | G199: 0 | H199: 0 | I199: 0 | J199: C33
A200: 2016 | B200: 41234 | C200: 412 | D200: C | E200: 34 | F200: TOTAL NONCURRENT LIABILITIES | G200: 14795000 | H200: 0 | I200: 14795000 | J200: C34
... 3246 more rows

Sheet INC16 (hidden)
B1: 1 | C1: 2 | D1: 3 | E1: 4 | F1: 5 | G1: 6 | H1: 7 | I1: 8
A2: FY | B2: vlookup | C2: cha_code | D2: cha_type | E2: income_id | F2: Line_Desc | G2: income_sch | H2: income_found | I2: income_total
A3: 2016 | B3: =C3&E3 -> 4071 | C3: 407 | D3: =VLOOKUP(C3, TYPE, 3, FALSE) -> HM | E3: 1 | F3: Tuition | G3: 3207813 | H3: 0 | I3: 3207813 | J3: =D3&E3 -> HM1
A4: 2016 | B4: =C4&E4 -> 4072a | C4: 407 | D4: HM | E4: 2a | F4: Grants - State - passed through ESE | G4: 0 | H4: 0 | I4: 0 | J4: HM2a
A5: 2016 | B5: 4072b | C5: 407 | D5: HM | E5: 2b | F5: Grants - State - other non-ESE pass-through | G5: 0 | H5: 0 | I5: 0 | J5: HM2b
A6: 2016 | B6: 4073 | C6: 407 | D6: HM | E6: 3 | F6: Grants - Federal - Passed through ESE | G6: 253703 | H6: 0 | I6: 253703 | J6: HM3
A7: 2016 | B7: 4074 | C7: 407 | D7: HM | E7: 4 | F7: Grants - Federal - Direct or other pass-through | G7: 0 | H7: 0 | I7: 0 | J7: HM4
A8: 2016 | B8: 4075a | C8: 407 | D8: HM | E8: 5a | F8: Grants - Private (restricted) | G8: 0 | H8: 0 | I8: 0 | J8: HM5a
A9: 2016 | B9: 4075b | C9: 407 | D9: HM | E9: 5b | F9: Grants - Private (unrestricted) | G9: 19883 | H9: 0 | I9: 19883 | J9: HM5b
A10: 2016 | B10: 4076 | C10: 407 | D10: HM | E10: 6 | F10: Nutrition Funding - State | G10: 0 | H10: 0 | I10: 0 | J10: HM6
A11: 2016 | B11: 4077 | C11: 407 | D11: HM | E11: 7 | F11: Nutrition Funding - Federal | G11: 0 | H11: 0 | I11: 0 | J11: HM7
A12: 2016 | B12: 4078 | C12: 407 | D12: HM | E12: 8 | F12: Nutrition Funding - Fees | G12: 0 | H12: 0 | I12: 0 | J12: HM8
A13: 2016 | B13: 4079 | C13: 407 | D13: HM | E13: 9 | F13: Other Program / Student Activity Fees | G13: 0 | H13: 0 | I13: 0 | J13: HM9
A14: 2016 | B14: 40710 | C14: 407 | D14: HM | E14: 10 | F14: Regional Transportation Aid | G14: 0 | H14: 0 | I14: 0 | J14: HM10
A15: 2016 | B15: 40711 | C15: 407 | D15: HM | E15: 11 | F15: Medicaid Reimbursements | G15: 0 | H15: 0 | I15: 0 | J15: HM11
A16: 2016 | B16: 40712 | C16: 407 | D16: HM | E16: 12 | F16: Circuit Breaker Reimbursements | G16: 0 | H16: 0 | I16: 0 | J16: HM12
A17: 2016 | B17: 40713a | C17: 407 | D17: HM | E17: 13a | F17: Contributions, in-kind, host district | G17: 0 | H17: 0 | I17: 0 | J17: HM13a
A18: 2016 | B18: 40713b | C18: 407 | D18: HM | E18: 13b | F18: Contributions, in-kind, other | G18: 766656 | H18: 0 | I18: 766656 | J18: HM13b
A19: 2016 | B19: 40713c | C19: 407 | D19: HM | E19: 13c | F19: Contributions, on-behalf, pension | G19: 0 | H19: 0 | I19: 0 | J19: HM13c
A20: 2016 | B20: 40714 | C20: 407 | D20: HM | E20: 14 | F20: Contributions, from Component Unit (restricted) | G20: 0 | H20: 0 | I20: 0 | J20: HM14
A21: 2016 | B21: 40714b | C21: 407 | D21: HM | E21: 14b | F21: Contributions, from Component Unit (unrestricted) | G21: 0 | H21: 0 | I21: 0 | J21: HM14b
A22: 2016 | B22: 40715 | C22: 407 | D22: HM | E22: 15 | F22: Contributions / Fundraising (restricted) | G22: 0 | H22: 0 | I22: 0 | J22: HM15
A23: 2016 | B23: 40715b | C23: 407 | D23: HM | E23: 15b | F23: Contributions / Fundraising (unrestricted) | G23: 0 | H23: 0 | I23: 0 | J23: HM15b
A24: 2016 | B24: 40716 | C24: 407 | D24: HM | E24: 16 | F24: Interest / Investment Income (restricted) | G24: 0 | H24: 0 | I24: 0 | J24: HM16
A25: 2016 | B25: 40716a | C25: 407 | D25: HM | E25: 16a | F25: Interest / Investment Income (unrestricted) | G25: 0 | H25: 0 | I25: 0 | J25: HM16a
A26: 2016 | B26: 40717 | C26: 407 | D26: HM | E26: 17 | F26: Rental Income | G26: 0 | H26: 0 | I26: 0 | J26: HM17
A27: 2016 | B27: 40718 | C27: 407 | D27: HM | E27: 18 | F27: Loan Forgiveness or Other Reimbursement | G27: 0 | H27: 0 | I27: 0 | J27: HM18
A28: 2016 | B28: 40719 | C28: 407 | D28: HM | E28: 19 | F28: Miscellaneous Income | G28: 4247 | H28: 0 | I28: 4247 | J28: HM19
A29: 2016 | B29: 40720 | C29: 407 | D29: HM | E29: 20 | F29: TOTAL REVENUES | G29: 4252302 | H29: 0 | I29: 4252302 | J29: HM20
A30: 2016 | B30: 40721 | C30: 407 | D30: HM | E30: 21 | F30: Administration | G30: 828079.25 | H30: 0 | I30: 828079.25 | J30: HM21
A31: 2016 | B31: 40722 | C31: 407 | D31: HM | E31: 22 | F31: Instructional Services | G31: 2026737 | H31: 0 | I31: 2026737 | J31: HM22
A32: 2016 | B32: 40723 | C32: 407 | D32: HM | E32: 23 | F32: Pupil Services | G32: 476252 | H32: 0 | I32: 476252 | J32: HM23
A33: 2016 | B33: 40724 | C33: 407 | D33: HM | E33: 24 | F33: Operation & Maintenance of Plant | G33: 149652 | H33: 0 | I33: 149652 | J33: HM24
A34: 2016 | B34: 40725 | C34: 407 | D34: HM | E34: 25 | F34: Benefits and Other Fixed Charges | G34: 595625 | H34: 0 | I34: 595625 | J34: HM25
A35: 2016 | B35: 40726 | C35: 407 | D35: HM | E35: 26 | F35: Community Services | G35: 0 | H35: 0 | I35: 0 | J35: HM26
A36: 2016 | B36: 40727 | C36: 407 | D36: HM | E36: 27 | F36: Non-Operating Financing Expenses | G36: 19334 | H36: 0 | I36: 19334 | J36: HM27
A37: 2016 | B37: 40728 | C37: 407 | D37: HM | E37: 28 | F37: Component Unit Expenses | G37: 0 | H37: 0 | I37: 0 | J37: HM28
A38: 2016 | B38: 40729 | C38: 407 | D38: HM | E38: 29 | F38: Contributions to School | G38: 0 | H38: 0 | I38: 0 | J38: HM29
A39: 2016 | B39: 40730 | C39: 407 | D39: HM | E39: 30 | F39: TOTAL EXPENSES | G39: 4095679.25 | H39: 0 | I39: 4095679.25 | J39: HM30
A40: 2016 | B40: 40731 | C40: 407 | D40: HM | E40: 31 | F40: TOTAL GAIN/(LOSS) | G40: 156622.75 | H40: 0 | I40: 156622.75 | J40: HM31
A41: 2016 | B41: 40732 | C41: 407 | D41: HM | E41: 32 | F41: Gain/Loss on Sale of Asset or Lease Transaction | G41: 0 | H41: 0 | I41: 0 | J41: HM32
A42: 2016 | B42: 40733 | C42: 407 | D42: HM | E42: 33 | F42: Other Gain/Loss | G42: 0 | H42: 0 | I42: 0 | J42: HM33
A43: 2016 | B43: 40734 | C43: 407 | D43: HM | E43: 34 | F43: TOTAL CHANGES IN NET ASSETS: | G43: 156622.75 | H43: 0 | I43: 156622.75 | J43: HM34
A44: 2016 | B44: 40735 | C44: 407 | D44: HM | E44: 35 | F44: NET ASSETS AT BEGINNING OF YEAR | G44: 50189 | H44: 0 | I44: 50189 | J44: HM35
A45: 2016 | B45: 40736 | C45: 407 | D45: HM | E45: 36 | F45: NET ASSETS AT END OF YEAR | G45: 206812 | H45: 0 | I45: 206812 | J45: HM36
A46: 2016 | B46: 4091 | C46: 409 | D46: C | E46: 1 | F46: Tuition | G46: 3425368 | H46: 0 | I46: 3425368 | J46: C1
A47: 2016 | B47: 4092a | C47: 409 | D47: C | E47: 2a | F47: Grants - State - passed through ESE | G47: 0 | H47: 0 | I47: 0 | J47: C2a
A48: 2016 | B48: 4092b | C48: 409 | D48: C | E48: 2b | F48: Grants - State - other non-ESE pass-through | G48: 0 | H48: 0 | I48: 0 | J48: C2b
A49: 2016 | B49: 4093 | C49: 409 | D49: C | E49: 3 | F49: Grants - Federal - Passed through ESE | G49: 239662 | H49: 0 | I49: 239662 | J49: C3
A50: 2016 | B50: 4094 | C50: 409 | D50: C | E50: 4 | F50: Grants - Federal - Direct or other pass-through | G50: 0 | H50: 0 | I50: 0 | J50: C4
A51: 2016 | B51: 4095a | C51: 409 | D51: C | E51: 5a | F51: Grants - Private (restricted) | G51: 599 | H51: 0 | I51: 599 | J51: C5a
A52: 2016 | B52: 4095b | C52: 409 | D52: C | E52: 5b | F52: Grants - Private (unrestricted) | G52: 0 | H52: 0 | I52: 0 | J52: C5b
A53: 2016 | B53: 4096 | C53: 409 | D53: C | E53: 6 | F53: Nutrition Funding - State | G53: 6947.59 | H53: 0 | I53: 6947.59 | J53: C6
A54: 2016 | B54: 4097 | C54: 409 | D54: C | E54: 7 | F54: Nutrition Funding - Federal | G54: 168181.35 | H54: 0 | I54: 168181.35 | J54: C7
A55: 2016 | B55: 4098 | C55: 409 | D55: C | E55: 8 | F55: Nutrition Funding - Fees | G55: 0 | H55: 0 | I55: 0 | J55: C8
A56: 2016 | B56: 4099 | C56: 409 | D56: C | E56: 9 | F56: Other Program / Student Activity Fees | G56: 134.42 | H56: 0 | I56: 134.42 | J56: C9
A57: 2016 | B57: 40910 | C57: 409 | D57: C | E57: 10 | F57: Regional Transportation Aid | G57: 0 | H57: 0 | I57: 0 | J57: C10
A58: 2016 | B58: 40911 | C58: 409 | D58: C | E58: 11 | F58: Medicaid Reimbursements | G58: 17800.1 | H58: 0 | I58: 17800.1 | J58: C11
A59: 2016 | B59: 40912 | C59: 409 | D59: C | E59: 12 | F59: Circuit Breaker Reimbursements | G59: 0 | H59: 0 | I59: 0 | J59: C12
A60: 2016 | B60: 40913a | C60: 409 | D60: C | E60: 13a | F60: Contributions, in-kind, host district | G60: 373860 | H60: 0 | I60: 373860 | J60: C13a
A61: 2016 | B61: 40913b | C61: 409 | D61: C | E61: 13b | F61: Contributions, in-kind, other | G61: 331424 | H61: 0 | I61: 331424 | J61: C13b
A62: 2016 | B62: 40913c | C62: 409 | D62: C | E62: 13c | F62: Contributions, on-behalf, pension | G62: 0 | H62: 0 | I62: 0 | J62: C13c
A63: 2016 | B63: 40914 | C63: 409 | D63: C | E63: 14 | F63: Contributions, from Component Unit (restricted) | G63: 50100 | H63: 0 | I63: 50100 | J63: C14
A64: 2016 | B64: 40914b | C64: 409 | D64: C | E64: 14b | F64: Contributions, from Component Unit (unrestricted) | G64: 134992.37 | H64: 0 | I64: 134992.37 | J64: C14b
A65: 2016 | B65: 40915 | C65: 409 | D65: C | E65: 15 | F65: Contributions / Fundraising (restricted) | G65: 0 | H65: 70000 | I65: 70000 | J65: C15
A66: 2016 | B66: 40915b | C66: 409 | D66: C | E66: 15b | F66: Contributions / Fundraising (unrestricted) | G66: 33191.84 | H66: 1241610 | I66: 1274801.84 | J66: C15b
A67: 2016 | B67: 40916 | C67: 409 | D67: =VLOOKUP(C67, TYPE, 3, FALSE) -> C | E67: 16 | F67: Interest / Investment Income (restricted) | G67: 0 | H67: 0 | I67: 0 | J67: =D67&E67 -> C16
A68: 2016 | B68: =C68&E68 -> 40916a | C68: 409 | D68: C | E68: 16a | F68: Interest / Investment Income (unrestricted) | G68: 609.24 | H68: 113030 | I68: 113639.24 | J68: C16a
A69: 2016 | B69: 40917 | C69: 409 | D69: C | E69: 17 | F69: Rental Income | G69: 0 | H69: 0 | I69: 0 | J69: C17
A70: 2016 | B70: 40918 | C70: 409 | D70: C | E70: 18 | F70: Loan Forgiveness or Other Reimbursement | G70: 0 | H70: 0 | I70: 0 | J70: C18
A71: 2016 | B71: 40919 | C71: 409 | D71: C | E71: 19 | F71: Miscellaneous Income | G71: 6.22 | H71: 0 | I71: 6.22 | J71: C19
A72: 2016 | B72: 40920 | C72: 409 | D72: C | E72: 20 | F72: TOTAL REVENUES | G72: 4782876.13 | H72: 1424640 | I72: 6207516.13 | J72: C20
A73: 2016 | B73: 40921 | C73: 409 | D73: C | E73: 21 | F73: Administration | G73: 540844.7 | H73: 0 | I73: 540844.7 | J73: C21
A74: 2016 | B74: 40922 | C74: 409 | D74: C | E74: 22 | F74: Instructional Services | G74: 2148374.64 | H74: 0 | I74: 2148374.64 | J74: C22
A75: 2016 | B75: 40923 | C75: 409 | D75: C | E75: 23 | F75: Pupil Services | G75: 824105.81 | H75: 0 | I75: 824105.81 | J75: C23
A76: 2016 | B76: 40924 | C76: 409 | D76: C | E76: 24 | F76: Operation & Maintenance of Plant | G76: 204230.93 | H76: 0 | I76: 204230.93 | J76: C24
A77: 2016 | B77: 40925 | C77: 409 | D77: C | E77: 25 | F77: Benefits and Other Fixed Charges | G77: 600998.5 | H77: 0 | I77: 600998.5 | J77: C25
A78: 2016 | B78: 40926 | C78: 409 | D78: C | E78: 26 | F78: Community Services | G78: 9509.55 | H78: 0 | I78: 9509.55 | J78: C26
A79: 2016 | B79: 40927 | C79: 409 | D79: C | E79: 27 | F79: Non-Operating Financing Expenses | G79: 629377.32 | H79: 0 | I79: 629377.32 | J79: C27
A80: 2016 | B80: 40928 | C80: 409 | D80: C | E80: 28 | F80: Component Unit Expenses | G80: 0 | H80: 336910.28 | I80: 336910.28 | J80: C28
A81: 2016 | B81: 40929 | C81: 409 | D81: C | E81: 29 | F81: Contributions to School | G81: 0 | H81: 185092 | I81: 185092 | J81: C29
A82: 2016 | B82: 40930 | C82: 409 | D82: C | E82: 30 | F82: TOTAL EXPENSES | G82: 4957441.45 | H82: 522002.28 | I82: 5479443.73 | J82: C30
A83: 2016 | B83: 40931 | C83: 409 | D83: C | E83: 31 | F83: TOTAL GAIN/(LOSS) | G83: -174565.32 | H83: 902637.72 | I83: 728072.4 | J83: C31
A84: 2016 | B84: 40932 | C84: 409 | D84: C | E84: 32 | F84: Gain/Loss on Sale of Asset or Lease Transaction | G84: 0 | H84: 0 | I84: 0 | J84: C32
A85: 2016 | B85: 40933 | C85: 409 | D85: C | E85: 33 | F85: Other Gain/Loss | G85: 0 | H85: 0 | I85: 0 | J85: C33
A86: 2016 | B86: 40934 | C86: 409 | D86: C | E86: 34 | F86: TOTAL CHANGES IN NET ASSETS: | G86: -174565.32 | H86: 902637.72 | I86: 728072.4 | J86: C34
A87: 2016 | B87: 40935 | C87: 409 | D87: C | E87: 35 | F87: NET ASSETS AT BEGINNING OF YEAR | G87: 1217228 | H87: 2247441 | I87: 3464669 | J87: C35
A88: 2016 | B88: 40936 | C88: 409 | D88: C | E88: 36 | F88: NET ASSETS AT END OF YEAR | G88: 1042663 | H88: 3150079 | I88: 4192742 | J88: C36
A89: 2016 | B89: 4101 | C89: 410 | D89: C | E89: 1 | F89: Tuition | G89: 10899332 | H89: 0 | I89: 10899332 | J89: C1
A90: 2016 | B90: 4102a | C90: 410 | D90: C | E90: 2a | F90: Grants - State - passed through ESE | G90: 0 | H90: 0 | I90: 0 | J90: C2a
A91: 2016 | B91: 4102b | C91: 410 | D91: C | E91: 2b | F91: Grants - State - other non-ESE pass-through | G91: 0 | H91: 0 | I91: 0 | J91: C2b
A92: 2016 | B92: 4103 | C92: 410 | D92: C | E92: 3 | F92: Grants - Federal - Passed through ESE | G92: 631400 | H92: 0 | I92: 631400 | J92: C3
A93: 2016 | B93: 4104 | C93: 410 | D93: C | E93: 4 | F93: Grants - Federal - Direct or other pass-through | G93: 0 | H93: 0 | I93: 0 | J93: C4
A94: 2016 | B94: 4105a | C94: 410 | D94: C | E94: 5a | F94: Grants - Private (restricted) | G94: 861958 | H94: 796983 | I94: 1658941 | J94: C5a
A95: 2016 | B95: 4105b | C95: 410 | D95: C | E95: 5b | F95: Grants - Private (unrestricted) | G95: 0 | H95: 605496 | I95: 605496 | J95: C5b
A96: 2016 | B96: 4106 | C96: 410 | D96: C | E96: 6 | F96: Nutrition Funding - State | G96: 8218 | H96: 0 | I96: 8218 | J96: C6
A97: 2016 | B97: 4107 | C97: 410 | D97: C | E97: 7 | F97: Nutrition Funding - Federal | G97: 405544 | H97: 0 | I97: 405544 | J97: C7
A98: 2016 | B98: 4108 | C98: 410 | D98: C | E98: 8 | F98: Nutrition Funding - Fees | G98: 26992 | H98: 0 | I98: 26992 | J98: C8
A99: 2016 | B99: 4109 | C99: 410 | D99: C | E99: 9 | F99: Other Program / Student Activity Fees | G99: 0 | H99: 0 | I99: 0 | J99: C9
A100: 2016 | B100: 41010 | C100: 410 | D100: C | E100: 10 | F100: Regional Transportation Aid | G100: 190313 | H100: 0 | I100: 190313 | J100: C10
A101: 2016 | B101: 41011 | C101: 410 | D101: C | E101: 11 | F101: Medicaid Reimbursements | G101: 74374 | H101: 0 | I101: 74374 | J101: C11
A102: 2016 | B102: 41012 | C102: 410 | D102: C | E102: 12 | F102: Circuit Breaker Reimbursements | G102: 7443 | H102: 0 | I102: 7443 | J102: C12
A103: 2016 | B103: 41013a | C103: 410 | D103: C | E103: 13a | F103: Contributions, in-kind, host district | G103: 119920 | H103: 0 | I103: 119920 | J103: C13a
A104: 2016 | B104: 41013b | C104: 410 | D104: C | E104: 13b | F104: Contributions, in-kind, other | G104: 0 | H104: 0 | I104: 0 | J104: C13b
A105: 2016 | B105: 41013c | C105: 410 | D105: C | E105: 13c | F105: Contributions, on-behalf, pension | G105: 1354846 | H105: 0 | I105: 0 | J105: C13c
A106: 2016 | B106: 41014 | C106: 410 | D106: C | E106: 14 | F106: Contributions, from Component Unit (restricted) | G106: 0 | H106: 0 | I106: 0 | J106: C14
A107: 2016 | B107: 41014b | C107: 410 | D107: C | E107: 14b | F107: Contributions, from Component Unit (unrestricted) | G107: 525000 | H107: 0 | I107: 525000 | J107: C14b
A108: 2016 | B108: 41015 | C108: 410 | D108: C | E108: 15 | F108: Contributions / Fundraising (restricted) | G108: 0 | H108: 0 | I108: 0 | J108: C15
A109: 2016 | B109: 41015b | C109: 410 | D109: C | E109: 15b | F109: Contributions / Fundraising (unrestricted) | G109: 0 | H109: 0 | I109: 0 | J109: C15b
A110: 2016 | B110: 41016 | C110: 410 | D110: C | E110: 16 | F110: Interest / Investment Income (restricted) | G110: 0 | H110: 0 | I110: 0 | J110: C16
A111: 2016 | B111: 41016a | C111: 410 | D111: C | E111: 16a | F111: Interest / Investment Income (unrestricted) | G111: 1764 | H111: 332511 | I111: 334275 | J111: C16a
A112: 2016 | B112: 41017 | C112: 410 | D112: C | E112: 17 | F112: Rental Income | G112: 0 | H112: 232677 | I112: 232677 | J112: C17
A113: 2016 | B113: 41018 | C113: 410 | D113: C | E113: 18 | F113: Loan Forgiveness or Other Reimbursement | G113: 0 | H113: 0 | I113: 0 | J113: C18
A114: 2016 | B114: 41019 | C114: 410 | D114: C | E114: 19 | F114: Miscellaneous Income | G114: 338586 | H114: 0 | I114: 338586 | J114: C19
A115: 2016 | B115: 41020 | C115: 410 | D115: C | E115: 20 | F115: TOTAL REVENUES | G115: 15445690 | H115: 1967667 | I115: 17413357 | J115: C20
A116: 2016 | B116: 41021 | C116: 410 | D116: C | E116: 21 | F116: Administration | G116: 2265758.436 | H116: 0 | I116: 2265758.436 | J116: C21
A117: 2016 | B117: 41022 | C117: 410 | D117: C | E117: 22 | F117: Instructional Services | G117: 7693389.423 | H117: 0 | I117: 7693389.423 | J117: C22
A118: 2016 | B118: 41023 | C118: 410 | D118: C | E118: 23 | F118: Pupil Services | G118: 1564673 | H118: 0 | I118: 1564673 | J118: C23
A119: 2016 | B119: 41024 | C119: 410 | D119: C | E119: 24 | F119: Operation & Maintenance of Plant | G119: 585629 | H119: 0 | I119: 585629 | J119: C24
A120: 2016 | B120: 41025 | C120: 410 | D120: C | E120: 25 | F120: Benefits and Other Fixed Charges | G120: 2098062.35 | H120: 0 | I120: 2098062.35 | J120: C25
A121: 2016 | B121: 41026 | C121: 410 | D121: C | E121: 26 | F121: Community Services | G121: 0 | H121: 0 | I121: 0 | J121: C26
A122: 2016 | B122: 41027 | C122: 410 | D122: C | E122: 27 | F122: Non-Operating Financing Expenses | G122: 1203538 | H122: 0 | I122: 1203538 | J122: C27
A123: 2016 | B123: 41028 | C123: 410 | D123: C | E123: 28 | F123: Component Unit Expenses | G123: 0 | H123: 902232 | I123: 902232 | J123: C28
A124: 2016 | B124: 41029 | C124: 410 | D124: C | E124: 29 | F124: Contributions to School | G124: 0 | H124: 1386958 | I124: 1386958 | J124: C29
A125: 2016 | B125: 41030 | C125: 410 | D125: C | E125: 30 | F125: TOTAL EXPENSES | G125: 15411050.21 | H125: 2289190 | I125: 17700240.21 | J125: C30
A126: 2016 | B126: 41031 | C126: 410 | D126: C | E126: 31 | F126: TOTAL GAIN/(LOSS) | G126: 34639.79066 | H126: -321523 | I126: -286883.2093 | J126: C31
A127: 2016 | B127: 41032 | C127: 410 | D127: C | E127: 32 | F127: Gain/Loss on Sale of Asset or Lease Transaction | G127: 0 | H127: 0 | I127: 0 | J127: C32
A128: 2016 | B128: 41033 | C128: 410 | D128: C | E128: 33 | F128: Other Gain/Loss | G128: 0 | H128: 0 | I128: 0 | J128: C33
A129: 2016 | B129: 41034 | C129: 410 | D129: C | E129: 34 | F129: TOTAL CHANGES IN NET ASSETS: | G129: 34639.79066 | H129: -321523 | I129: -286883.2093 | J129: C34
A130: 2016 | B130: 41035 | C130: 410 | D130: C | E130: 35 | F130: NET ASSETS AT BEGINNING OF YEAR | G130: -1193464 | H130: 10330510 | I130: 9137046 | J130: C35
A131: 2016 | B131: 41036 | C131: 410 | D131: =VLOOKUP(C131, TYPE, 3, FALSE) -> C | E131: 36 | F131: NET ASSETS AT END OF YEAR | G131: -1158824 | H131: 10008987 | I131: 8850163 | J131: =D131&E131 -> C36
A132: 2016 | B132: =C132&E132 -> 4111 | C132: 411 | D132: HM | E132: 1 | F132: Tuition | G132: 4609401.03 | H132: 0 | I132: 4609401.03 | J132: HM1
A133: 2016 | B133: 4112a | C133: 411 | D133: HM | E133: 2a | F133: Grants - State - passed through ESE | G133: 0 | H133: 0 | I133: 0 | J133: HM2a
A134: 2016 | B134: 4112b | C134: 411 | D134: HM | E134: 2b | F134: Grants - State - other non-ESE pass-through | G134: 200 | H134: 0 | I134: 200 | J134: HM2b
A135: 2016 | B135: 4113 | C135: 411 | D135: HM | E135: 3 | F135: Grants - Federal - Passed through ESE | G135: 458435.76 | H135: 0 | I135: 458435.76 | J135: HM3
A136: 2016 | B136: 4114 | C136: 411 | D136: HM | E136: 4 | F136: Grants - Federal - Direct or other pass-through | G136: 0 | H136: 0 | I136: 0 | J136: HM4
A137: 2016 | B137: 4115a | C137: 411 | D137: HM | E137: 5a | F137: Grants - Private (restricted) | G137: 0 | H137: 0 | I137: 0 | J137: HM5a
A138: 2016 | B138: 4115b | C138: 411 | D138: HM | E138: 5b | F138: Grants - Private (unrestricted) | G138: 42200 | H138: 55000 | I138: 97200 | J138: HM5b
A139: 2016 | B139: 4116 | C139: 411 | D139: HM | E139: 6 | F139: Nutrition Funding - State | G139: 0 | H139: 0 | I139: 0 | J139: HM6
A140: 2016 | B140: 4117 | C140: 411 | D140: HM | E140: 7 | F140: Nutrition Funding - Federal | G140: 0 | H140: 0 | I140: 0 | J140: HM7
A141: 2016 | B141: 4118 | C141: 411 | D141: HM | E141: 8 | F141: Nutrition Funding - Fees | G141: 0 | H141: 0 | I141: 0 | J141: HM8
A142: 2016 | B142: 4119 | C142: 411 | D142: HM | E142: 9 | F142: Other Program / Student Activity Fees | G142: 18755.28 | H142: 0 | I142: 18755.28 | J142: HM9
A143: 2016 | B143: 41110 | C143: 411 | D143: HM | E143: 10 | F143: Regional Transportation Aid | G143: 0 | H143: 0 | I143: 0 | J143: HM10
A144: 2016 | B144: 41111 | C144: 411 | D144: HM | E144: 11 | F144: Medicaid Reimbursements | G144: 0 | H144: 0 | I144: 0 | J144: HM11
A145: 2016 | B145: 41112 | C145: 411 | D145: HM | E145: 12 | F145: Circuit Breaker Reimbursements | G145: 0 | H145: 0 | I145: 0 | J145: HM12
A146: 2016 | B146: 41113a | C146: 411 | D146: HM | E146: 13a | F146: Contributions, in-kind, host district | G146: 1781908.03 | H146: 0 | I146: 1781908.03 | J146: HM13a
A147: 2016 | B147: 41113b | C147: 411 | D147: HM | E147: 13b | F147: Contributions, in-kind, other | G147: 22361.5 | H147: 0 | I147: 22361.5 | J147: HM13b
A148: 2016 | B148: 41113c | C148: 411 | D148: HM | E148: 13c | F148: Contributions, on-behalf, pension | G148: 0 | H148: 0 | I148: 0 | J148: HM13c
A149: 2016 | B149: 41114 | C149: 411 | D149: HM | E149: 14 | F149: Contributions, from Component Unit (restricted) | G149: 0 | H149: 0 | I149: 0 | J149: HM14
A150: 2016 | B150: 41114b | C150: 411 | D150: HM | E150: 14b | F150: Contributions, from Component Unit (unrestricted) | G150: 113200 | H150: 0 | I150: 113200 | J150: HM14b
A151: 2016 | B151: 41115 | C151: 411 | D151: HM | E151: 15 | F151: Contributions / Fundraising (restricted) | G151: 0 | H151: 0 | I151: 0 | J151: HM15
A152: 2016 | B152: 41115b | C152: 411 | D152: HM | E152: 15b | F152: Contributions / Fundraising (unrestricted) | G152: 54976.87 | H152: 137618 | I152: 192594.87 | J152: HM15b
A153: 2016 | B153: 41116 | C153: 411 | D153: HM | E153: 16 | F153: Interest / Investment Income (restricted) | G153: 0 | H153: 0 | I153: 0 | J153: HM16
A154: 2016 | B154: 41116a | C154: 411 | D154: HM | E154: 16a | F154: Interest / Investment Income (unrestricted) | G154: 30.99 | H154: 6.19 | I154: 37.18 | J154: HM16a
A155: 2016 | B155: 41117 | C155: 411 | D155: HM | E155: 17 | F155: Rental Income | G155: 0 | H155: 0 | I155: 0 | J155: HM17
A156: 2016 | B156: 41118 | C156: 411 | D156: HM | E156: 18 | F156: Loan Forgiveness or Other Reimbursement | G156: 0 | H156: 0 | I156: 0 | J156: HM18
A157: 2016 | B157: 41119 | C157: 411 | D157: HM | E157: 19 | F157: Miscellaneous Income | G157: 0 | H157: 0 | I157: 0 | J157: HM19
A158: 2016 | B158: 41120 | C158: 411 | D158: HM | E158: 20 | F158: TOTAL REVENUES | G158: 7101469.46 | H158: 192624.19 | I158: 7294093.65 | J158: HM20
A159: 2016 | B159: 41121 | C159: 411 | D159: HM | E159: 21 | F159: Administration | G159: 294069.59 | H159: 0 | I159: 294069.59 | J159: HM21
A160: 2016 | B160: 41122 | C160: 411 | D160: HM | E160: 22 | F160: Instructional Services | G160: 4840969 | H160: 0 | I160: 4840969 | J160: HM22
A161: 2016 | B161: 41123 | C161: 411 | D161: HM | E161: 23 | F161: Pupil Services | G161: 942627 | H161: 0 | I161: 942627 | J161: HM23
A162: 2016 | B162: 41124 | C162: 411 | D162: HM | E162: 24 | F162: Operation & Maintenance of Plant | G162: 380738 | H162: 0 | I162: 380738 | J162: HM24
A163: 2016 | B163: 41125 | C163: 411 | D163: HM | E163: 25 | F163: Benefits and Other Fixed Charges | G163: 567725.24 | H163: 0 | I163: 567725.24 | J163: HM25
A164: 2016 | B164: 41126 | C164: 411 | D164: HM | E164: 26 | F164: Community Services | G164: 0 | H164: 0 | I164: 0 | J164: HM26
A165: 2016 | B165: 41127 | C165: 411 | D165: HM | E165: 27 | F165: Non-Operating Financing Expenses | G165: 560 | H165: 0 | I165: 560 | J165: HM27
A166: 2016 | B166: 41128 | C166: 411 | D166: HM | E166: 28 | F166: Component Unit Expenses | G166: 0 | H166: 0 | I166: 0 | J166: HM28
A167: 2016 | B167: 41129 | C167: 411 | D167: HM | E167: 29 | F167: Contributions to School | G167: 0 | H167: 113200 | I167: 113200 | J167: HM29
A168: 2016 | B168: 41130 | C168: 411 | D168: HM | E168: 30 | F168: TOTAL EXPENSES | G168: 7026688.83 | H168: 113200 | I168: 7139888.83 | J168: HM30
A169: 2016 | B169: 41131 | C169: 411 | D169: HM | E169: 31 | F169: TOTAL GAIN/(LOSS) | G169: 74780.63 | H169: 79424.19 | I169: 154204.82 | J169: HM31
A170: 2016 | B170: 41132 | C170: 411 | D170: HM | E170: 32 | F170: Gain/Loss on Sale of Asset or Lease Transaction | G170: 0 | H170: 0 | I170: 0 | J170: HM32
A171: 2016 | B171: 41133 | C171: 411 | D171: HM | E171: 33 | F171: Other Gain/Loss | G171: 0 | H171: 0 | I171: 0 | J171: HM33
A172: 2016 | B172: 41134 | C172: 411 | D172: HM | E172: 34 | F172: TOTAL CHANGES IN NET ASSETS: | G172: 74780.63 | H172: 79424.19 | I172: 154204.82 | J172: HM34
A173: 2016 | B173: 41135 | C173: 411 | D173: HM | E173: 35 | F173: NET ASSETS AT BEGINNING OF YEAR | G173: 64861 | H173: 49259 | I173: 114120 | J173: HM35
A174: 2016 | B174: 41136 | C174: 411 | D174: HM | E174: 36 | F174: NET ASSETS AT END OF YEAR | G174: 139642 | H174: 128683 | I174: 268325 | J174: HM36
A175: 2016 | B175: 4121 | C175: 412 | D175: C | E175: 1 | F175: Tuition | G175: 7822414 | H175: 0 | I175: 7822414 | J175: C1
A176: 2016 | B176: 4122a | C176: 412 | D176: C | E176: 2a | F176: Grants - State - passed through ESE | G176: 0 | H176: 0 | I176: 0 | J176: C2a
A177: 2016 | B177: 4122b | C177: 412 | D177: C | E177: 2b | F177: Grants - State - other non-ESE pass-through | G177: 0 | H177: 0 | I177: 0 | J177: C2b
A178: 2016 | B178: 4123 | C178: 412 | D178: C | E178: 3 | F178: Grants - Federal - Passed through ESE | G178: 321936 | H178: 0 | I178: 321936 | J178: C3
A179: 2016 | B179: 4124 | C179: 412 | D179: C | E179: 4 | F179: Grants - Federal - Direct or other pass-through | G179: 0 | H179: 0 | I179: 0 | J179: C4
A180: 2016 | B180: 4125a | C180: 412 | D180: C | E180: 5a | F180: Grants - Private (restricted) | G180: 0 | H180: 55000 | I180: 55000 | J180: C5a
A181: 2016 | B181: 4125b | C181: 412 | D181: C | E181: 5b | F181: Grants - Private (unrestricted) | G181: 0 | H181: 60500 | I181: 60500 | J181: C5b
A182: 2016 | B182: 4126 | C182: 412 | D182: C | E182: 6 | F182: Nutrition Funding - State | G182: 3718 | H182: 0 | I182: 3718 | J182: C6
A183: 2016 | B183: 4127 | C183: 412 | D183: C | E183: 7 | F183: Nutrition Funding - Federal | G183: 178322 | H183: 0 | I183: 178322 | J183: C7
A184: 2016 | B184: 4128 | C184: 412 | D184: C | E184: 8 | F184: Nutrition Funding - Fees | G184: 4986 | H184: 0 | I184: 4986 | J184: C8
A185: 2016 | B185: 4129 | C185: 412 | D185: C | E185: 9 | F185: Other Program / Student Activity Fees | G185: 0 | H185: 0 | I185: 0 | J185: C9
A186: 2016 | B186: 41210 | C186: 412 | D186: C | E186: 10 | F186: Regional Transportation Aid | G186: 0 | H186: 0 | I186: 0 | J186: C10
A187: 2016 | B187: 41211 | C187: 412 | D187: C | E187: 11 | F187: Medicaid Reimbursements | G187: 45699 | H187: 0 | I187: 45699 | J187: C11
A188: 2016 | B188: 41212 | C188: 412 | D188: C | E188: 12 | F188: Circuit Breaker Reimbursements | G188: 0 | H188: 0 | I188: 0 | J188: C12
A189: 2016 | B189: 41213a | C189: 412 | D189: C | E189: 13a | F189: Contributions, in-kind, host district | G189: 631800 | H189: 0 | I189: 631800 | J189: C13a
A190: 2016 | B190: 41213b | C190: 412 | D190: C | E190: 13b | F190: Contributions, in-kind, other | G190: 880439 | H190: 0 | I190: 880439 | J190: C13b
A191: 2016 | B191: 41213c | C191: 412 | D191: C | E191: 13c | F191: Contributions, on-behalf, pension | G191: 0 | H191: 0 | I191: 0 | J191: C13c
A192: 2016 | B192: 41214 | C192: 412 | D192: C | E192: 14 | F192: Contributions, from Component Unit (restricted) | G192: 0 | H192: 0 | I192: 0 | J192: C14
A193: 2016 | B193: 41214b | C193: 412 | D193: C | E193: 14b | F193: Contributions, from Component Unit (unrestricted) | G193: 75000 | H193: 0 | I193: 75000 | J193: C14b
A194: 2016 | B194: 41215 | C194: 412 | D194: C | E194: 15 | F194: Contributions / Fundraising (restricted) | G194: 0 | H194: 0 | I194: 0 | J194: C15
A195: 2016 | B195: 41215b | C195: 412 | D195: =VLOOKUP(C195, TYPE, 3, FALSE) -> C | E195: 15b | F195: Contributions / Fundraising (unrestricted) | G195: 0 | H195: 28270 | I195: 28270 | J195: =D195&E195 -> C15b
A196: 2016 | B196: =C196&E196 -> 41216 | C196: 412 | D196: C | E196: 16 | F196: Interest / Investment Income (restricted) | G196: 0 | H196: 0 | I196: 0 | J196: C16
A197: 2016 | B197: 41216a | C197: 412 | D197: C | E197: 16a | F197: Interest / Investment Income (unrestricted) | G197: 11216 | H197: 41 | I197: 11257 | J197: C16a
A198: 2016 | B198: 41217 | C198: 412 | D198: C | E198: 17 | F198: Rental Income | G198: 0 | H198: 0 | I198: 0 | J198: C17
A199: 2016 | B199: 41218 | C199: 412 | D199: C | E199: 18 | F199: Loan Forgiveness or Other Reimbursement | G199: 0 | H199: 0 | I199: 0 | J199: C18
A200: 2016 | B200: 41219 | C200: 412 | D200: C | E200: 19 | F200: Miscellaneous Income | G200: 311 | H200: 0 | I200: 311 | J200: C19
... 3414 more rows

Sheet FE16 (hidden)
B1: 1 | C1: 2 | D1: 3 | E1: 4 | F1: 5 | G1: 6 | H1: 7 | I1: 8 | J1: 9 | K1: 10 | L1: 11 | M1: 12
A2: FY | B2: vlookup | C2: cha_code | D2: cha_type | E2: FuncExp_id | F2: Line_Desc | G2: general | H2: sped | I2: undist | J2: state | K2: federal | L2: private | M2: total
A3: 2016 | B3: =C3&E3 -> 407100 | C3: 407 | D3: =VLOOKUP(C3, TYPE, 3, FALSE) -> HM | E3: 100 | F3: Administration | G3: 0 | H3: 0 | I3: 827522.25 | J3: 0 | K3: 557 | L3: 0 | M3: 828079.25 | N3: =D3&E3 -> HM100
A4: 2016 | B4: =C4&E4 -> 407110 | C4: 407 | D4: HM | E4: 110 | F4: Subtotal - Board of Trustees | G4: 0 | H4: 0 | I4: 684 | J4: 0 | K4: 0 | L4: 0 | M4: 684 | N4: =D4&E4 -> HM110
A5: 2016 | B5: 407111 | C5: 407 | D5: HM | E5: 111 | F5: Contracted Services | G5: 0 | H5: 0 | I5: 0 | J5: 0 | K5: 0 | L5: 0 | M5: 0 | N5: HM111
A6: 2016 | B6: 407112 | C6: 407 | D6: HM | E6: 112 | F6: Travel and other expenses | G6: 0 | H6: 0 | I6: 684 | J6: 0 | K6: 0 | L6: 0 | M6: 684 | N6: HM112
A7: 2016 | B7: 407120 | C7: 407 | D7: HM | E7: 120 | F7: Subtotal - School Leaders | G7: 0 | H7: 0 | I7: 0 | J7: 0 | K7: 0 | L7: 0 | M7: 0 | N7: HM120
A8: 2016 | B8: 407121 | C8: 407 | D8: HM | E8: 121 | F8: Salaries - Professional | G8: 0 | H8: 0 | I8: 0 | J8: 0 | K8: 0 | L8: 0 | M8: 0 | N8: HM121
A9: 2016 | B9: 407122 | C9: 407 | D9: HM | E9: 122 | F9: Contracted Services | G9: 0 | H9: 0 | I9: 0 | J9: 0 | K9: 0 | L9: 0 | M9: 0 | N9: HM122
A10: 2016 | B10: 407130 | C10: 407 | D10: HM | E10: 130 | F10: Subtotal - Business and Finance | G10: 0 | H10: 0 | I10: 141308 | J10: 0 | K10: 557 | L10: 0 | M10: 141865 | N10: HM130
A11: 2016 | B11: 407131 | C11: 407 | D11: HM | E11: 131 | F11: Salaries - Professional | G11: 0 | H11: 0 | I11: 0 | J11: 0 | K11: 0 | L11: 0 | M11: 0 | N11: HM131
A12: 2016 | B12: 407132 | C12: 407 | D12: HM | E12: 132 | F12: Contracted Services | G12: 0 | H12: 0 | I12: 141308 | J12: 0 | K12: 557 | L12: 0 | M12: 141865 | N12: HM132
A13: 2016 | B13: 407140 | C13: 407 | D13: HM | E13: 140 | F13: Subtotal - Human Resources | G13: 0 | H13: 0 | I13: 10341.25 | J13: 0 | K13: 0 | L13: 0 | M13: 10341.25 | N13: HM140
A14: 2016 | B14: 407141 | C14: 407 | D14: HM | E14: 141 | F14: Salaries - Professional | G14: 0 | H14: 0 | I14: 10341.25 | J14: 0 | K14: 0 | L14: 0 | M14: 10341.25 | N14: HM141
A15: 2016 | B15: 407142 | C15: 407 | D15: HM | E15: 142 | F15: Contracted Services | G15: 0 | H15: 0 | I15: 0 | J15: 0 | K15: 0 | L15: 0 | M15: 0 | N15: HM142
A16: 2016 | B16: 407150 | C16: 407 | D16: HM | E16: 150 | F16: Subtotal - Legal Services | G16: 0 | H16: 0 | I16: 50 | J16: 0 | K16: 0 | L16: 0 | M16: 50 | N16: HM150
A17: 2016 | B17: 407151 | C17: 407 | D17: HM | E17: 151 | F17: Salaries - Professional | G17: 0 | H17: 0 | I17: 50 | J17: 0 | K17: 0 | L17: 0 | M17: 50 | N17: HM151
A18: 2016 | B18: 407152 | C18: 407 | D18: HM | E18: 152 | F18: Contracted Services | G18: 0 | H18: 0 | I18: 0 | J18: 0 | K18: 0 | L18: 0 | M18: 0 | N18: HM152
A19: 2016 | B19: 407160 | C19: 407 | D19: HM | E19: 160 | F19: Subtotal - Info. Management & Technology | G19: 0 | H19: 0 | I19: 8475 | J19: 0 | K19: 0 | L19: 0 | M19: 8475 | N19: HM160
A20: 2016 | B20: 407161 | C20: 407 | D20: HM | E20: 161 | F20: Salaries - Professional | G20: 0 | H20: 0 | I20: 0 | J20: 0 | K20: 0 | L20: 0 | M20: 0 | N20: HM161
A21: 2016 | B21: 407162 | C21: 407 | D21: HM | E21: 162 | F21: Contracted Services | G21: 0 | H21: 0 | I21: 8475 | J21: 0 | K21: 0 | L21: 0 | M21: 8475 | N21: HM162
A22: 2016 | B22: 407163 | C22: 407 | D22: HM | E22: 163 | F22: Supplies and Materials | G22: 0 | H22: 0 | I22: 0 | J22: 0 | K22: 0 | L22: 0 | M22: 0 | N22: HM163
A23: 2016 | B23: 407164 | C23: 407 | D23: HM | E23: 164 | F23: Depreciation for Information Technology | G23: 0 | H23: 0 | I23: 0 | J23: 0 | K23: 0 | L23: 0 | M23: 0 | N23: HM164
A24: 2016 | B24: 407170 | C24: 407 | D24: HM | E24: 170 | F24: Subtotal - Development (Private) | G24: 0 | H24: 0 | I24: 0 | J24: 0 | K24: 0 | L24: 0 | M24: 0 | N24: HM170
A25: 2016 | B25: 407170a | C25: 407 | D25: HM | E25: 170a | F25: Salaries - Professional - Private | G25: 0 | H25: 0 | I25: 0 | J25: 0 | K25: 0 | L25: 0 | M25: 0 | N25: HM170a
A26: 2016 | B26: 407170b | C26: 407 | D26: HM | E26: 170b | F26: Contracted Services - Private | G26: 0 | H26: 0 | I26: 0 | J26: 0 | K26: 0 | L26: 0 | M26: 0 | N26: HM170b
A27: 2016 | B27: 407170c | C27: 407 | D27: HM | E27: 170c | F27: Fundraising - Private | G27: 0 | H27: 0 | I27: 0 | J27: 0 | K27: 0 | L27: 0 | M27: 0 | N27: HM170c
A28: 2016 | B28: 407171 | C28: 407 | D28: HM | E28: 171 | F28: Subtotal - Development (Public) | G28: 0 | H28: 0 | I28: 0 | J28: 0 | K28: 0 | L28: 0 | M28: 0 | N28: HM171
A29: 2016 | B29: 407171a | C29: 407 | D29: HM | E29: 171a | F29: Salaries - Professional - Public | G29: 0 | H29: 0 | I29: 0 | J29: 0 | K29: 0 | L29: 0 | M29: 0 | N29: HM171a
A30: 2016 | B30: 407171b | C30: 407 | D30: HM | E30: 171b | F30: Contracted Services - Public | G30: 0 | H30: 0 | I30: 0 | J30: 0 | K30: 0 | L30: 0 | M30: 0 | N30: HM171b
A31: 2016 | B31: 407180 | C31: 407 | D31: HM | E31: 180 | F31: Subtotal - Other Administration | G31: 0 | H31: 0 | I31: 666664 | J31: 0 | K31: 0 | L31: 0 | M31: 666664 | N31: HM180
A32: 2016 | B32: 407181 | C32: 407 | D32: HM | E32: 181 | F32: Salaries | G32: 0 | H32: 0 | I32: 0 | J32: 0 | K32: 0 | L32: 0 | M32: 0 | N32: HM181
A33: 2016 | B33: 407182 | C33: 407 | D33: HM | E33: 182 | F33: Contracted Services | G33: 0 | H33: 0 | I33: 666020 | J33: 0 | K33: 0 | L33: 0 | M33: 666020 | N33: HM182
A34: 2016 | B34: 407183 | C34: 407 | D34: HM | E34: 183 | F34: Recruitment/Advertising | G34: 0 | H34: 0 | I34: 0 | J34: 0 | K34: 0 | L34: 0 | M34: 0 | N34: HM183
A35: 2016 | B35: 407184 | C35: 407 | D35: HM | E35: 184 | F35: Travel, Dues, and other expenses | G35: 0 | H35: 0 | I35: 0 | J35: 0 | K35: 0 | L35: 0 | M35: 0 | N35: HM184
A36: 2016 | B36: 407185 | C36: 407 | D36: HM | E36: 185 | F36: Supplies and Materials | G36: 0 | H36: 0 | I36: 644 | J36: 0 | K36: 0 | L36: 0 | M36: 644 | N36: HM185
A37: 2016 | B37: 407200 | C37: 407 | D37: HM | E37: 200 | F37: Instructional Services | G37: 1346803 | H37: 376075 | I37: 68167 | J37: 0 | K37: 235692 | L37: 0 | M37: 2026737 | N37: HM200
A38: 2016 | B38: 407210 | C38: 407 | D38: HM | E38: 210 | F38: Subtotal - Instructional Leadership | G38: 194942 | H38: 97006 | I38: 57794 | J38: 0 | K38: 49110 | L38: 0 | M38: 398852 | N38: HM210
A39: 2016 | B39: 407211 | C39: 407 | D39: HM | E39: 211 | F39: Salaries - Professional | G39: 180920 | H39: 95640 | I39: 0 | J39: 0 | K39: 45000 | L39: 0 | M39: 321560 | N39: HM211
A40: 2016 | B40: 407212 | C40: 407 | D40: HM | E40: 212 | F40: Salaries - Clerical | G40: 0 | H40: 0 | I40: 57794 | J40: 0 | K40: 0 | L40: 0 | M40: 57794 | N40: HM212
A41: 2016 | B41: 407213 | C41: 407 | D41: HM | E41: 213 | F41: Contracted Services | G41: 0 | H41: 0 | I41: 0 | J41: 0 | K41: 0 | L41: 0 | M41: 0 | N41: HM213
A42: 2016 | B42: 407214 | C42: 407 | D42: HM | E42: 214 | F42: Supplies and Materials | G42: 3019 | H42: 287 | I42: 0 | J42: 0 | K42: 4110 | L42: 0 | M42: 7416 | N42: HM214
A43: 2016 | B43: 407215 | C43: 407 | D43: HM | E43: 215 | F43: Travel and other expenses | G43: 11003 | H43: 1079 | I43: 0 | J43: 0 | K43: 0 | L43: 0 | M43: 12082 | N43: HM215
A44: 2016 | B44: 407220 | C44: 407 | D44: HM | E44: 220 | F44: Subtotal - Classroom and Specialist Teachers | G44: 952195 | H44: 224658 | I44: 0 | J44: 0 | K44: 20600 | L44: 0 | M44: 1197453 | N44: HM220
A45: 2016 | B45: 407221 | C45: 407 | D45: HM | E45: 221 | F45: Salaries - Teachers, Classroom | G45: 769296 | H45: 194884 | I45: 0 | J45: 0 | K45: 20600 | L45: 0 | M45: 984780 | N45: HM221
A46: 2016 | B46: 407222 | C46: 407 | D46: HM | E46: 222 | F46: Salaries - Teachers, Specialists | G46: 182899 | H46: 29774 | I46: 0 | J46: 0 | K46: 0 | L46: 0 | M46: 212673 | N46: HM222
A47: 2016 | B47: 407230 | C47: 407 | D47: HM | E47: 230 | F47: Subtotal - Other Teaching Services | G47: 138449 | H47: 38897 | I47: 0 | J47: 0 | K47: 105386 | L47: 0 | M47: 282732 | N47: HM230
A48: 2016 | B48: 407231 | C48: 407 | D48: HM | E48: 231 | F48: Salaries - Professional | G48: 5264 | H48: 857 | I48: 0 | J48: 0 | K48: 0 | L48: 0 | M48: 6121 | N48: HM231
A49: 2016 | B49: 407232 | C49: 407 | D49: HM | E49: 232 | F49: Salaries - Nonclerical Paraprofessionals | G49: 133185 | H49: 38040 | I49: 0 | J49: 0 | K49: 105386 | L49: 0 | M49: 276611 | N49: HM232
A50: 2016 | B50: 407233 | C50: 407 | D50: HM | E50: 233 | F50: Salaries - Clerical | G50: 0 | H50: 0 | I50: 0 | J50: 0 | K50: 0 | L50: 0 | M50: 0 | N50: HM233
A51: 2016 | B51: 407234 | C51: 407 | D51: HM | E51: 234 | F51: Contracted Services | G51: 0 | H51: 0 | I51: 0 | J51: 0 | K51: 0 | L51: 0 | M51: 0 | N51: HM234
A52: 2016 | B52: 407240 | C52: 407 | D52: HM | E52: 240 | F52: Subtotal - Professional Development | G52: 14830 | H52: 8761 | I52: 0 | J52: 0 | K52: 50696 | L52: 0 | M52: 74287 | N52: HM240
A53: 2016 | B53: 407241 | C53: 407 | D53: HM | E53: 241 | F53: Salaries - Professional | G53: 0 | H53: 7091 | I53: 0 | J53: 0 | K53: 45978 | L53: 0 | M53: 53069 | N53: HM241
A54: 2016 | B54: 407242 | C54: 407 | D54: HM | E54: 242 | F54: Contracted Services | G54: 0 | H54: 0 | I54: 0 | J54: 0 | K54: 0 | L54: 0 | M54: 0 | N54: HM242
A55: 2016 | B55: 407243 | C55: 407 | D55: HM | E55: 243 | F55: Supplies and Materials | G55: 14830 | H55: 1670 | I55: 0 | J55: 0 | K55: 4718 | L55: 0 | M55: 21218 | N55: HM243
A56: 2016 | B56: 407244 | C56: 407 | D56: HM | E56: 244 | F56: Travel and other expenses | G56: 0 | H56: 0 | I56: 0 | J56: 0 | K56: 0 | L56: 0 | M56: 0 | N56: HM244
A57: 2016 | B57: 407250 | C57: 407 | D57: HM | E57: 250 | F57: Subtotal - Guidance, Psychological & Testing | G57: 1601 | H57: 261 | I57: 0 | J57: 0 | K57: 0 | L57: 0 | M57: 1862 | N57: HM250
A58: 2016 | B58: 407251 | C58: 407 | D58: HM | E58: 251 | F58: Salaries - Professional | G58: 1601 | H58: 261 | I58: 0 | J58: 0 | K58: 0 | L58: 0 | M58: 1862 | N58: HM251
A59: 2016 | B59: 407252 | C59: 407 | D59: HM | E59: 252 | F59: Salaries - Clerical | G59: 0 | H59: 0 | I59: 0 | J59: 0 | K59: 0 | L59: 0 | M59: 0 | N59: HM252
A60: 2016 | B60: 407253 | C60: 407 | D60: HM | E60: 253 | F60: Contracted Services | G60: 0 | H60: 0 | I60: 0 | J60: 0 | K60: 0 | L60: 0 | M60: 0 | N60: HM253
A61: 2016 | B61: 407254 | C61: 407 | D61: HM | E61: 254 | F61: Supplies and Materials | G61: 0 | H61: 0 | I61: 0 | J61: 0 | K61: 0 | L61: 0 | M61: 0 | N61: HM254
A62: 2016 | B62: 407260 | C62: 407 | D62: HM | E62: 260 | F62: Subtotal - Materials, Equipment & Technology | G62: 44786 | H62: 6492 | I62: 10373 | J62: 0 | K62: 9900 | L62: 0 | M62: 71551 | N62: HM260
A63: 2016 | B63: 407261 | C63: 407 | D63: HM | E63: 261 | F63: Textbooks & Related Media/Materials | G63: 21762 | H63: 3422 | I63: 0 | J63: 0 | K63: 648 | L63: 0 | M63: 25832 | N63: HM261
A64: 2016 | B64: 407262 | C64: 407 | D64: HM | E64: 262 | F64: Other Instructional Materials | G64: 0 | H64: 0 | I64: 0 | J64: 0 | K64: 0 | L64: 0 | M64: 0 | N64: HM262
A65: 2016 | B65: 407263 | C65: 407 | D65: HM | E65: 263 | F65: Instructional Equipment | G65: 1872 | H65: 774 | I65: 0 | J65: 0 | K65: 2969 | L65: 0 | M65: 5615 | N65: HM263
A66: 2016 | B66: 407264 | C66: 407 | D66: HM | E66: 264 | F66: General Supplies | G66: 9835 | H66: 1517 | I66: 0 | J66: 0 | K66: 25 | L66: 0 | M66: 11377 | N66: HM264
A67: 2016 | B67: 407265 | C67: 407 | D67: =VLOOKUP(C67, TYPE, 3, FALSE) -> HM | E67: 265 | F67: Other Instructional Services | G67: 0 | H67: 0 | I67: 0 | J67: 0 | K67: 0 | L67: 0 | M67: 0 | N67: HM265
A68: 2016 | B68: =C68&E68 -> 407266 | C68: 407 | D68: HM | E68: 266 | F68: Classroom Instructional Technology | G68: 0 | H68: 0 | I68: 0 | J68: 0 | K68: 0 | L68: 0 | M68: 0 | N68: =D68&E68 -> HM266
A69: 2016 | B69: 407267 | C69: 407 | D69: HM | E69: 267 | F69: Other Instructional Hardware | G69: 0 | H69: 0 | I69: 10373 | J69: 0 | K69: 6258 | L69: 0 | M69: 16631 | N69: HM267
A70: 2016 | B70: 407268 | C70: 407 | D70: HM | E70: 268 | F70: Instructional Software | G70: 11317 | H70: 779 | I70: 0 | J70: 0 | K70: 0 | L70: 0 | M70: 12096 | N70: HM268
A71: 2016 | B71: 407269 | C71: 407 | D71: HM | E71: 269 | F71: Depreciation for Instructional Equipment | G71: 0 | H71: 0 | I71: 0 | J71: 0 | K71: 0 | L71: 0 | M71: 0 | N71: HM269
A72: 2016 | B72: 407300 | C72: 407 | D72: HM | E72: 300 | F72: Pupil Services | G72: 337127 | H72: 0 | I72: 122042 | J72: 0 | K72: 17083 | L72: 0 | M72: 476252 | N72: HM300
A73: 2016 | B73: 407310 | C73: 407 | D73: HM | E73: 310 | F73: Health Services | G73: 0 | H73: 0 | I73: 0 | J73: 0 | K73: 0 | L73: 0 | M73: 0 | N73: HM310
A74: 2016 | B74: 407315 | C74: 407 | D74: HM | E74: 315 | F74: Health Services - Contracted | G74: 0 | H74: 0 | I74: 0 | J74: 0 | K74: 0 | L74: 0 | M74: 0 | N74: HM315
A75: 2016 | B75: 407320 | C75: 407 | D75: HM | E75: 320 | F75: Athletic Services | G75: 0 | H75: 0 | I75: 70775 | J75: 0 | K75: 0 | L75: 0 | M75: 70775 | N75: HM320
A76: 2016 | B76: 407325 | C76: 407 | D76: HM | E76: 325 | F76: Athletic Services - Contracted | G76: 0 | H76: 0 | I76: 0 | J76: 0 | K76: 0 | L76: 0 | M76: 0 | N76: HM325
A77: 2016 | B77: 407330 | C77: 407 | D77: HM | E77: 330 | F77: Food Services | G77: 0 | H77: 0 | I77: 51267 | J77: 0 | K77: 195 | L77: 0 | M77: 51462 | N77: HM330
A78: 2016 | B78: 407335 | C78: 407 | D78: HM | E78: 335 | F78: Food Services - Contracted | G78: 0 | H78: 0 | I78: 0 | J78: 0 | K78: 0 | L78: 0 | M78: 0 | N78: HM335
A79: 2016 | B79: 407340 | C79: 407 | D79: HM | E79: 340 | F79: Student Transportation (to and from school) | G79: 337127 | H79: 0 | I79: 0 | J79: 0 | K79: 16888 | L79: 0 | M79: 354015 | N79: HM340
A80: 2016 | B80: 407345 | C80: 407 | D80: HM | E80: 345 | F80: Student Transportation (to and from school) | G80: 0 | H80: 0 | I80: 0 | J80: 0 | K80: 0 | L80: 0 | M80: 0 | N80: HM345
A81: 2016 | B81: 407350 | C81: 407 | D81: HM | E81: 350 | F81: Depreciation of Transportation Vehicles | G81: 0 | H81: 0 | I81: 0 | J81: 0 | K81: 0 | L81: 0 | M81: 0 | N81: HM350
A82: 2016 | B82: 407360 | C82: 407 | D82: HM | E82: 360 | F82: Other Student Activities | G82: 0 | H82: 0 | I82: 0 | J82: 0 | K82: 0 | L82: 0 | M82: 0 | N82: HM360
A83: 2016 | B83: 407400 | C83: 407 | D83: HM | E83: 400 | F83: Operation & Maintenance of Plant | G83: 0 | H83: 0 | I83: 149652 | J83: 0 | K83: 0 | L83: 0 | M83: 149652 | N83: HM400
A84: 2016 | B84: 407410 | C84: 407 | D84: HM | E84: 410 | F84: Operation & Maintenance of Buildings and Grounds | G84: 0 | H84: 0 | I84: 0 | J84: 0 | K84: 0 | L84: 0 | M84: 0 | N84: HM410
A85: 2016 | B85: 407420 | C85: 407 | D85: HM | E85: 420 | F85: Utilities | G85: 0 | H85: 0 | I85: 81567 | J85: 0 | K85: 0 | L85: 0 | M85: 81567 | N85: HM420
A86: 2016 | B86: 407430 | C86: 407 | D86: HM | E86: 430 | F86: Maintenance of Equipment | G86: 0 | H86: 0 | I86: 68085 | J86: 0 | K86: 0 | L86: 0 | M86: 68085 | N86: HM430
A87: 2016 | B87: 407440 | C87: 407 | D87: HM | E87: 440 | F87: Networking and Telecommunications | G87: 0 | H87: 0 | I87: 0 | J87: 0 | K87: 0 | L87: 0 | M87: 0 | N87: HM440
A88: 2016 | B88: 407500 | C88: 407 | D88: HM | E88: 500 | F88: Fixed Charges | G88: 0 | H88: 0 | I88: 595254 | J88: 0 | K88: 371 | L88: 0 | M88: 595625 | N88: HM500
A89: 2016 | B89: 407510 | C89: 407 | D89: HM | E89: 510 | F89: Employee Retirement | G89: 0 | H89: 0 | I89: 0 | J89: 0 | K89: 0 | L89: 0 | M89: 0 | N89: HM510
A90: 2016 | B90: 407520 | C90: 407 | D90: HM | E90: 520 | F90: Fringe Benefits | G90: 0 | H90: 0 | I90: 588359 | J90: 0 | K90: 371 | L90: 0 | M90: 588730 | N90: HM520
A91: 2016 | B91: 407530 | C91: 407 | D91: HM | E91: 530 | F91: Insurance (non-employee) | G91: 0 | H91: 0 | I91: 6484 | J91: 0 | K91: 0 | L91: 0 | M91: 6484 | N91: HM530
A92: 2016 | B92: 407550 | C92: 407 | D92: HM | E92: 550 | F92: Rental/Lease of Equipment | G92: 0 | H92: 0 | I92: 411 | J92: 0 | K92: 0 | L92: 0 | M92: 411 | N92: HM550
A93: 2016 | B93: 407560 | C93: 407 | D93: HM | E93: 560 | F93: Short-Term Interest | G93: 0 | H93: 0 | I93: 0 | J93: 0 | K93: 0 | L93: 0 | M93: 0 | N93: HM560
A94: 2016 | B94: 407600 | C94: 407 | D94: HM | E94: 600 | F94: Community Services | G94: 0 | H94: 0 | I94: 0 | J94: 0 | K94: 0 | L94: 0 | M94: 0 | N94: HM600
A95: 2016 | B95: 407610 | C95: 407 | D95: HM | E95: 610 | F95: Dissemination Activities | G95: 0 | H95: 0 | I95: 0 | J95: 0 | K95: 0 | L95: 0 | M95: 0 | N95: HM610
A96: 2016 | B96: 407620 | C96: 407 | D96: HM | E96: 620 | F96: Civic Activities | G96: 0 | H96: 0 | I96: 0 | J96: 0 | K96: 0 | L96: 0 | M96: 0 | N96: HM620
A97: 2016 | B97: 407700 | C97: 407 | D97: HM | E97: 700 | F97: Non-Operating / Capital Facilities Costs | G97: 0 | H97: 0 | I97: 19334 | J97: 0 | K97: 0 | L97: 0 | M97: 19334 | N97: HM700
A98: 2016 | B98: 407720 | C98: 407 | D98: HM | E98: 720 | F98: Long-Term Interest, facilities related | G98: 0 | H98: 0 | I98: 0 | J98: 0 | K98: 0 | L98: 0 | M98: 0 | N98: HM720
A99: 2016 | B99: 407725 | C99: 407 | D99: HM | E99: 725 | F99: Long-Term Interest, non-facilities related | G99: 0 | H99: 0 | I99: 0 | J99: 0 | K99: 0 | L99: 0 | M99: 0 | N99: HM725
A100: 2016 | B100: 407730 | C100: 407 | D100: HM | E100: 730 | F100: Other costs related to capital facilities acquisition | G100: 0 | H100: 0 | I100: 0 | J100: 0 | K100: 0 | L100: 0 | M100: 0 | N100: HM730
A101: 2016 | B101: 407740 | C101: 407 | D101: HM | E101: 740 | F101: Rental/Lease of Buildings & Grounds | G101: 0 | H101: 0 | I101: 0 | J101: 0 | K101: 0 | L101: 0 | M101: 0 | N101: HM740
A102: 2016 | B102: 407750 | C102: 407 | D102: HM | E102: 750 | F102: Depreciation of Equipment, Building, & Grounds | G102: 0 | H102: 0 | I102: 19334 | J102: 0 | K102: 0 | L102: 0 | M102: 19334 | N102: HM750
A103: 2016 | B103: 407760 | C103: 407 | D103: HM | E103: 760 | F103: Bad debt / loss on disposal of assets | G103: 0 | H103: 0 | I103: 0 | J103: 0 | K103: 0 | L103: 0 | M103: 0 | N103: HM760
A104: 2016 | B104: 407800 | C104: 407 | D104: HM | E104: 800 | F104: TOTALS | G104: 1683930 | H104: 376075 | I104: 1781971.25 | J104: 0 | K104: 253703 | L104: 0 | M104: 4095679.25 | N104: HM800
A105: 2016 | B105: 407910 | C105: 407 | D105: HM | E105: 910 | F105: Reference: Capitalized Expenditures | G105: 0 | H105: 0 | I105: 0 | J105: 0 | K105: 0 | L105: 0 | M105: 0 | N105: HM910
A106: 2016 | B106: 407920 | C106: 407 | D106: HM | E106: 920 | F106: Reference: Deferrals/Carryovers | G106: 0 | H106: 0 | I106: 0 | J106: 0 | K106: 0 | L106: 0 | M106: 0 | N106: HM920
A107: 2016 | B107: 407900 | C107: 407 | D107: HM | E107: 900 | F107: Reference: Totals | G107: 0 | H107: 0 | I107: 1781971.25 | J107: 0 | K107: 253703 | L107: 0 | M107: 4095679.25 | N107: HM900
A108: 2016 | B108: 409100 | C108: 409 | D108: C | E108: 100 | F108: Administration | G108: 0 | H108: 0 | I108: 535844.7 | J108: 0 | K108: 5000 | L108: 0 | M108: 540844.7 | N108: C100
A109: 2016 | B109: 409110 | C109: 409 | D109: C | E109: 110 | F109: Subtotal - Board of Trustees | G109: 0 | H109: 0 | I109: 8139.41 | J109: 0 | K109: 0 | L109: 0 | M109: 8139.41 | N109: C110
A110: 2016 | B110: 409111 | C110: 409 | D110: C | E110: 111 | F110: Contracted Services | G110: 0 | H110: 0 | I110: 7995 | J110: 0 | K110: 0 | L110: 0 | M110: 7995 | N110: C111
A111: 2016 | B111: 409112 | C111: 409 | D111: C | E111: 112 | F111: Travel and other expenses | G111: 0 | H111: 0 | I111: 144.41 | J111: 0 | K111: 0 | L111: 0 | M111: 144.41 | N111: C112
A112: 2016 | B112: 409120 | C112: 409 | D112: C | E112: 120 | F112: Subtotal - School Leaders | G112: 0 | H112: 0 | I112: 125032.33 | J112: 0 | K112: 0 | L112: 0 | M112: 125032.33 | N112: C120
A113: 2016 | B113: 409121 | C113: 409 | D113: C | E113: 121 | F113: Salaries - Professional | G113: 0 | H113: 0 | I113: 110531.25 | J113: 0 | K113: 0 | L113: 0 | M113: 110531.25 | N113: C121
A114: 2016 | B114: 409122 | C114: 409 | D114: C | E114: 122 | F114: Contracted Services | G114: 0 | H114: 0 | I114: 14501.08 | J114: 0 | K114: 0 | L114: 0 | M114: 14501.08 | N114: C122
A115: 2016 | B115: 409130 | C115: 409 | D115: C | E115: 130 | F115: Subtotal - Business and Finance | G115: 0 | H115: 0 | I115: 191797.64 | J115: 0 | K115: 0 | L115: 0 | M115: 191797.64 | N115: C130
A116: 2016 | B116: 409131 | C116: 409 | D116: C | E116: 131 | F116: Salaries - Professional | G116: 0 | H116: 0 | I116: 116667.54 | J116: 0 | K116: 0 | L116: 0 | M116: 116667.54 | N116: C131
A117: 2016 | B117: 409132 | C117: 409 | D117: C | E117: 132 | F117: Contracted Services | G117: 0 | H117: 0 | I117: 75130.1 | J117: 0 | K117: 0 | L117: 0 | M117: 75130.1 | N117: C132
A118: 2016 | B118: 409140 | C118: 409 | D118: C | E118: 140 | F118: Subtotal - Human Resources | G118: 0 | H118: 0 | I118: 28112.9 | J118: 0 | K118: 0 | L118: 0 | M118: 28112.9 | N118: C140
A119: 2016 | B119: 409141 | C119: 409 | D119: C | E119: 141 | F119: Salaries - Professional | G119: 0 | H119: 0 | I119: 0 | J119: 0 | K119: 0 | L119: 0 | M119: 0 | N119: C141
A120: 2016 | B120: 409142 | C120: 409 | D120: C | E120: 142 | F120: Contracted Services | G120: 0 | H120: 0 | I120: 28112.9 | J120: 0 | K120: 0 | L120: 0 | M120: 28112.9 | N120: C142
A121: 2016 | B121: 409150 | C121: 409 | D121: C | E121: 150 | F121: Subtotal - Legal Services | G121: 0 | H121: 0 | I121: 3372.5 | J121: 0 | K121: 0 | L121: 0 | M121: 3372.5 | N121: C150
A122: 2016 | B122: 409151 | C122: 409 | D122: C | E122: 151 | F122: Salaries - Professional | G122: 0 | H122: 0 | I122: 0 | J122: 0 | K122: 0 | L122: 0 | M122: 0 | N122: C151
A123: 2016 | B123: 409152 | C123: 409 | D123: C | E123: 152 | F123: Contracted Services | G123: 0 | H123: 0 | I123: 3372.5 | J123: 0 | K123: 0 | L123: 0 | M123: 3372.5 | N123: C152
A124: 2016 | B124: 409160 | C124: 409 | D124: C | E124: 160 | F124: Subtotal - Info. Management & Technology | G124: 0 | H124: 0 | I124: 50382.42 | J124: 0 | K124: 0 | L124: 0 | M124: 50382.42 | N124: C160
A125: 2016 | B125: 409161 | C125: 409 | D125: C | E125: 161 | F125: Salaries - Professional | G125: 0 | H125: 0 | I125: 0 | J125: 0 | K125: 0 | L125: 0 | M125: 0 | N125: C161
A126: 2016 | B126: 409162 | C126: 409 | D126: C | E126: 162 | F126: Contracted Services | G126: 0 | H126: 0 | I126: 32504.25 | J126: 0 | K126: 0 | L126: 0 | M126: 32504.25 | N126: C162
A127: 2016 | B127: 409163 | C127: 409 | D127: C | E127: 163 | F127: Supplies and Materials | G127: 0 | H127: 0 | I127: 17878.17 | J127: 0 | K127: 0 | L127: 0 | M127: 17878.17 | N127: C163
A128: 2016 | B128: 409164 | C128: 409 | D128: C | E128: 164 | F128: Depreciation for Information Technology | G128: 0 | H128: 0 | I128: 0 | J128: 0 | K128: 0 | L128: 0 | M128: 0 | N128: C164
A129: 2016 | B129: 409170 | C129: 409 | D129: C | E129: 170 | F129: Subtotal - Development (Private) | G129: 0 | H129: 0 | I129: 64530.76 | J129: 0 | K129: 0 | L129: 0 | M129: 64530.76 | N129: C170
A130: 2016 | B130: 409170a | C130: 409 | D130: C | E130: 170a | F130: Salaries - Professional - Private | G130: 0 | H130: 0 | I130: 40885.42 | J130: 0 | K130: 0 | L130: 0 | M130: 40885.42 | N130: C170a
A131: 2016 | B131: 409170b | C131: 409 | D131: =VLOOKUP(C131, TYPE, 3, FALSE) -> C | E131: 170b | F131: Contracted Services - Private | G131: 0 | H131: 0 | I131: 7695 | J131: 0 | K131: 0 | L131: 0 | M131: 7695 | N131: C170b
A132: 2016 | B132: =C132&E132 -> 409170c | C132: 409 | D132: C | E132: 170c | F132: Fundraising - Private | G132: 0 | H132: 0 | I132: 15950.34 | J132: 0 | K132: 0 | L132: 0 | M132: 15950.34 | N132: =D132&E132 -> C170c
A133: 2016 | B133: 409171 | C133: 409 | D133: C | E133: 171 | F133: Subtotal - Development (Public) | G133: 0 | H133: 0 | I133: 0 | J133: 0 | K133: 0 | L133: 0 | M133: 0 | N133: C171
A134: 2016 | B134: 409171a | C134: 409 | D134: C | E134: 171a | F134: Salaries - Professional - Public | G134: 0 | H134: 0 | I134: 0 | J134: 0 | K134: 0 | L134: 0 | M134: 0 | N134: C171a
A135: 2016 | B135: 409171b | C135: 409 | D135: C | E135: 171b | F135: Contracted Services - Public | G135: 0 | H135: 0 | I135: 0 | J135: 0 | K135: 0 | L135: 0 | M135: 0 | N135: C171b
A136: 2016 | B136: 409180 | C136: 409 | D136: C | E136: 180 | F136: Subtotal - Other Administration | G136: 0 | H136: 0 | I136: 64476.74 | J136: 0 | K136: 5000 | L136: 0 | M136: 69476.74 | N136: C180
A137: 2016 | B137: 409181 | C137: 409 | D137: C | E137: 181 | F137: Salaries | G137: 0 | H137: 0 | I137: 35042.21 | J137: 0 | K137: 0 | L137: 0 | M137: 35042.21 | N137: C181
A138: 2016 | B138: 409182 | C138: 409 | D138: C | E138: 182 | F138: Contracted Services | G138: 0 | H138: 0 | I138: 0 | J138: 0 | K138: 0 | L138: 0 | M138: 0 | N138: C182
A139: 2016 | B139: 409183 | C139: 409 | D139: C | E139: 183 | F139: Recruitment/Advertising | G139: 0 | H139: 0 | I139: 12205.36 | J139: 0 | K139: 5000 | L139: 0 | M139: 17205.36 | N139: C183
A140: 2016 | B140: 409184 | C140: 409 | D140: C | E140: 184 | F140: Travel, Dues, and other expenses | G140: 0 | H140: 0 | I140: 13871.26 | J140: 0 | K140: 0 | L140: 0 | M140: 13871.26 | N140: C184
A141: 2016 | B141: 409185 | C141: 409 | D141: C | E141: 185 | F141: Supplies and Materials | G141: 0 | H141: 0 | I141: 3357.91 | J141: 0 | K141: 0 | L141: 0 | M141: 3357.91 | N141: C185
A142: 2016 | B142: 409200 | C142: 409 | D142: C | E142: 200 | F142: Instructional Services | G142: 1640011.25 | H142: 0 | I142: 299533.95 | J142: 0 | K142: 208230.44 | L142: 599 | M142: 2148374.64 | N142: C200
A143: 2016 | B143: 409210 | C143: 409 | D143: C | E143: 210 | F143: Subtotal - Instructional Leadership | G143: 0 | H143: 0 | I143: 218214.1 | J143: 0 | K143: 0 | L143: 0 | M143: 218214.1 | N143: C210
A144: 2016 | B144: 409211 | C144: 409 | D144: C | E144: 211 | F144: Salaries - Professional | G144: 0 | H144: 0 | I144: 213606.73 | J144: 0 | K144: 0 | L144: 0 | M144: 213606.73 | N144: C211
A145: 2016 | B145: 409212 | C145: 409 | D145: C | E145: 212 | F145: Salaries - Clerical | G145: 0 | H145: 0 | I145: 0 | J145: 0 | K145: 0 | L145: 0 | M145: 0 | N145: C212
A146: 2016 | B146: 409213 | C146: 409 | D146: C | E146: 213 | F146: Contracted Services | G146: 0 | H146: 0 | I146: 4176.55 | J146: 0 | K146: 0 | L146: 0 | M146: 4176.55 | N146: C213
A147: 2016 | B147: 409214 | C147: 409 | D147: C | E147: 214 | F147: Supplies and Materials | G147: 0 | H147: 0 | I147: 430.82 | J147: 0 | K147: 0 | L147: 0 | M147: 430.82 | N147: C214
A148: 2016 | B148: 409215 | C148: 409 | D148: C | E148: 215 | F148: Travel and other expenses | G148: 0 | H148: 0 | I148: 0 | J148: 0 | K148: 0 | L148: 0 | M148: 0 | N148: C215
A149: 2016 | B149: 409220 | C149: 409 | D149: C | E149: 220 | F149: Subtotal - Classroom and Specialist Teachers | G149: 1218722.5 | H149: 0 | I149: 0 | J149: 0 | K149: 40000 | L149: 0 | M149: 1258722.5 | N149: C220
A150: 2016 | B150: 409221 | C150: 409 | D150: C | E150: 221 | F150: Salaries - Teachers, Classroom | G150: 966531.51 | H150: 0 | I150: 0 | J150: 0 | K150: 0 | L150: 0 | M150: 966531.51 | N150: C221
A151: 2016 | B151: 409222 | C151: 409 | D151: C | E151: 222 | F151: Salaries - Teachers, Specialists | G151: 252190.99 | H151: 0 | I151: 0 | J151: 0 | K151: 40000 | L151: 0 | M151: 292190.99 | N151: C222
A152: 2016 | B152: 409230 | C152: 409 | D152: C | E152: 230 | F152: Subtotal - Other Teaching Services | G152: 182241.16 | H152: 0 | I152: 0 | J152: 0 | K152: 90534 | L152: 0 | M152: 272775.16 | N152: C230
A153: 2016 | B153: 409231 | C153: 409 | D153: C | E153: 231 | F153: Salaries - Professional | G153: 44377.37 | H153: 0 | I153: 0 | J153: 0 | K153: 0 | L153: 0 | M153: 44377.37 | N153: C231
A154: 2016 | B154: 409232 | C154: 409 | D154: C | E154: 232 | F154: Salaries - Nonclerical Paraprofessionals | G154: 62084.07 | H154: 0 | I154: 0 | J154: 0 | K154: 70000 | L154: 0 | M154: 132084.07 | N154: C232
A155: 2016 | B155: 409233 | C155: 409 | D155: C | E155: 233 | F155: Salaries - Clerical | G155: 0 | H155: 0 | I155: 0 | J155: 0 | K155: 0 | L155: 0 | M155: 0 | N155: C233
A156: 2016 | B156: 409234 | C156: 409 | D156: C | E156: 234 | F156: Contracted Services | G156: 75779.72 | H156: 0 | I156: 0 | J156: 0 | K156: 20534 | L156: 0 | M156: 96313.72 | N156: C234
A157: 2016 | B157: 409240 | C157: 409 | D157: C | E157: 240 | F157: Subtotal - Professional Development | G157: 68091.01 | H157: 0 | I157: 0 | J157: 0 | K157: 57262.44 | L157: 599 | M157: 125952.45 | N157: C240
A158: 2016 | B158: 409241 | C158: 409 | D158: C | E158: 241 | F158: Salaries - Professional | G158: 0 | H158: 0 | I158: 0 | J158: 0 | K158: 0 | L158: 0 | M158: 0 | N158: C241
A159: 2016 | B159: 409242 | C159: 409 | D159: C | E159: 242 | F159: Contracted Services | G159: 38638.41 | H159: 0 | I159: 0 | J159: 0 | K159: 48273 | L159: 0 | M159: 86911.41 | N159: C242
A160: 2016 | B160: 409243 | C160: 409 | D160: C | E160: 243 | F160: Supplies and Materials | G160: 5504.05 | H160: 0 | I160: 0 | J160: 0 | K160: 1950 | L160: 599 | M160: 8053.05 | N160: C243
A161: 2016 | B161: 409244 | C161: 409 | D161: C | E161: 244 | F161: Travel and other expenses | G161: 23948.55 | H161: 0 | I161: 0 | J161: 0 | K161: 7039.44 | L161: 0 | M161: 30987.99 | N161: C244
A162: 2016 | B162: 409250 | C162: 409 | D162: C | E162: 250 | F162: Subtotal - Guidance, Psychological & Testing | G162: 12544.36 | H162: 0 | I162: 0 | J162: 0 | K162: 5213 | L162: 0 | M162: 17757.36 | N162: C250
A163: 2016 | B163: 409251 | C163: 409 | D163: C | E163: 251 | F163: Salaries - Professional | G163: 0 | H163: 0 | I163: 0 | J163: 0 | K163: 0 | L163: 0 | M163: 0 | N163: C251
A164: 2016 | B164: 409252 | C164: 409 | D164: C | E164: 252 | F164: Salaries - Clerical | G164: 0 | H164: 0 | I164: 0 | J164: 0 | K164: 0 | L164: 0 | M164: 0 | N164: C252
A165: 2016 | B165: 409253 | C165: 409 | D165: C | E165: 253 | F165: Contracted Services | G165: 8595.6 | H165: 0 | I165: 0 | J165: 0 | K165: 5213 | L165: 0 | M165: 13808.6 | N165: C253
A166: 2016 | B166: 409254 | C166: 409 | D166: C | E166: 254 | F166: Supplies and Materials | G166: 3948.76 | H166: 0 | I166: 0 | J166: 0 | K166: 0 | L166: 0 | M166: 3948.76 | N166: C254
A167: 2016 | B167: 409260 | C167: 409 | D167: C | E167: 260 | F167: Subtotal - Materials, Equipment & Technology | G167: 158412.22 | H167: 0 | I167: 81319.85 | J167: 0 | K167: 15221 | L167: 0 | M167: 254953.07 | N167: C260
A168: 2016 | B168: 409261 | C168: 409 | D168: C | E168: 261 | F168: Textbooks & Related Media/Materials | G168: 6358.71 | H168: 0 | I168: 0 | J168: 0 | K168: 0 | L168: 0 | M168: 6358.71 | N168: C261
A169: 2016 | B169: 409262 | C169: 409 | D169: C | E169: 262 | F169: Other Instructional Materials | G169: 30360.85 | H169: 0 | I169: 0 | J169: 0 | K169: 3892 | L169: 0 | M169: 34252.85 | N169: C262
A170: 2016 | B170: 409263 | C170: 409 | D170: C | E170: 263 | F170: Instructional Equipment | G170: 41610.7 | H170: 0 | I170: 0 | J170: 0 | K170: 0 | L170: 0 | M170: 41610.7 | N170: C263
A171: 2016 | B171: 409264 | C171: 409 | D171: C | E171: 264 | F171: General Supplies | G171: 79615.09 | H171: 0 | I171: 0 | J171: 0 | K171: 1329 | L171: 0 | M171: 80944.09 | N171: C264
A172: 2016 | B172: 409265 | C172: 409 | D172: C | E172: 265 | F172: Other Instructional Services | G172: 0 | H172: 0 | I172: 0 | J172: 0 | K172: 0 | L172: 0 | M172: 0 | N172: C265
A173: 2016 | B173: 409266 | C173: 409 | D173: C | E173: 266 | F173: Classroom Instructional Technology | G173: 0 | H173: 0 | I173: 54122.68 | J173: 0 | K173: 10000 | L173: 0 | M173: 64122.68 | N173: C266
A174: 2016 | B174: 409267 | C174: 409 | D174: C | E174: 267 | F174: Other Instructional Hardware | G174: 0 | H174: 0 | I174: 27197.17 | J174: 0 | K174: 0 | L174: 0 | M174: 27197.17 | N174: C267
A175: 2016 | B175: 409268 | C175: 409 | D175: C | E175: 268 | F175: Instructional Software | G175: 466.87 | H175: 0 | I175: 0 | J175: 0 | K175: 0 | L175: 0 | M175: 466.87 | N175: C268
A176: 2016 | B176: 409269 | C176: 409 | D176: C | E176: 269 | F176: Depreciation for Instructional Equipment | G176: 0 | H176: 0 | I176: 0 | J176: 0 | K176: 0 | L176: 0 | M176: 0 | N176: C269
A177: 2016 | B177: 409300 | C177: 409 | D177: C | E177: 300 | F177: Pupil Services | G177: 411548.4 | H177: 0 | I177: 237428.41 | J177: 6948 | K177: 168181 | L177: 0 | M177: 824105.81 | N177: C300
A178: 2016 | B178: 409310 | C178: 409 | D178: C | E178: 310 | F178: Health Services | G178: 0 | H178: 0 | I178: 74976.26 | J178: 0 | K178: 0 | L178: 0 | M178: 74976.26 | N178: C310
A179: 2016 | B179: 409315 | C179: 409 | D179: C | E179: 315 | F179: Health Services - Contracted | G179: 0 | H179: 0 | I179: 0 | J179: 0 | K179: 0 | L179: 0 | M179: 0 | N179: C315
A180: 2016 | B180: 409320 | C180: 409 | D180: C | E180: 320 | F180: Athletic Services | G180: 0 | H180: 0 | I180: 0 | J180: 0 | K180: 0 | L180: 0 | M180: 0 | N180: C320
A181: 2016 | B181: 409325 | C181: 409 | D181: C | E181: 325 | F181: Athletic Services - Contracted | G181: 0 | H181: 0 | I181: 0 | J181: 0 | K181: 0 | L181: 0 | M181: 0 | N181: C325
A182: 2016 | B182: 409330 | C182: 409 | D182: C | E182: 330 | F182: Food Services | G182: 0 | H182: 0 | I182: 105073.8 | J182: 6948 | K182: 168181 | L182: 0 | M182: 280202.8 | N182: C330
A183: 2016 | B183: 409335 | C183: 409 | D183: C | E183: 335 | F183: Food Services - Contracted | G183: 0 | H183: 0 | I183: 0 | J183: 0 | K183: 0 | L183: 0 | M183: 0 | N183: C335
A184: 2016 | B184: 409340 | C184: 409 | D184: C | E184: 340 | F184: Student Transportation (to and from school) | G184: 0 | H184: 0 | I184: 0 | J184: 0 | K184: 0 | L184: 0 | M184: 0 | N184: C340
A185: 2016 | B185: 409345 | C185: 409 | D185: C | E185: 345 | F185: Student Transportation (to and from school) | G185: 411548.4 | H185: 0 | I185: 0 | J185: 0 | K185: 0 | L185: 0 | M185: 411548.4 | N185: C345
A186: 2016 | B186: 409350 | C186: 409 | D186: C | E186: 350 | F186: Depreciation of Transportation Vehicles | G186: 0 | H186: 0 | I186: 0 | J186: 0 | K186: 0 | L186: 0 | M186: 0 | N186: C350
A187: 2016 | B187: 409360 | C187: 409 | D187: C | E187: 360 | F187: Other Student Activities | G187: 0 | H187: 0 | I187: 57378.35 | J187: 0 | K187: 0 | L187: 0 | M187: 57378.35 | N187: C360
A188: 2016 | B188: 409400 | C188: 409 | D188: C | E188: 400 | F188: Operation & Maintenance of Plant | G188: 0 | H188: 0 | I188: 194230.93 | J188: 0 | K188: 10000 | L188: 0 | M188: 204230.93 | N188: C400
A189: 2016 | B189: 409410 | C189: 409 | D189: C | E189: 410 | F189: Operation & Maintenance of Buildings and Grounds | G189: 0 | H189: 0 | I189: 119868.21 | J189: 0 | K189: 0 | L189: 0 | M189: 119868.21 | N189: C410
A190: 2016 | B190: 409420 | C190: 409 | D190: C | E190: 420 | F190: Utilities | G190: 0 | H190: 0 | I190: 32423.91 | J190: 0 | K190: 0 | L190: 0 | M190: 32423.91 | N190: C420
A191: 2016 | B191: 409430 | C191: 409 | D191: C | E191: 430 | F191: Maintenance of Equipment | G191: 0 | H191: 0 | I191: 21811.69 | J191: 0 | K191: 10000 | L191: 0 | M191: 31811.69 | N191: C430
A192: 2016 | B192: 409440 | C192: 409 | D192: C | E192: 440 | F192: Networking and Telecommunications | G192: 0 | H192: 0 | I192: 20127.12 | J192: 0 | K192: 0 | L192: 0 | M192: 20127.12 | N192: C440
A193: 2016 | B193: 409500 | C193: 409 | D193: C | E193: 500 | F193: Fixed Charges | G193: 0 | H193: 0 | I193: 584566.5 | J193: 0 | K193: 16432 | L193: 0 | M193: 600998.5 | N193: C500
A194: 2016 | B194: 409510 | C194: 409 | D194: C | E194: 510 | F194: Employee Retirement | G194: 0 | H194: 0 | I194: 370308 | J194: 0 | K194: 4470 | L194: 0 | M194: 374778 | N194: C510
A195: 2016 | B195: 409520 | C195: 409 | D195: =VLOOKUP(C195, TYPE, 3, FALSE) -> C | E195: 520 | F195: Fringe Benefits | G195: 0 | H195: 0 | I195: 187640.32 | J195: 0 | K195: 5000 | L195: 0 | M195: 192640.32 | N195: C520
A196: 2016 | B196: =C196&E196 -> 409530 | C196: 409 | D196: C | E196: 530 | F196: Insurance (non-employee) | G196: 0 | H196: 0 | I196: 18229 | J196: 0 | K196: 0 | L196: 0 | M196: 18229 | N196: =D196&E196 -> C530
A197: 2016 | B197: 409550 | C197: 409 | D197: C | E197: 550 | F197: Rental/Lease of Equipment | G197: 0 | H197: 0 | I197: 7695.13 | J197: 0 | K197: 6962 | L197: 0 | M197: 14657.13 | N197: C550
A198: 2016 | B198: 409560 | C198: 409 | D198: C | E198: 560 | F198: Short-Term Interest | G198: 0 | H198: 0 | I198: 694.05 | J198: 0 | K198: 0 | L198: 0 | M198: 694.05 | N198: C560
A199: 2016 | B199: 409600 | C199: 409 | D199: C | E199: 600 | F199: Community Services | G199: 0 | H199: 0 | I199: 9509.55 | J199: 0 | K199: 0 | L199: 0 | M199: 9509.55 | N199: C600
A200: 2016 | B200: 409610 | C200: 409 | D200: C | E200: 610 | F200: Dissemination Activities | G200: 0 | H200: 0 | I200: 0 | J200: 0 | K200: 0 | L200: 0 | M200: 0 | N200: C610
... 4300 more rows

Sheet CSLIST (hidden)
B1: Select a Charter School | C1: LEA
A2: 2 | B2: Abby Kelley Foster Charter Public School | C2: 445
A3: 3 | B3: Academy of the Pacific Rim Charter Public School | C3: 412
A4: 4 | B4: Advanced Math and Science Academy Charter School | C4: 430
A5: 5 | B5: Alma del Mar Charter School | C5: 409
A6: 6 | B6: Amesbury Academy Charter Public School | C6: 415
A7: 7 | B7: Argosy Collegiate Charter School | C7: 3509
A8: 8 | B8: Atlantis Charter School | C8: 491
A9: 9 | B9: Barnstable Community Horace Mann Charter Public School | C9: 427
A10: 10 | B10: Baystate Academy Charter Public School | C10: 3502
A11: 11 | B11: Benjamin Banneker Charter Public School | C11: 420
A12: 12 | B12: Benjamin Franklin Classical Charter Public School | C12: 447
A13: 13 | B13: Bentley Academy Charter School | C13: 3511
A14: 14 | B14: Berkshire Arts and Technology Charter Public School | C14: 414
A15: 15 | B15: Boston Collegiate Charter School | C15: 449
A16: 16 | B16: Boston Day and Evening Academy Charter School | C16: 424
A17: 17 | B17: Boston Green Academy Horace Mann Charter School | C17: 411
A18: 18 | B18: Boston Preparatory Charter Public School | C18: 416
A19: 19 | B19: Boston Renaissance Charter Public School | C19: 481
A20: 20 | B20: Bridge Boston Charter School | C20: 417
A21: 21 | B21: Brooke Charter School East Boston | C21: 457
A22: 22 | B22: Brooke Charter School Mattapan | C22: 443
A23: 23 | B23: Brooke Charter School Roslindale | C23: 428
A24: 24 | B24: Cape Cod Lighthouse Charter School | C24: 432
A25: 25 | B25: Christa McAuliffe Charter School | C25: 418
A26: 26 | B26: City on a Hill Charter Public School Circuit Street | C26: 437
A27: 27 | B27: City on a Hill Charter Public School Dudley Square | C27: 3504
A28: 28 | B28: City On A Hill Charter Public School New Bedford | C28: 3507
A29: 29 | B29: Codman Academy Charter Public School | C29: 438
A30: 30 | B30: Community Charter School of Cambridge | C30: 436
A31: 31 | B31: Community Day Charter Public School - Gateway | C31: 426
A32: 32 | B32: Community Day Charter Public School - Prospect | C32: 440
A33: 33 | B33: Community Day Charter Public School - R. Kingman Webster | C33: 431
A34: 34 | B34: Conservatory Lab Charter School | C34: 439
A35: 35 | B35: Dorchester Collegiate Academy Charter School | C35: 475
A36: 36 | B36: Dudley Street Neighborhood Charter School | C36: 407
A37: 37 | B37: Edward M. Kennedy Academy for Health Careers: A Horace Mann Charter Public School | C37: 452
A38: 38 | B38: Excel Academy Charter School | C38: 410
A39: 39 | B39: Four Rivers Charter Public School | C39: 413
A40: 40 | B40: Foxborough Regional Charter School | C40: 446
A41: 41 | B41: Francis W. Parker Charter Essential School | C41: 478
A42: 42 | B42: Global Learning Charter Public School | C42: 496
A43: 43 | B43: Hampden Charter School of Science | C43: 499
A44: 44 | B44: Helen Y Davis Leadership Academy Charter Public School | C44: 419
A45: 45 | B45: Hill View Montessori Charter Public School | C45: 455
A46: 46 | B46: Hilltown Cooperative Charter Public School | C46: 450
A47: 47 | B47: Holyoke Community Charter School | C47: 453
A48: 48 | B48: Innovation Academy Charter School | C48: 435
A49: 49 | B49: KIPP Academy Boston Charter School | C49: 463
A50: 50 | B50: KIPP Academy Lynn Charter School | C50: 429
A51: 51 | B51: Lawrence Family Development Charter School | C51: 454
A52: 52 | B52: Lowell Collegiate Charter School | C52: 3503
A53: 53 | B53: Lowell Community Charter Public School | C53: 456
A54: 54 | B54: Lowell Middlesex Academy Charter School | C54: 458
A55: 55 | B55: Marblehead Community Charter Public School | C55: 464
A56: 56 | B56: Martha's Vineyard Public Charter School | C56: 466
A57: 57 | B57: Martin Luther King, Jr. Charter School of Excellence | C57: 492
A58: 58 | B58: Match Charter Public School | C58: 469
A59: 59 | B59: Mystic Valley Regional Charter School | C59: 470
A60: 60 | B60: Neighborhood House Charter School | C60: 444
A61: 61 | B61: New Heights Charter School of Brockton | C61: 3513
A62: 62 | B62: New Liberty Charter School of Salem | C62: 467
A63: 63 | B63: Paulo Freire Social Justice Charter School | C63: 3501
A64: 64 | B64: Phoenix Academy Charter Public High School, Chelsea | C64: 493
A65: 65 | B65: Phoenix Academy Public Charter High School, Springfield | C65: 3508
A66: 66 | B66: Pioneer Charter School of Science | C66: 494
A67: 67 | B67: Pioneer Charter School of Science II | C67: 3506
A68: 68 | B68: Pioneer Valley Chinese Immersion Charter School | C68: 497
A69: 69 | B69: Pioneer Valley Performing Arts Charter Public School | C69: 479
A70: 70 | B70: Prospect Hill Academy Charter School | C70: 487
A71: 71 | B71: Rising Tide Charter Public School | C71: 483
A72: 72 | B72: River Valley Charter School | C72: 482
A73: 73 | B73: Roxbury Preparatory Charter School | C73: 484
A74: 74 | B74: Sabis International Charter School | C74: 441
A75: 75 | B75: Salem Academy Charter School | C75: 485
A76: 76 | B76: Seven Hills Charter Public School | C76: 486
A77: 77 | B77: Silver Hill Horace Mann Charter School | C77: 477
A78: 78 | B78: Sizer School, A North Central Charter Essential School | C78: 474
A79: 79 | B79: South Shore Charter Public School | C79: 488
A80: 80 | B80: Springfield Preparatory Charter School | C80: 3510
A81: 81 | B81: Sturgis Charter Public School | C81: 489
A82: 82 | B82: UP Academy Charter School of Boston | C82: 480
A83: 83 | B83: UP Academy Charter School of Dorchester | C83: 3505
A84: 84 | B84: UP Academy Charter School of Springfield | C84: 3512
A85: 85 | B85: Veritas Preparatory Charter School | C85: 498
A86: 86 | B86: Commonwealth Charter Statewide Totals | C86: C
A87: 87 | B87: Horace Mann Charter Statewide Totals | C87: HM
A88: 88 | B88: All Charter Schools Statewide Totals | C88: ALL

Sheet FACTS (hidden)
A1: LEA | B1: Charter School | C1: Type | D1: Acct. Cohort | E1: Acct. Liaison | F1: Location | G1: Charter Status 3/1/2017 | H1: Charter Granted | I1: Counts Toward Numeric Cap | J1: Year Opened (Fall) | K1: FY17 Year of Oper. | L1: 1st Charter Renewal | M1: 2nd Charter Renewal | N1: 3rd Charter Renewal | O1: 4th Charter Renewal Year | P1: 1st Charter Renewal | Q1: 2nd Charter Renewal | R1: 3rd Charter Renewal | S1: 4th Charter Renewal | T1: Last Charter Renewal | U1: Charter Expires | V1: Charter Expires | W1: Regional | X1: EMO | Y1: Max Grade Span | Z1: Max. Enroll # | AA1: Location Type | AB1: School Type | AC1: If Closed: School Year of Closure | AD1: Closure type | AE1: Notes | AF1: Comments | AG1: Vendor Code | AH1: Max Enroll Reference #1 | AI1: Max Enroll Reference #2 | AJ1: Max Grade Span Reference #1 | AK1: Max Grade Span Reference #2 | AL1: Max Notes (*5th year #'s in bold) | AM1: Operating Status | AN1: TypeOperating | AO1: RegionalOperating | AP1: EMOOperating | AQ1: Max. Enroll #Operating | AR1: Location TypeOperating | AS1: School TypeOperating | AT1: Max if Operating
A2: 445 | B2: Abby Kelley Foster Charter Public School | C2: C | D2: 2 | F2: Worcester | G2: No Status | H2: 1998 | I2: Yes | J2: 1998 | K2: 19 | L2: 2003 | M2: 2008 | N2: 2013 | O2: 2018 | P2: 2003 | Q2: 2008 | R2: 2013 | S2: NA | T2: 2013 | U2: 2018 | V2: 2018 | W2: Yes | X2: Former | Y2: K-12 | Z2: 1426 | AA2: Urban | AB2: K12 | AC2: NA | AG2: VC6000186162 | AH2: BOE minutes 10/30/07 Renewal; BOE minutes 4/25/06 max enrollment increase amendment | AI2: charter app, page 13; BOE Minutes 2/25/03 pg.10 charter renewal | AJ2: BOE minutes 10/30/07 Renewal | AK2: charter app, page 13; BOE Minutes 2/25/03 pg.10 charter renewal | AM2: Operating | AN2: COperating | AO2: YesOperating | AP2: FormerOperating | AQ2: 1426Operating | AR2: UrbanOperating | AS2: K12Operating | AT2: 1426
A3: 412 | B3: Academy of the Pacific Rim Charter Public School | C3: C | D3: 1 | F3: Boston | G3: No Status | H3: 1995 | I3: Yes | J3: 1997 | K3: 20 | L3: 2002 | M3: 2007 | N3: 2012 | O3: 2017 | P3: 2002 | Q3: 2007 | R3: 2012 | S3: 2017 | T3: 2017 | U3: 2022 | V3: 2022 | W3: No | X3: No | Y3: 05-12 | Z3: 545 | AA3: Boston | AB3: MSHS | AC3: NA | AE3: 500 to 545 (45 seats 2/2013 BESE) | AG3: VC6000181650 | AH3: BOE minutes 2/27/07 renewal; BOE minutes 11/29/05 p. XXX Amendment approval | AI3: charter application p. 8; BOE Minutes 2/26/02 p.29 makes no mention of enrollment max in charter renewal; BESE mtg. 11/17/09 - increase enrollment from 475 to 500 | AJ3: BOE minutes 2/27/07 renewal; BOE minutes 11/29/05 p. XXX Amendment approval | AK3: charter application p. 8 | AM3: Operating | AN3: COperating | AO3: NoOperating | AP3: NoOperating | AQ3: 545Operating | AR3: BostonOperating | AS3: MSHSOperating | AT3: 545
A4: 430 | B4: Advanced Math and Science Academy Charter School | C4: C | D4: 4 | F4: Marlborough | G4: Conditions | H4: 2004 | I4: Yes | J4: 2005 | K4: 12 | L4: 2010 | M4: 2015 | N4: 2020 | O4: 2025 | P4: 2010 | Q4: 2015 | R4: NA | S4: NA | T4: 2015 | U4: 2020 | V4: 2020 | W4: Yes | X4: No | Y4: 06-12 | Z4: 966 | AA4: Suburb | AB4: MSHS | AC4: NA | AF4: Conditions: BESE Minutes Jan 2015 | AG4: VC6000306988 | AH4: BOE Minutes 2/24/04 pg. 11 charter approved | AI4: BESE approval 2/23/10 | AJ4: BOE Minutes 2/24/04 pg. 11 charter approved | AL4: * | AM4: Operating | AN4: COperating | AO4: YesOperating | AP4: NoOperating | AQ4: 966Operating | AR4: SuburbOperating | AS4: MSHSOperating | AT4: 966
A5: 409 | B5: Alma del Mar Charter School | C5: C | D5: 5 | F5: New Bedford | G5: No Status | H5: 2011 | I5: Yes | J5: 2011 | K5: 6 | L5: 2016 | M5: 2021 | N5: 2026 | O5: 2031 | P5: 2016 | Q5: NA | R5: NA | S5: NA | T5: 2016 | U5: 2021 | V5: 2021 | W5: No | X5: No | Y5: K-08 | Z5: 450 | AA5: Urban | AB5: ESMS | AC5: NA | AG5: VC0000546618 | AH5: BESE Minutes 2/28/11 | AJ5: BESE Minutes 2/28/11 | AM5: Operating | AN5: COperating | AO5: NoOperating | AP5: NoOperating | AQ5: 450Operating | AR5: UrbanOperating | AS5: ESMSOperating | AT5: 450
A6: 3509 | B6: Argosy Collegiate Charter School | C6: C | D6: 3 | F6: Fall River | G6: No Status | H6: 2014 | I6: No | J6: 2014 | K6: 3 | L6: 2019 | M6: 2024 | N6: 2029 | O6: 2034 | P6: NA | Q6: NA | R6: NA | S6: NA | T6: 0 | U6: 2019 | V6: 2019 | W6: No | X6: No | Y6: 06-12 | Z6: 644 | AA6: Urban | AB6: MSHS | AC6: NA | AG6: VC0000723940 | AM6: Operating | AN6: COperating | AO6: NoOperating | AP6: NoOperating | AQ6: 644Operating | AR6: UrbanOperating | AS6: MSHSOperating | AT6: 644
A7: 491 | B7: Atlantis Charter School | C7: C | D7: 4 | F7: Fall River | G7: No Status | H7: 1994 | I7: Yes | J7: 1995 | K7: 22 | L7: 2000 | M7: 2005 | N7: 2010 | O7: 2015 | P7: 2000 | Q7: 2005 | R7: 2010 | S7: 2015 | T7: 2015 | U7: 2020 | V7: 2020 | W7: No | X7: No | Y7: K-12 | Z7: 1378 | AA7: Urban | AB7: K12 | AC7: NA | AG7: VC6000181845 | AH7: BOE Minutes 2/14/05 p. 6-7 | AI7: BOE Minutes 2/23/2000 p.39 makes no mention of enrollment max in charter renewal; charter renewal application p.25 | AJ7: charter application p. 40 | AM7: Operating | AN7: COperating | AO7: NoOperating | AP7: NoOperating | AQ7: 1378Operating | AR7: UrbanOperating | AS7: K12Operating | AT7: 1378
A8: 427 | B8: Barnstable Community Horace Mann Charter Public School | C8: HM | D8: 3 | F8: Barnstable | G8: Conditions | H8: 2004 | I8: Yes | J8: 2004 | K8: 13 | L8: 2009 | M8: 2014 | N8: 2019 | O8: 2024 | P8: 2009 | Q8: 2014 | R8: NA | S8: NA | T8: 2014 | U8: 2019 | V8: 2019 | W8: NA | X8: No | Y8: K-03 | Z8: 475 | AA8: Suburb | AB8: ES | AC8: NA | AE8: Grade span amended to K-3 in 4/09. | AF8: BESE Minutes: http://www.doe.mass.edu/boe/minutes/ Modified Sept 2014 | AG8: VC6000263084 | AH8: BESE Minutes 2/24/09 pg.10 charter renewed; BOE Minutes 3/29/05 pg. 6, amendment approved for 370 to 475 increase (described in 3/22/05 Memo) and reiterated in 4/1/05 MS Letter | AI8: BOE Minutes 2/24/04 pg. 12 charter granted | AJ8: BESE Minutes 2/24/09 pg.10 charter renewed; BOE Minutes 2/24/04 pg. 11 charter approved | AL8: * | AM8: Operating | AN8: HMOperating | AO8: NAOperating | AP8: NoOperating | AQ8: 475Operating | AR8: SuburbOperating | AS8: ESOperating | AT8: 475
A9: 3502 | B9: Baystate Academy Charter Public School | C9: C | D9: 2 | F9: Springfield | G9: No Status | H9: 2012 | I9: No | J9: 2013 | K9: 4 | L9: 2018 | M9: 2023 | N9: 2028 | O9: 2033 | P9: NA | Q9: NA | R9: NA | S9: NA | T9: 0 | U9: 2018 | V9: 2018 | W9: No | X9: No | Y9: 06-12 | Z9: 560 | AA9: Urban | AB9: MSHS | AC9: NA | AG9: VC0000607947 | AH9: BESE minutes 2/12 | AM9: Operating | AN9: COperating | AO9: NoOperating | AP9: NoOperating | AQ9: 560Operating | AR9: UrbanOperating | AS9: MSHSOperating | AT9: 560
A10: 420 | B10: Benjamin Banneker Charter Public School | C10: C | D10: 5 | F10: Cambridge | G10: No Status | H10: 1995 | I10: Yes | J10: 1996 | K10: 21 | L10: 2001 | M10: 2006 | N10: 2011 | O10: 2016 | P10: 2001 | Q10: 2006 | R10: 2011 | S10: 2016 | T10: 2016 | U10: 2021 | V10: 2021 | W10: No | X10: No | Y10: PK-06 | Z10: 350 | AA10: Urban | AB10: ESMS | AC10: NA | AE10: Per BOE 1/24/06; restricted to 325 for FY07 until it meets renewal conditions. | AG10: VC6000182073 | AH10: BESE Minutes 2/24/09 pg.13 decrease enrollment to 325;BOE minutes 01/24/06, p.4 | AI10: BOE Minutes 2/27/01 p.25 makes no mention of enrollment max in charter renewal; 3/26/1999 amend letter - E. Kirby | AJ10: BOE minutes 01/24/06, p.4 | AK10: charter application p. 16 says max enrollment of 1340 | AM10: Operating | AN10: COperating | AO10: NoOperating | AP10: NoOperating | AQ10: 350Operating | AR10: UrbanOperating | AS10: ESMSOperating | AT10: 350
A11: 447 | B11: Benjamin Franklin Classical Charter Public School | C11: C | D11: 4 | F11: Franklin | G11: No Status | H11: 1994 | I11: Yes | J11: 1995 | K11: 22 | L11: 2000 | M11: 2005 | N11: 2010 | O11: 2015 | P11: 2000 | Q11: 2005 | R11: 2010 | S11: 2015 | T11: 2015 | U11: 2020 | V11: 2020 | W11: Yes | X11: No | Y11: K-08 | Z11: 900 | AA11: Suburb | AB11: ESMS | AC11: NA | AF11: Increase to 900 beginning FY16 | AG11: VC6000181823 | AH11: charter renewal app pg. 24 states 9 grades of 2 classes of 20-25 students each (9*2*25=450) | AI11: BOE Minutes 4/27991 p.19 makes no mention of enrollment max in charter renewal | AJ11: charter renewal app pg. 24 | AM11: Operating | AN11: COperating | AO11: YesOperating | AP11: NoOperating | AQ11: 900Operating | AR11: SuburbOperating | AS11: ESMSOperating | AT11: 900
A12: 3511 | B12: Bentley Academy Charter School | C12: HM | D12: 4 | E12: Alyssa Hopkins | F12: Salem | G12: No Status | H12: 2015 | I12: Yes | J12: 2015 | K12: 2 | L12: 2020 | M12: 2025 | N12: 2030 | O12: 2035 | P12: NA | Q12: NA | R12: NA | S12: NA | T12: 0 | U12: 2020 | V12: 2020 | W12: No | X12: No | Y12: K-05 | Z12: 350 | AA12: Urban | AB12: ES | AC12: NA | AG12: pending | AM12: Operating | AN12: HM3Operating | AO12: NoOperating | AP12: NoOperating | AQ12: 350Operating | AR12: UrbanOperating | AS12: ESOperating | AT12: 350
A13: 414 | B13: Berkshire Arts and Technology Charter Public School | C13: C | D13: 3 | F13: Adams | G13: No Status | H13: 2003 | I13: Yes | J13: 2004 | K13: 13 | L13: 2009 | M13: 2014 | N13: 2019 | O13: 2024 | P13: 2009 | Q13: 2014 | R13: NA | S13: NA | T13: 2014 | U13: 2019 | V13: 2019 | W13: Yes | X13: No | Y13: 06-12 | Z13: 363 | AA13: Rural | AB13: MSHS | AC13: NA | AF13: 2014 Early Renewal by one year. | AG13: VC6000246485 | AH13: BESE Minutes 1/27/09 pg.5-6 charter renewed; BOE Minutes 2/25/03 pg.8 charter granted | AJ13: BESE Minutes 1/27/09 pg.5-6 charter renewed;BOE Minutes 2/25/03 pg.8 charter granted | AL13: * | AM13: Operating | AN13: COperating | AO13: YesOperating | AP13: NoOperating | AQ13: 363Operating | AR13: RuralOperating | AS13: MSHSOperating | AT13: 363
A14: 449 | B14: Boston Collegiate Charter School | C14: C | D14: 2 | F14: Boston | G14: No Status | H14: 1998 | I14: Yes | J14: 1998 | K14: 19 | L14: 2003 | M14: 2008 | N14: 2013 | O14: 2018 | P14: 2003 | Q14: 2008 | R14: 2013 | S14: NA | T14: 2013 | U14: 2018 | V14: 2018 | W14: No | X14: No | Y14: 05-12 | Z14: 700 | AA14: Boston | AB14: MSHS | AC14: NA | AE14: Formerly South Boston Harbor Academy; will not add second 05-08 campus until FY08 | AG14: VC6000185891 | AH14: BOE minutes 01/22/08 renewal vote; BOE minutes 11/29/05 p. XXX Amendment approval | AI14: BOE Minutes 01/28/03 p. 5 charter renewal | AJ14: BOE minutes 01/22/08 renewal vote; BOE Minutes 01/28/03 p. 5 charter renewal | AM14: Operating | AN14: COperating | AO14: NoOperating | AP14: NoOperating | AQ14: 700Operating | AR14: BostonOperating | AS14: MSHSOperating | AT14: 700
A15: 424 | B15: Boston Day and Evening Academy Charter School | C15: HM | D15: 2 | F15: Boston | G15: No Status | H15: 1998 | I15: Yes | J15: 1998 | K15: 19 | L15: 2003 | M15: 2008 | N15: 2013 | O15: 2018 | P15: 2003 | Q15: 2008 | R15: 2013 | S15: NA | T15: 2013 | U15: 2018 | V15: 2018 | W15: NA | X15: No | Y15: 09-12 | Z15: 405 | AA15: Boston | AB15: HS | AC15: NA | AE15: Ungrade ages 16-23 | AG15: VC6000197778 | AH15: BOE minutes 01/22/08 renewal vote; BOE Minutes 06/22/04 p. 5 charter amendment to add day program and increase enrollment from 205-405;and 6/15/04 Commissioner's rec. in file | AI15: BOE Minutes 01/28/03 p. 6 charter renewal | AJ15: BOE minutes 01/22/08 renewal vote; BOE Minutes 06/22/04 p. 5 charter amendment to add day program and increase enrollment from 205-405;and 6/15/04 Commissioner's rec. in file | AK15: BOE Minutes 01/28/03 p. 6 charter renewal | AM15: Operating | AN15: HMOperating | AO15: NAOperating | AP15: NoOperating | AQ15: 405Operating | AR15: BostonOperating | AS15: HSOperating | AT15: 405
A16: 411 | B16: Boston Green Academy Horace Mann Charter School | C16: HM | D16: 5 | F16: Boston | G16: Probation | H16: 2011 | I16: Yes | J16: 2011 | K16: 6 | L16: 2016 | M16: 2021 | N16: 2026 | O16: 2031 | P16: 2016 | Q16: NA | R16: NA | S16: NA | T16: 2016 | U16: 2021 | V16: 2021 | W16: NA | X16: No | Y16: 06-12 | Z16: 595 | AA16: Boston | AB16: MSHS | AC16: NA | AF16: Per BESE Oct 2014 | AG16: VC0000551592 | AH16: BESE Minutes 2/28/11 | AJ16: BESE Minutes 2/28/11 | AM16: Operating | AN16: HM3Operating | AO16: NAOperating | AP16: NoOperating | AQ16: 595Operating | AR16: BostonOperating | AS16: MSHSOperating | AT16: 595
A17: 416 | B17: Boston Preparatory Charter Public School | C17: C | D17: 3 | F17: Boston | G17: No Status | H17: 2003 | I17: Yes | J17: 2004 | K17: 13 | L17: 2009 | M17: 2014 | N17: 2019 | O17: 2024 | P17: 2009 | Q17: 2014 | R17: NA | S17: NA | T17: 2014 | U17: 2019 | V17: 2019 | W17: No | X17: No | Y17: 06-12 | Z17: 700 | AA17: Boston | AB17: MSHS | AC17: NA | AG17: VC6000237205 | AH17: BESE Minutes 2/24/09 pg.10 charter renewed; BOE Minutes 10/25/05 p.8-9 Amendment approval (details in Board Memo dated 10/25/05) | AI17: BOE Minutes 2/25/03 pg.8 charter granted; BESE mtg 11/17/09 increase from 350 to 400 | AJ17: BESE Minutes 2/24/09 pg.10 charter renewed; BOE Minutes for 02/26/08 | AK17: BOE Minutes 2/25/03 pg.8 charter granted | AL17: * | AM17: Operating | AN17: COperating | AO17: NoOperating | AP17: NoOperating | AQ17: 700Operating | AR17: BostonOperating | AS17: MSHSOperating | AT17: 700
A18: 481 | B18: Boston Renaissance Charter Public School | C18: C | D18: 4 | F18: Boston | G18: Conditions | H18: 1994 | I18: Yes | J18: 1995 | K18: 22 | L18: 2000 | M18: 2005 | N18: 2010 | O18: 2015 | P18: 2000 | Q18: 2005 | R18: 2010 | S18: 2015 | T18: 2015 | U18: 2020 | V18: 2020 | W18: No | X18: Former | Y18: PK-06 | Z18: 944 | AA18: Boston | AB18: ESMS | AC18: NA | AF18: 2014 (revision) BESE Minutes: Jan 2015 (revision) BESE | AG18: VC6000182082 | AH18: BOE Minutes 02/27/07 Additional Conditions | AI18: BOE Minutes 09/26/06 Amendment; BOE Minutes 2/15/05 p. 8; BOE Minutes 12/21/1999 p. 23 charter renewal makes no mention of enro. max in ; charter renewal application p. 24 | AJ18: BOE Minutes 2/15/05 p. 8; charter application p. 10 plans for K-12 | AK18: charter renewal application p. 24 indications K-8 | AM18: Operating | AN18: COperating | AO18: NoOperating | AP18: FormerOperating | AQ18: 944Operating | AR18: BostonOperating | AS18: ESMSOperating | AT18: 944
A19: 417 | B19: Bridge Boston Charter School | C19: C | D19: 5 | F19: Boston | G19: No Status | H19: 2011 | I19: No | J19: 2011 | K19: 6 | L19: 2016 | M19: 2021 | N19: 2026 | O19: 2031 | P19: 2016 | Q19: NA | R19: NA | S19: NA | T19: 2016 | U19: 2021 | V19: 2021 | W19: No | X19: No | Y19: PK-8 | Z19: 335 | AA19: Boston | AB19: ESMS | AC19: NA | AG19: VC0000546498 | AH19: SY 2011-12 max enroll is 72 per MDC | AJ19: BESE Minutes 2/28/11 | AM19: Operating | AN19: COperating | AO19: NoOperating | AP19: NoOperating | AQ19: 335Operating | AR19: BostonOperating | AS19: ESMSOperating | AT19: 335
A20: 428 | B20: Brooke Charter School | C20: C | D20: 1 | F20: Boston | G20: No Status | H20: 2001 | I20: Yes | J20: 2002 | K20: 15 | L20: 2007 | M20: 2012 | N20: 2017 | O20: 2022 | P20: 2007 | Q20: 2012 | R20: 2017 | S20: NA | T20: 2017 | U20: 2022 | V20: 2022 | W20: Yes | X20: No | Y20: K-12 | Z20: 2221 | AA20: Boston | AB20: K12 | AC20: NA | AE20: Merge 3 schools. Increase enrolll to 2221, add 9-12 Feb 2016 BESE. 475 to 510 (35 seats 2/2013 BESE) | AG20: VC6000189753 | AH20: BOE minutes 2/27/07 renewal; BOE minutes 10/24/06 pp. 10-11 | AI20: BOE minutes 02/27/01 pg.22 charter granted; BESE mtg. 11/17/09 - increase enrollment from 450-475 | AJ20: BOE minutes 2/27/07 renewal; BOE Minutes 10/25/05 p.8-9 Amendment approval (details in Board Memo dated 10/25/05) | AK20: BOE minutes 02/27/01 pg.22 charter granted | AM20: Operating | AN20: COperating | AO20: YesOperating | AP20: NoOperating | AQ20: 2221Operating | AR20: BostonOperating | AS20: K12Operating | AT20: 2221
A21: 432 | B21: Cape Cod Lighthouse Charter School | C21: C | D21: 4 | F21: Harwich | G21: No Status | H21: 1994 | I21: Yes | J21: 1995 | K21: 22 | L21: 2000 | M21: 2005 | N21: 2010 | O21: 2015 | P21: 2000 | Q21: 2005 | R21: 2010 | S21: 2015 | T21: 2015 | U21: 2020 | V21: 2020 | W21: Yes | X21: No | Y21: 06-08 | Z21: 260 | AA21: Suburb | AB21: MS | AC21: NA | AF21: Condition related to reducing max enrollment and grade span. | AG21: VC6000190146 | AH21: BOE Minutes 03/29/05 p.4 | AI21: BOE 9/28/99 Charter Renewal No online Minutes; amend approval 11/5/02 KM letter | AJ21: BOE Minutes 03/29/05 p.4 | AK21: amend approval 11/5/02 KM letter | AM21: Operating | AN21: COperating | AO21: YesOperating | AP21: NoOperating | AQ21: 260Operating | AR21: SuburbOperating | AS21: MSOperating | AT21: 260
A22: 418 | B22: Christa McAuliffe Charter School | C22: C | D22: 1 | F22: Framingham | G22: No Status | H22: 2001 | I22: Yes | J22: 2002 | K22: 15 | L22: 2007 | M22: 2012 | N22: 2017 | O22: 2022 | P22: 2007 | Q22: 2012 | R22: 2017 | S22: NA | T22: 2017 | U22: 2022 | V22: 2022 | W22: Yes | X22: Former | Y22: 06-08 | Z22: 396 | AA22: Suburb | AB22: MS | AC22: NA | AE22: Formerly Framingham Community CS | AG22: VC6000189786 | AH22: BOE minutes 2/27/07 renewal; BOE minutes 02/27/01 pg.22 charter granted | AJ22: BOE minutes 2/27/07 renewal; BOE minutes 02/27/01 pg.22 charter granted | AM22: Operating | AN22: COperating | AO22: YesOperating | AP22: FormerOperating | AQ22: 396Operating | AR22: SuburbOperating | AS22: MSOperating | AT22: 396
A23: 437 | B23: City on a Hill Charter Public School Circuit Street | C23: C | D23: 4 | F23: Boston | G23: No Status | H23: 1994 | I23: Yes | J23: 1995 | K23: 22 | L23: 2000 | M23: 2005 | N23: 2010 | O23: 2015 | P23: 2000 | Q23: 2005 | R23: 2010 | S23: 2015 | T23: 2015 | U23: 2020 | V23: 2020 | W23: No | X23: No | Y23: 09-12 | Z23: 280 | AA23: Boston | AB23: HS | AC23: NA | AF23: Formerly City on a Hill. | AG23: VC6000179704 | AH23: BOE minutes 10/24/06 pp. 10-11 | AI23: BOE Minutes 2/15/05 p. 9; BOE Minutes 01/25/00 p.19 charter renewal makes no mention of enrollment max | AJ23: BOE Minutes 2/15/05 p. 9 | AK23: charter app | AM23: Operating | AN23: COperating | AO23: NoOperating | AP23: NoOperating | AQ23: 280Operating | AR23: BostonOperating | AS23: HSOperating | AT23: 280
A24: 3504 | B24: City on a Hill Charter Public School Dudley Square | C24: C | D24: 2 | F24: Boston | G24: No Status | H24: 2013 | I24: No | J24: 2013 | K24: 4 | L24: 2018 | M24: 2023 | N24: 2028 | O24: 2033 | P24: NA | Q24: NA | R24: NA | S24: NA | T24: 0 | U24: 2018 | V24: 2018 | W24: No | X24: No | Y24: 09-12 | Z24: 280 | AA24: Boston | AB24: HS | AC24: NA | AF24: Formerly City on a Hill II. | AG24: VC0000663070 | AH24: BESE minutes 2/13 | AM24: Operating | AN24: COperating | AO24: NoOperating | AP24: NoOperating | AQ24: 280Operating | AR24: BostonOperating | AS24: HSOperating | AT24: 280
A25: 3507 | B25: City On A Hill Charter Public School New Bedford | C25: C | D25: 3 | F25: New Bedford | G25: No Status | H25: 2013 | I25: Yes | J25: 2014 | K25: 3 | L25: 2019 | M25: 2024 | N25: 2029 | O25: 2034 | P25: NA | Q25: NA | R25: NA | S25: NA | T25: 0 | U25: 2019 | V25: 2019 | W25: No | X25: No | Y25: 09-12 | Z25: 280 | AA25: Urban | AB25: HS | AC25: NA | AG25: VC0000663075 | AH25: BESE minutes 2/13 | AM25: Operating | AN25: COperating | AO25: NoOperating | AP25: NoOperating | AQ25: 280Operating | AR25: UrbanOperating | AS25: HSOperating | AT25: 280
A26: 438 | B26: Codman Academy Charter Public School | C26: C | D26: 5 | F26: Boston | G26: Conditions | H26: 2001 | I26: Yes | J26: 2001 | K26: 16 | L26: 2006 | M26: 2011 | N26: 2016 | O26: 2021 | P26: 2006 | Q26: 2011 | R26: 2016 | S26: NA | T26: 2016 | U26: 2021 | V26: 2021 | W26: No | X26: No | Y26: PK-12 | Z26: 345 | AA26: Boston | AB26: K12 | AC26: NA | AE26: 200 to 345 and also added K1-08 (145 seats 2/13 BESE). | AG26: VC6000189729 | AH26: BOE minutes 12/20/05 Renewal | AI26: BOE minutes 02/27/01 pg.22 charter granted; BESE mtg. 11/17/09 increase enrollment from 120 to 145 | AJ26: BOE minutes 02/27/01 pg.22 charter granted | AM26: Operating | AN26: COperating | AO26: NoOperating | AP26: NoOperating | AQ26: 345Operating | AR26: BostonOperating | AS26: K12Operating | AT26: 345
A27: 3503 | B27: Collegiate Charter School of Lowell | C27: C | D27: 2 | F27: Lowell | G27: No Status | H27: 2012 | I27: No | J27: 2013 | K27: 4 | L27: 2018 | M27: 2023 | N27: 2028 | O27: 2033 | P27: NA | Q27: NA | R27: NA | S27: NA | T27: 0 | U27: 2018 | V27: 2018 | W27: No | X27: Yes | Y27: K-12 | Z27: 1200 | AA27: Urban | AB27: K12 | AC27: NA | AG27: VC0000626033 | AH27: BESE minutes 2/12 | AM27: Operating | AN27: COperating | AO27: NoOperating | AP27: YesOperating | AQ27: 1200Operating | AR27: UrbanOperating | AS27: K12Operating | AT27: 1200
A28: 436 | B28: Community Charter School of Cambridge | C28: C | D28: 4 | F28: Cambridge | G28: No Status | H28: 2004 | I28: Yes | J28: 2005 | K28: 12 | L28: 2010 | M28: 2015 | N28: 2020 | O28: 2025 | P28: 2010 | Q28: 2015 | R28: NA | S28: NA | T28: 2015 | U28: 2020 | V28: 2020 | W28: No | X28: No | Y28: 06-12 | Z28: 420 | AA28: Urban | AB28: MSHS | AC28: NA | AE28: limited to 300 students from Cambridge | AG28: VC6000307227 | AH28: BOE Minutes 2/24/04 pg. 10 charter approved | AJ28: BOE Minutes 2/24/04 pg. 10 charter approved | AL28: * | AM28: Operating | AN28: COperating | AO28: NoOperating | AP28: NoOperating | AQ28: 420Operating | AR28: UrbanOperating | AS28: MSHSOperating | AT28: 420
A29: 426 | B29: Community Day Charter Public School - Gateway | C29: C | D29: 1 | F29: Lawrence | G29: No Status | H29: 2011 | I29: No | J29: 2012 | K29: 5 | L29: 2017 | M29: 2022 | N29: 2027 | O29: 2032 | P29: 2017 | Q29: NA | R29: NA | S29: NA | T29: 2017 | U29: 2022 | V29: 2022 | W29: No | X29: Yes | Y29: PK-08 | Z29: 400 | AA29: Urban | AB29: ESMS | AC29: NA | AG29: VC0000550018 | AH29: BESE Minutes 2/28/11 | AJ29: BESE Minutes 2/28/11 | AM29: Operating | AN29: COperating | AO29: NoOperating | AP29: YesOperating | AQ29: 400Operating | AR29: UrbanOperating | AS29: ESMSOperating | AT29: 400
A30: 440 | B30: Community Day Charter Public School - Prospect | C30: C | D30: 4 | F30: Lawrence | G30: No Status | H30: 1994 | I30: Yes | J30: 1995 | K30: 22 | L30: 2000 | M30: 2005 | N30: 2010 | O30: 2015 | P30: 2000 | Q30: 2005 | R30: 2010 | S30: 2015 | T30: 2015 | U30: 2020 | V30: 2020 | W30: No | X30: Yes | Y30: PK-08 | Z30: 400 | AA30: Urban | AB30: ESMS | AC30: NA | AE30: 331 to 400 (69 seats 2/2013 BESE) | AG30: VC6000181392 | AH30: BOE minutes 10/24/06 pp. 10-11 | AI30: amend approval 3/7/00- SMB letter; BOE Minutes 4/27/99 p.19 makes no mention of enrollment max in charter renewal | AJ30: charter application p. 19 | AM30: Operating | AN30: COperating | AO30: NoOperating | AP30: YesOperating | AQ30: 400Operating | AR30: UrbanOperating | AS30: ESMSOperating | AT30: 400
A31: 431 | B31: Community Day Charter Public School - R. Kingman Webster | C31: C | D31: 1 | F31: Lawrence | G31: No Status | H31: 2011 | I31: No | J31: 2012 | K31: 5 | L31: 2017 | M31: 2022 | N31: 2027 | O31: 2032 | P31: 2017 | Q31: NA | R31: NA | S31: NA | T31: 2017 | U31: 2022 | V31: 2022 | W31: No | X31: Yes | Y31: PK-08 | Z31: 400 | AA31: Urban | AB31: ESMS | AC31: NA | AG31: VC0000550028 | AH31: BESE Minutes 2/28/11 | AJ31: BESE Minutes 2/28/11 | AM31: Operating | AN31: COperating | AO31: NoOperating | AP31: YesOperating | AQ31: 400Operating | AR31: UrbanOperating | AS31: ESMSOperating | AT31: 400
A32: 439 | B32: Conservatory Lab Charter School | C32: C | D32: 3 | F32: Boston | G32: No Status | H32: 1998 | I32: Yes | J32: 1999 | K32: 18 | L32: 2004 | M32: 2009 | N32: 2014 | O32: 2019 | P32: 2004 | Q32: 2009 | R32: 2014 | S32: NA | T32: 2014 | U32: 2019 | V32: 2019 | W32: No | X32: No | Y32: PK-08 | Z32: 444 | AA32: Boston | AB32: ESMS | AC32: NA | AE32: 154 to 169 (15 seats 2/2011 BESE) added gr 6 2/2011. 160 to 444, added grade 7 and 8 (275 seats 2/2013 BESE) | AG32: VC6000185936 | AH32: BOE Minutes 10/25/05 p.8-9 Amendment approval (details in Board Memo dated 10/25/05) | AI32: BESE Minutes 1/27/09 pg.6 charter renewed; charter amend 4/3/03- KM letter; BOE Minutes 2/24/04 pg. 6 charter renewal | AJ32: BESE Minutes 06/25/08 - grade span change to PK-05; BOE Minutes 10/25/05 p.8-9 Amendment approval (details in Board Memo dated 10/25/05) | AK32: BESE Minutes 1/27/09 pg.6 charter renewed; BOE Minutes 2/24/04 pg. 6 charter renewal | AM32: Operating | AN32: COperating | AO32: NoOperating | AP32: NoOperating | AQ32: 444Operating | AR32: BostonOperating | AS32: ESMSOperating | AT32: 444
A33: 407 | B33: Dudley Street Neighborhood Charter School | C33: HM | D33: 1 | F33: Boston | G33: No Status | H33: 2012 | I33: Yes | J33: 2012 | K33: 5 | L33: 2017 | M33: 2022 | N33: 2027 | O33: 2032 | P33: 2017 | Q33: NA | R33: NA | S33: NA | T33: 2017 | U33: 2022 | V33: 2022 | W33: NA | X33: No | Y33: PK-5 | Z33: 325 | AA33: Boston | AB33: ES | AC33: NA | AG33: VC0000621215 | AH33: BESE minutes 2/12 | AM33: Operating | AN33: HM3Operating | AO33: NAOperating | AP33: NoOperating | AQ33: 325Operating | AR33: BostonOperating | AS33: ESOperating | AT33: 325
A34: 452 | B34: Edward M. Kennedy Academy for Health Careers: A Horace Mann Charter Public School | C34: HM | D34: 2 | F34: Boston | G34: No Status | H34: 1998 | I34: Yes | J34: 1998 | K34: 19 | L34: 2003 | M34: 2008 | N34: 2013 | O34: 2018 | P34: 2003 | Q34: 2008 | R34: 2013 | S34: NA | T34: 2013 | U34: 2018 | V34: 2018 | W34: NA | X34: No | Y34: 09-12 | Z34: 448 | AA34: Boston | AB34: HS | AC34: NA | AG34: VC6000186031 | AH34: BOE minutes 01/22/08 renewal vote; BOE Minutes 2/25/2003 p.10 charter renewal | AI34: charter app | AJ34: BOE minutes 01/22/08 renewal vote; BOE Minutes 2/25/2003 p.10 charter renewal | AK34: charter app | AM34: Operating | AN34: HMOperating | AO34: NAOperating | AP34: NoOperating | AQ34: 448Operating | AR34: BostonOperating | AS34: HSOperating | AT34: 448
A35: 410 | B35: Excel Academy Charter School | C35: C | D35: 2 | F35: Boston/Chelsea | G35: No Status | H35: 2003 | I35: Yes | J35: 2003 | K35: 14 | L35: 2008 | M35: 2013 | N35: 2018 | O35: 2023 | P35: 2008 | Q35: 2013 | R35: NA | S35: NA | T35: 2013 | U35: 2018 | V35: 2018 | W35: Yes | X35: No | Y35: 05-12 | Z35: 1344 | AA35: Boston | AB35: MSHS | AC35: NA | AE35: limited to 200 students from Boston. 300 to 448 (148 seats 2/2013 BESE) and added grades 9-12. | AF35: Formerly 3 Excel schools merged into 1. | AG35: VC6000244691 | AH35: BOE minutes 01/22/08 renewal vote; BOE Minutes 10/25/05 p.8-9 Amendment approval (details in Board Memo dated 10/25/05) | AI35: BOE Minutes 2/25/03 pg.8 charter granted | AJ35: BOE minutes 01/22/08 renewal vote; BOE Minutes 12/21/04 pg.6 amendment to add grade 5 granted | AK35: BOE Minutes 2/25/03 pg.8 charter granted | AL35: * | AM35: Operating | AN35: COperating | AO35: YesOperating | AP35: NoOperating | AQ35: 1344Operating | AR35: BostonOperating | AS35: MSHSOperating | AT35: 1344
A36: 413 | B36: Four Rivers Charter Public School | C36: C | D36: 2 | F36: Greenfield | G36: No Status | H36: 2002 | I36: Yes | J36: 2003 | K36: 14 | L36: 2008 | M36: 2013 | N36: 2018 | O36: 2023 | P36: 2008 | Q36: 2013 | R36: NA | S36: NA | T36: 2013 | U36: 2018 | V36: 2018 | W36: Yes | X36: No | Y36: 07-12 | Z36: 220 | AA36: Urban | AB36: MSHS | AC36: NA | AE36: 212 to 220 (8 seats 2/2013 BESE) | AG36: VC6000235268 | AH36: BESE Minutes 10/21/08 add 20 students to 212 max; BOE minutes 01/22/08 renewal vote; 4/3/03 KM letter approving charter amendment "on or about November 12, 2002" to increase max to 192 (from 180) | AI36: BOE Minutes 2/27/02 pg.26 charter granted for 180* max enroll. | AJ36: BOE minutes 01/22/08 renewal vote; 4/3/03 KM letter approving charter amendment "on or about November 12, 2002" to increase max to 192 (from 180) | AK36: BOE Minutes 2/27/02 pg.26 charter granted for 7-12* | AL36: * | AM36: Operating | AN36: COperating | AO36: YesOperating | AP36: NoOperating | AQ36: 220Operating | AR36: UrbanOperating | AS36: MSHSOperating | AT36: 220
A37: 446 | B37: Foxborough Regional Charter School | C37: C | D37: 2 | F37: Foxborough | G37: No Status | H37: 1998 | I37: Yes | J37: 1998 | K37: 19 | L37: 2003 | M37: 2008 | N37: 2013 | O37: 2018 | P37: 2003 | Q37: 2008 | R37: 2013 | S37: NA | T37: 2013 | U37: 2018 | V37: 2018 | W37: Yes | X37: Former | Y37: K-12 | Z37: 1700 | AA37: Suburb | AB37: K12 | AC37: NA | AG37: VC6000186153 | AH37: BOE minutes 10/30/07 Renewal | AI37: charter app; BOE Minutes 2/25/03 pg.10 charter renewal | AJ37: BOE minutes 10/30/07 Renewal | AK37: charter app; BOE Minutes 2/25/03 pg.10 charter renewal | AM37: Operating | AN37: COperating | AO37: YesOperating | AP37: FormerOperating | AQ37: 1700Operating | AR37: SuburbOperating | AS37: K12Operating | AT37: 1700
A38: 478 | B38: Francis W. Parker Charter Essential School | C38: C | D38: 4 | F38: Devens | G38: No Status | H38: 1994 | I38: Yes | J38: 1995 | K38: 22 | L38: 2000 | M38: 2005 | N38: 2010 | O38: 2015 | P38: 2000 | Q38: 2005 | R38: 2010 | S38: 2015 | T38: 2015 | U38: 2020 | V38: 2020 | W38: Yes | X38: No | Y38: 07-12 | Z38: 400 | AA38: Suburb | AB38: MSHS | AC38: NA | AG38: VC6000182144 | AH38: charter application p. 19 (states 350-400 students) | AI38: BOE Charter renewal on 6/29/99 Minutes can't be found!! | AJ38: charter application p. 19 (states 350-400 students) | AM38: Operating | AN38: COperating | AO38: YesOperating | AP38: NoOperating | AQ38: 400Operating | AR38: SuburbOperating | AS38: MSHSOperating | AT38: 400
A39: 496 | B39: Global Learning Charter Public School | C39: C | D39: 1 | F39: New Bedford | G39: No Status | H39: 2006 | I39: Yes | J39: 2007 | K39: 10 | L39: 2012 | M39: 2017 | N39: 2022 | O39: 2027 | P39: 2012 | Q39: 2017 | R39: NA | S39: NA | T39: 2017 | U39: 2022 | V39: 2022 | W39: No | X39: No | Y39: 05-12 | Z39: 500 | AA39: Urban | AB39: MSHS | AC39: NA | AF39: Jan 2014 BESE meeting | AG39: VC0000270629 | AH39: BESE Minutes 10/21/08 add 50 students to 500 max; BOE Minutes 2/28/06, p.5 | AJ39: BOE Minutes 2/28/06, p.5 | AM39: Operating | AN39: COperating | AO39: NoOperating | AP39: NoOperating | AQ39: 500Operating | AR39: UrbanOperating | AS39: MSHSOperating | AT39: 500
A40: 499 | B40: Hampden Charter School of Science | C40: C | D40: 3 | F40: Chicopee | G40: No Status | H40: 2008 | I40: Yes | J40: 2009 | K40: 8 | L40: 2014 | M40: 2019 | N40: 2024 | O40: 2029 | P40: 2014 | Q40: NA | R40: NA | S40: NA | T40: 2014 | U40: 2019 | V40: 2019 | W40: Yes | X40: No | Y40: 06-12 | Z40: 560 | AA40: Urban | AB40: MSHS | AC40: NA | AG40: VC0000401908 | AH40: BOE minutes 2/26/08 charter granting | AJ40: BOE minutes 2/26/08 charter granting | AM40: Operating | AN40: COperating | AO40: YesOperating | AP40: NoOperating | AQ40: 560Operating | AR40: UrbanOperating | AS40: MSHSOperating | AT40: 560
A41: 3516 | B41: Hampden Charter School of Science West | C41: C | F41: Westfield | G41: No Status | H41: 2017 | I41: No | J41: 2018 | K41: -1 | L41: 2023 | M41: 2028 | N41: 2033 | O41: 2038 | P41: NA | Q41: NA | R41: NA | S41: NA | T41: 0 | U41: 2023 | V41: 2023 | W41: Yes | X41: No | Y41: 06-12 | Z41: 588 | AA41: Rural | AB41: MSHS | AC41: NA | AG41: Pending | AH41: Feb 2017 BESE | AM41: Pending | AN41: CPending | AO41: YesPending | AP41: NoPending | AQ41: 588Pending | AR41: RuralPending | AS41: MSHSPending | AT41: Not Operating
A42: 419 | B42: Helen Y Davis Leadership Academy Charter Public School | C42: C | D42: 2 | F42: Boston | G42: No Status | H42: 2002 | I42: Yes | J42: 2003 | K42: 14 | L42: 2008 | M42: 2013 | N42: 2018 | O42: 2023 | P42: 2008 | Q42: 2013 | R42: NA | S42: NA | T42: 2013 | U42: 2018 | V42: 2018 | W42: No | X42: No | Y42: 06-08 | Z42: 216 | AA42: Boston | AB42: MS | AC42: NA | AF42: Formerly Smith Leadership Academy. | AG42: VC6000190485 | AH42: BOE minutes 01/22/08 renewal vote; BOE Minutes 2/26/02 p. 28 charter granted | AJ42: BOE minutes 01/22/08 renewal vote; BOE Minutes 2/26/02 p. 28 charter granted | AL42: * | AM42: Operating | AN42: COperating | AO42: NoOperating | AP42: NoOperating | AQ42: 216Operating | AR42: BostonOperating | AS42: MSOperating | AT42: 216
A43: 455 | B43: Hill View Montessori Charter Public School | C43: C | D43: 3 | F43: Haverhill | G43: No Status | H43: 2003 | I43: Yes | J43: 2004 | K43: 13 | L43: 2009 | M43: 2014 | N43: 2019 | O43: 2024 | P43: 2009 | Q43: 2014 | R43: NA | S43: NA | T43: 2014 | U43: 2019 | V43: 2019 | W43: No | X43: No | Y43: K-08 | Z43: 306 | AA43: Urban | AB43: ESMS | AC43: NA | AG43: VC6000067658 | AH43: BESE Minutes 1/27/09 pg.7 charter renewed;BOE Minutes 9/27/07 - amendment to increase from 243 to 296 | AI43: BOE Minutes 2/25/03 pg.8-9 charter granted | AJ43: BESE Minutes 1/27/09 pg.7 charter renewed; BOE Minutes 9/27/07- amendment to add grade 8 | AK43: BOE Minutes 2/25/03 pg.8-9 charter granted for 1-7; BOE Minutes 8/26/03 pg.4 amendment approved for addition of grade K | AL43: * | AM43: Operating | AN43: COperating | AO43: NoOperating | AP43: NoOperating | AQ43: 306Operating | AR43: UrbanOperating | AS43: ESMSOperating | AT43: 306
A44: 450 | B44: Hilltown Cooperative Charter Public School | C44: C | D44: 4 | F44: East Hampton | G44: No Status | H44: 1994 | I44: Yes | J44: 1995 | K44: 22 | L44: 2000 | M44: 2005 | N44: 2010 | O44: 2015 | P44: 2000 | Q44: 2005 | R44: 2010 | S44: 2015 | T44: 2015 | U44: 2020 | V44: 2020 | W44: Yes | X44: No | Y44: K-08 | Z44: 218 | AA44: Rural | AB44: ESMS | AC44: NA | AG44: VC6000181849 | AH44: BESE Minutes 10/21/08 add 26 students to 180 max; BOE Minutes 2/24/04 p.12 amendment approved for increased enrollment - (to 154 as documented in board pkg.; amendment letter 3/15/03 KM) | AI44: 8/14/02 letter- KM | AJ44: BOE Minutes 2/24/04 p.12 amendment approved for increased enrollment - (to 154 as documented in board pkg.; amendment letter 3/15/03 KM) | AK44: charter amend letter 2/25/00- SMB | AM44: Operating | AN44: COperating | AO44: YesOperating | AP44: NoOperating | AQ44: 218Operating | AR44: RuralOperating | AS44: ESMSOperating | AT44: 218
A45: 453 | B45: Holyoke Community Charter School | C45: C | D45: 4 | F45: Holyoke | G45: No Status | H45: 2001 | I45: Yes | J45: 2005 | K45: 12 | L45: 2010 | M45: 2015 | N45: 2020 | O45: 2025 | P45: 2010 | Q45: 2015 | R45: NA | S45: NA | T45: 2015 | U45: 2020 | V45: 2020 | W45: No | X45: Yes | Y45: K-08 | Z45: 702 | AA45: Urban | AB45: ESMS | AC45: NA | AG45: VC6000189756 | AH45: BOE minutes 02/27/01 pg.23 charter granted | AJ45: BOE minutes 02/27/01 pg.23 charter granted | AM45: Operating | AN45: COperating | AO45: NoOperating | AP45: YesOperating | AQ45: 702Operating | AR45: UrbanOperating | AS45: ESMSOperating | AT45: 702
A46: 435 | B46: Innovation Academy Charter School | C46: C | D46: 5 | F46: Tyngsborough | G46: No Status | H46: 1995 | I46: Yes | J46: 1996 | K46: 21 | L46: 2001 | M46: 2006 | N46: 2011 | O46: 2016 | P46: 2001 | Q46: 2006 | R46: 2011 | S46: 2016 | T46: 2016 | U46: 2021 | V46: 2021 | W46: Yes | X46: Former | Y46: 05-12 | Z46: 800 | AA46: Suburb | AB46: MSHS | AC46: NA | AG46: VC6000182149 | AH46: Reginalization in BOE minutes for 02/26/08; BOE minutes for 01/24/06 | AI46: BOE Minutes 11/28/00 p. 29 charter renewal makes no mention of enrollment max; 4/3/03 charter amend- KM letter | AJ46: BOE minutes for 01/24/06 | AK46: charter; 4/3/03 charter amend- KM letter | AM46: Operating | AN46: COperating | AO46: YesOperating | AP46: FormerOperating | AQ46: 800Operating | AR46: SuburbOperating | AS46: MSHSOperating | AT46: 800
A47: 463 | B47: KIPP Academy Boston Charter School | C47: C | D47: 1 | F47: Boston | G47: No Status | H47: 2011 | I47: No | J47: 2012 | K47: 5 | L47: 2017 | M47: 2022 | N47: 2027 | O47: 2032 | P47: 2017 | Q47: NA | R47: NA | S47: NA | T47: 2017 | U47: 2022 | V47: 2022 | W47: No | X47: No | Y47: K-08 | Z47: 588 | AA47: Boston | AB47: ESMS | AC47: NA | AG47: VC0000553212 | AH47: SY 2012-13 max enroll TBD by MDC | AJ47: BESE Minutes 2/28/11 | AM47: Operating | AN47: COperating | AO47: NoOperating | AP47: NoOperating | AQ47: 588Operating | AR47: BostonOperating | AS47: ESMSOperating | AT47: 588
A48: 429 | B48: KIPP Academy Lynn Charter School | C48: C | D48: 3 | F48: Lynn | G48: No Status | H48: 2004 | I48: Yes | J48: 2004 | K48: 13 | L48: 2009 | M48: 2014 | N48: 2019 | O48: 2024 | P48: 2009 | Q48: 2014 | R48: NA | S48: NA | T48: 2014 | U48: 2019 | V48: 2019 | W48: No | X48: No | Y48: K-12 | Z48: 1586 | AA48: Urban | AB48: MSHS | AC48: NA | AE48: 750 to 850 12/2010 BESE. On conditions Feb2014 off OCt2014 | AG48: VC6000237973 | AH48: BESE Minutes 1/27/09 pg.7 charter renewed; BOE Minutes 2/24/04 pg. 9 charter granted; BESE mtg 12/15 | AJ48: BOE Minutes 2/24/04 pg. 9 charter granted; BESE mtg 12/15/09 | AL48: * | AM48: Operating | AN48: COperating | AO48: NoOperating | AP48: NoOperating | AQ48: 1586Operating | AR48: UrbanOperating | AS48: MSHSOperating | AT48: 1586
A49: 454 | B49: Lawrence Family Development Charter School | C49: C | D49: 4 | F49: Lawrence | G49: No Status | H49: 1995 | I49: Yes | J49: 1995 | K49: 22 | L49: 2000 | M49: 2005 | N49: 2010 | O49: 2015 | P49: 2000 | Q49: 2005 | R49: 2010 | S49: 2015 | T49: 2015 | U49: 2020 | V49: 2020 | W49: No | X49: No | Y49: PK-08 | Z49: 800 | AA49: Urban | AB49: ESMS | AC49: NA | AE49: 600 to 800 BESE 12/2010 | AG49: VC6000182258 | AH49: BOE Minutes 10/25/05 p.8-9 Amendment approval (details in Board Memo dated 10/25/05) | AI49: BOE Minutes 11/23/99 p.27 makes no mention of enrollment max in charter renewal; charter renewal application p. 25; BOE Minutes 2/15/05 p. 10 | AJ49: BOE Minutes 10/25/05 p.8-9 Amendment approval (details in Board Memo dated 10/25/05) | AK49: charter renewal application p. 25 | AM49: Operating | AN49: COperating | AO49: NoOperating | AP49: NoOperating | AQ49: 800Operating | AR49: UrbanOperating | AS49: ESMSOperating | AT49: 800
A50: 3514 | B50: Libertas Academy Charter School (New school opening FY18) | C50: C | D50: Springfield | E50: No | F50: Springfield | G50: No Status | H50: 2016 | I50: No | J50: 2017 | K50: 0 | L50: 2022 | M50: 2027 | N50: 2032 | O50: 2037 | P50: NA | Q50: NA | R50: NA | S50: NA | T50: 0 | U50: 2022 | V50: 2022 | W50: No | X50: No | Y50: 06-12 | Z50: 630 | AA50: Urban | AB50: ESMS | AC50: NA | AG50: Pending | AH50: BESE Feb 2016 | AM50: Pending | AN50: CPending | AO50: NoPending | AP50: NoPending | AQ50: 630Pending | AR50: UrbanPending | AS50: ESMSPending | AT50: Not Operating
A51: 456 | B51: Lowell Community Charter Public School | C51: C | D51: 4 | F51: Lowell | G51: No Status | H51: 1999 | I51: Yes | J51: 2000 | K51: 17 | L51: 2005 | M51: 2010 | N51: 2015 | O51: 2020 | P51: 2005 | Q51: 2010 | R51: 2015 | S51: NA | T51: 2015 | U51: 2020 | V51: 2020 | W51: No | X51: Former | Y51: PK-08 | Z51: 800 | AA51: Urban | AB51: ESMS | AC51: NA | AE51: K-8 to K-6 in 2011 and from 610 to 653 max, req for amendment of conditions | AG51: VC6000187218 | AH51: BOE minutes 1/26/99 p. 36 charter granted for max enrollment of 900; BESE minutes 2/23/10, p.8-10 | AI51: charter application p. 8 projects 632 max. | AJ51: BOE minutes 1/26/99 p. 30 charter granted for K-8; BESE minutes 2/23/10, p.8-10 | AK51: charter application p. 8 says K-7 | AM51: Operating | AN51: COperating | AO51: NoOperating | AP51: FormerOperating | AQ51: 800Operating | AR51: UrbanOperating | AS51: ESMSOperating | AT51: 800
A52: 458 | B52: Lowell Middlesex Academy Charter School | C52: C | D52: 4 | F52: Lowell | G52: No Status | H52: 1994 | I52: Yes | J52: 1995 | K52: 22 | L52: 2000 | M52: 2005 | N52: 2010 | O52: 2015 | P52: 2000 | Q52: 2005 | R52: 2010 | S52: 2015 | T52: 2015 | U52: 2020 | V52: 2020 | W52: No | X52: No | Y52: 09-12 | Z52: 150 | AA52: Urban | AB52: HS | AC52: NA | AE52: Ungraded | AG52: VC6000181847 | AH52: charter renewal application p. 17 | AI52: BOE Minutes 11/23/99 p.28 charter renewal makes no mention of enrollment max | AJ52: charter application p. 5 | AM52: Operating | AN52: COperating | AO52: NoOperating | AP52: NoOperating | AQ52: 150Operating | AR52: UrbanOperating | AS52: HSOperating | AT52: 150
A53: 3517 | B53: Map Academy Charter School | C53: C | F53: Plymouth | G53: No Status | H53: 2017 | I53: Yes | J53: 2018 | K53: -1 | L53: 2023 | M53: 2028 | N53: 2033 | O53: 2038 | P53: NA | Q53: NA | R53: NA | S53: NA | T53: 0 | U53: 2023 | V53: 2023 | W53: Yes | X53: No | Y53: 09-12 | Z53: 300 | AA53: Suburb | AB53: HS | AC53: NA | AG53: pending | AH53: Feb 2017 BESE | AM53: Pending | AN53: CPending | AO53: YesPending | AP53: NoPending | AQ53: 300Pending | AR53: SuburbPending | AS53: HSPending | AT53: Not Operating
A54: 464 | B54: Marblehead Community Charter Public School | C54: C | D54: 4 | F54: Marblehead | G54: No Status | H54: 1994 | I54: Yes | J54: 1995 | K54: 22 | L54: 2000 | M54: 2005 | N54: 2010 | O54: 2015 | P54: 2000 | Q54: 2005 | R54: 2010 | S54: 2015 | T54: 2015 | U54: 2020 | V54: 2020 | W54: No | X54: No | Y54: 04-08 | Z54: 230 | AA54: Suburb | AB54: ESMS | AC54: NA | AG54: VC6000181784 | AH54: BOE Minutes 3/29/05 pg. 6, amendment approved for 220 to 230 increase (described in 3/22/05 Memo) and reiterated in 4/1/05 MS Letter | AI54: charter amend 9/12/02- KM letter, added 4th grade | AJ54: charter amend 9/12/02- KM letter, added 4th grade | AM54: Operating | AN54: COperating | AO54: NoOperating | AP54: NoOperating | AQ54: 230Operating | AR54: SuburbOperating | AS54: ESMSOperating | AT54: 230
A55: 466 | B55: Martha's Vineyard Public Charter School | C55: C | D55: 5 | F55: West Tisbury | G55: No Status | H55: 1995 | I55: Yes | J55: 1996 | K55: 21 | L55: 2001 | M55: 2006 | N55: 2011 | O55: 2016 | P55: 2001 | Q55: 2006 | R55: 2011 | S55: 2016 | T55: 2016 | U55: 2021 | V55: 2021 | W55: Yes | X55: No | Y55: K-12 | Z55: 180 | AA55: Suburb | AB55: K12 | AC55: NA | AG55: VC6000181634 | AH55: BOE Minutes 3/28/06 | AI55: BOE minutes 5/23/00 p.28 charter renewal makes now mention of enrollment maximum; 3/27/98 amend- SH letter | AJ55: BOE Minutes 3/28/06 | AK55: 3/27/98 amend- SH letter | AM55: Operating | AN55: COperating | AO55: YesOperating | AP55: NoOperating | AQ55: 180Operating | AR55: SuburbOperating | AS55: K12Operating | AT55: 180
A56: 492 | B56: Martin Luther King, Jr. Charter School of Excellence | C56: C | D56: 5 | F56: Springfield | G56: Probation | H56: 2005 | I56: Yes | J56: 2006 | K56: 11 | L56: 2011 | M56: 2016 | N56: 2021 | O56: 2026 | P56: 2011 | Q56: 2016 | R56: NA | S56: NA | T56: 2016 | U56: 2021 | V56: 2021 | W56: No | X56: No | Y56: K-05 | Z56: 360 | AA56: Urban | AB56: ES | AC56: NA | AF56: Jan 2014 BESE minutes. | AG56: VC0000192497 | AH56: BOE Minutes 2/15/05; BESE mtg 11/17/09 temporarily increase enrollment from 360 to 368 for 2010 and 2011 | AJ56: BOE Minutes 2/15/05 | AM56: Operating | AN56: COperating | AO56: NoOperating | AP56: NoOperating | AQ56: 360Operating | AR56: UrbanOperating | AS56: ESOperating | AT56: 360
A57: 469 | B57: Match Charter Public School | C57: C | D57: 4 | F57: Boston | G57: No Status | H57: 1999 | I57: Yes | J57: 2000 | K57: 17 | L57: 2005 | M57: 2010 | N57: 2015 | O57: 2020 | P57: 2005 | Q57: 2010 | R57: 2015 | S57: NA | T57: 2015 | U57: 2020 | V57: 2020 | W57: No | X57: No | Y57: PK-12 | Z57: 1250 | AA57: Boston | AB57: K12 | AC57: NA | AE57: max enroll 500 to 550 BESE approved major amendment 2/28/11 | AF57: Formerly 2 Match schools merged into 1. | AG57: VC6000187112 | AH57: BESE Meeting 03/24/09 vote to increase from ; BOE Minutes 9/27/07 - amendment to increase from 220 to 460 | AI57: BOE Minutes (offline) 1/26/99 p. 36 charter granted for max enrollment of 160; 4/3/03 charter amend- KM letter | AJ57: BOE Minutes 9/27/07 - amendment to go from 9-12 to 6-12 | AK57: charter app; 4/3/03 charter amend- KM letter | AM57: Operating | AN57: COperating | AO57: NoOperating | AP57: NoOperating | AQ57: 1250Operating | AR57: BostonOperating | AS57: K12Operating | AT57: 1250
A58: 470 | B58: Mystic Valley Regional Charter School | C58: C | D58: 2 | F58: Malden | G58: No Status | H58: 1998 | I58: Yes | J58: 1998 | K58: 19 | L58: 2003 | M58: 2008 | N58: 2013 | O58: 2018 | P58: 2003 | Q58: 2008 | R58: 2013 | S58: NA | T58: 2013 | U58: 2018 | V58: 2018 | W58: Yes | X58: Former | Y58: K-12 | Z58: 1900 | AA58: Urban | AB58: K12 | AC58: NA | AF58: Conditions Feb 13 Revised Mar 15. Enroll-1900 to begin FY17 if conditions met. | AG58: VC6000186087 | AH58: BOE minutes 10/30/07 Renewal | AI58: BOE Minutes 11/26/02 p. 8 charter renewal; charter app, page 13; BOE Minutes 10/25/05 p.8-9 Amendment approval (details in Board Memo dated 10/25/05); increase maximum enrollment from 1400 to 1500 (BESE mtg. 11/17/09) | AJ58: BOE minutes 10/30/07 Renewal | AK58: BOE Minutes 11/26/02 p. 8 charter renewal; charter app, page 13; BOE Minutes 10/25/05 p.8-9 Amendment approval (details in Board Memo dated 10/25/05) | AM58: Operating | AN58: COperating | AO58: YesOperating | AP58: FormerOperating | AQ58: 1900Operating | AR58: UrbanOperating | AS58: K12Operating | AT58: 1900
A59: 444 | B59: Neighborhood House Charter School | C59: C | D59: 4 | F59: Boston | G59: No Status | H59: 1994 | I59: Yes | J59: 1995 | K59: 22 | L59: 2000 | M59: 2005 | N59: 2010 | O59: 2015 | P59: 2000 | Q59: 2005 | R59: 2010 | S59: 2015 | T59: 2015 | U59: 2020 | V59: 2020 | W59: No | X59: No | Y59: PK-12 | Z59: 828 | AA59: Boston | AB59: K12 | AC59: NA | AE59: Max enrolll to 828 add 9-12Feb 2016 | AG59: VC6000182032 | AH59: charter amend 9/12/02- KM letter | AI59: BOE Charter renewal on 6/29/99 no minutes online | AJ59: charter amend 9/12/02- KM letter | AK59: charter app | AM59: Operating | AN59: COperating | AO59: NoOperating | AP59: NoOperating | AQ59: 828Operating | AR59: BostonOperating | AS59: K12Operating | AT59: 828
A60: 3513 | B60: New Heights Charter School of Brockton | C60: C | D60: 315 | E60: 315 | F60: Brockton | G60: No Status | H60: 2016 | I60: No | J60: 2016 | K60: 1 | L60: 2021 | M60: 2026 | N60: 2031 | O60: 2036 | P60: NA | Q60: NA | R60: NA | S60: NA | T60: 0 | U60: 2021 | V60: 2021 | W60: Yes | X60: No | Y60: 06-12 | Z60: 735 | AA60: Urban | AB60: ESMS | AC60: NA | AG60: Pending | AH60: BESE Feb 2016 | AM60: Operating | AN60: COperating | AO60: YesOperating | AP60: NoOperating | AQ60: 735Operating | AR60: UrbanOperating | AS60: ESMSOperating | AT60: 735
A61: 3515 | B61: Old Sturbridge Academy Charter Public School | C61: C | F61: Sturbridge | G61: No Status | H61: 2017 | I61: No | J61: 2017 | K61: 0 | L61: 2022 | M61: 2027 | N61: 2032 | O61: 2037 | P61: NA | Q61: NA | R61: NA | S61: NA | T61: 0 | U61: 2022 | V61: 2022 | W61: Yes | X61: Yes | Y61: K-08 | Z61: 360 | AA61: Rural | AB61: ESMS | AC61: NA | AG61: Pending | AH61: BESE Feb 2017 | AM61: Pending | AN61: CPending | AO61: YesPending | AP61: YesPending | AQ61: 360Pending | AR61: RuralPending | AS61: ESMSPending | AT61: Not Operating
A62: 3501 | B62: Paulo Freire Social Justice Charter School | C62: C | D62: 2 | F62: Holyoke | G62: No Status | H62: 2012 | I62: No | J62: 2013 | K62: 4 | L62: 2018 | M62: 2023 | N62: 2028 | O62: 2033 | P62: NA | Q62: NA | R62: NA | S62: NA | T62: 0 | U62: 2018 | V62: 2018 | W62: Yes | X62: No | Y62: 9-12 | Z62: 500 | AA62: Urban | AB62: HS | AC62: NA | AG62: VC0000615618 | AH62: BESE minutes 2/12 | AM62: Operating | AN62: COperating | AO62: YesOperating | AP62: NoOperating | AQ62: 500Operating | AR62: UrbanOperating | AS62: HSOperating | AT62: 500
A63: 493 | B63: Phoenix Academy Charter Public High School, Chelsea | C63: C | D63: 5 | F63: Chelsea | G63: No Status | H63: 2005 | I63: Yes | J63: 2006 | K63: 11 | L63: 2011 | M63: 2016 | N63: 2021 | O63: 2026 | P63: 2011 | Q63: 2016 | R63: NA | S63: NA | T63: 2016 | U63: 2021 | V63: 2021 | W63: Yes | X63: No | Y63: 09-12 | Z63: 225 | AA63: Urban | AB63: HS | AC63: NA | AF63: Location is in Everett | AG63: VC0000194828 | AH63: BOE Minutes 2/15/05 | AJ63: BOE Minutes 2/15/05 | AM63: Operating | AN63: COperating | AO63: YesOperating | AP63: NoOperating | AQ63: 225Operating | AR63: UrbanOperating | AS63: HSOperating | AT63: 225
A64: 3508 | B64: Phoenix Academy Public Charter High School, Springfield | C64: C | D64: 3 | F64: Springfield | G64: No Status | H64: 2013 | I64: No | J64: 2014 | K64: 3 | L64: 2019 | M64: 2024 | N64: 2029 | O64: 2034 | P64: NA | Q64: NA | R64: NA | S64: NA | T64: 0 | U64: 2019 | V64: 2019 | W64: Yes | X64: No | Y64: 9-12 | Z64: 250 | AA64: Urban | AB64: HS | AC64: NA | AG64: VC0000728344 | AH64: BESE minutes 2/13 | AM64: Operating | AN64: COperating | AO64: YesOperating | AP64: NoOperating | AQ64: 250Operating | AR64: UrbanOperating | AS64: HSOperating | AT64: 250
A65: 494 | B65: Pioneer Charter School of Science | C65: C | D65: 1 | F65: Everett | G65: No Status | H65: 2006 | I65: Yes | J65: 2007 | K65: 10 | L65: 2012 | M65: 2017 | N65: 2022 | O65: 2027 | P65: 2012 | Q65: 2017 | R65: NA | S65: NA | T65: 2017 | U65: 2022 | V65: 2022 | W65: Yes | X65: No | Y65: K-12 | Z65: 780 | AA65: Urban | AB65: K12 | AC65: NA | AE65: Max enroll to 780 Add K-6Feb 2016 | AF65: Per feb 2017 BESe: subcap in Everett of 400 | AG65: VC0000282719 | AH65: BOE Minutes 2/28/06, p.4 | AJ65: BOE Minutes 2/28/06, p.4 | AM65: Operating | AN65: COperating | AO65: YesOperating | AP65: NoOperating | AQ65: 780Operating | AR65: UrbanOperating | AS65: K12Operating | AT65: 780
A66: 3506 | B66: Pioneer Charter School of Science II | C66: C | D66: 3 | F66: Saugus | G66: No Status | H66: 2013 | I66: No | J66: 2013 | K66: 4 | L66: 2018 | M66: 2023 | N66: 2028 | O66: 2033 | P66: NA | Q66: NA | R66: NA | S66: NA | T66: 0 | U66: 2018 | V66: 2018 | W66: Yes | X66: No | Y66: 07-12 | Z66: 360 | AA66: Urban | AB66: MSHS | AC66: NA | AG66: VC0000657874 | AH66: BESE minutes 2/13 | AM66: Operating | AN66: COperating | AO66: YesOperating | AP66: NoOperating | AQ66: 360Operating | AR66: UrbanOperating | AS66: MSHSOperating | AT66: 360
A67: 497 | B67: Pioneer Valley Chinese Immersion Charter School | C67: C | D67: 1 | F67: Hadley | G67: No Status | H67: 2007 | I67: Yes | J67: 2007 | K67: 10 | L67: 2012 | M67: 2017 | N67: 2022 | O67: 2027 | P67: 2012 | Q67: 2017 | R67: NA | S67: NA | T67: 2017 | U67: 2022 | V67: 2022 | W67: Yes | X67: No | Y67: K-12 | Z67: 584 | AA67: Suburb | AB67: K12 | AC67: NA | AE67: 300 to 584 and added grades 9-12 (284 seats 2/2013 BESE) | AG67: VC0000334763 | AH67: BOE Minutes 2/27/07 | AJ67: BOE Minutes 2/27/07 | AM67: Operating | AN67: COperating | AO67: YesOperating | AP67: NoOperating | AQ67: 584Operating | AR67: SuburbOperating | AS67: K12Operating | AT67: 584
A68: 479 | B68: Pioneer Valley Performing Arts Charter Public School | C68: C | D68: 5 | F68: South Hadley | G68: Conditions | H68: 1996 | I68: Yes | J68: 1996 | K68: 21 | L68: 2001 | M68: 2006 | N68: 2011 | O68: 2016 | P68: 2001 | Q68: 2006 | R68: 2011 | S68: 2016 | T68: 2016 | U68: 2021 | V68: 2021 | W68: Yes | X68: No | Y68: 07-12 | Z68: 400 | AA68: Suburb | AB68: MSHS | AC68: NA | AF68: Jan 2013 BESE minutes. Jan 2015 BESE Continue. | AG68: VC6000182999 | AH68: BOE minutes 12/20/05 Renewal | AI68: BOE Minutes 11/28/00 p.29 amendment granted to increase max enroll. To 300 and grade span to 7-12; charter amend 4/3/03- KM letter\ | AJ68: BOE Minutes 11/28/00 p.29 amendment grated to increase max enroll. To 300 and grade span to 7-12 | AM68: Operating | AN68: COperating | AO68: YesOperating | AP68: NoOperating | AQ68: 400Operating | AR68: SuburbOperating | AS68: MSHSOperating | AT68: 400
A69: 487 | B69: Prospect Hill Academy Charter School | C69: C | D69: 5 | F69: Somerville (K-6); Cambridge (7-12) | G69: No Status | H69: 1996 | I69: Yes | J69: 1996 | K69: 21 | L69: 2001 | M69: 2006 | N69: 2011 | O69: 2016 | P69: 2001 | Q69: 2006 | R69: 2011 | S69: 2016 | T69: 2016 | U69: 2021 | V69: 2021 | W69: Yes | X69: Former | Y69: PK-12 | Z69: 1200 | AA69: Urban | AB69: K12 | AC69: NA | AG69: VC6000182989 | AH69: BOE Minutes 3/28/06 | AI69: 1996 charter application estimates 1,000-1200 K-12 students on page 33; BOE Minutes 2/27/01 p.27 makes no mention of enrollment max or gradespan in charter renewal; charter renewal application p. 23 projects 1290 in 2005-2006 | AJ69: BOE Minutes 3/28/06 | AK69: 1996 charter application estimates 1,000-1200 K-12 students on page 33; BOE Minutes 2/27/01 p.27 makes no mention of enrollment max or gradespan in charter renewal; charter renewal application p. 23 projects 1290 in 2005-2006; BESE mtg 11/17/09 - increase grades from k-12 to k1-12) | AM69: Operating | AN69: COperating | AO69: YesOperating | AP69: FormerOperating | AQ69: 1200Operating | AR69: UrbanOperating | AS69: K12Operating | AT69: 1200
A70: 483 | B70: Rising Tide Charter Public School | C70: C | D70: 2 | F70: Plymouth | G70: No Status | H70: 1998 | I70: Yes | J70: 1998 | K70: 19 | L70: 2003 | M70: 2008 | N70: 2013 | O70: 2018 | P70: 2003 | Q70: 2008 | R70: 2013 | S70: NA | T70: 2013 | U70: 2018 | V70: 2018 | W70: Yes | X70: Former | Y70: 05-12 | Z70: 700 | AA70: Suburb | AB70: MSHS | AC70: NA | AG70: VC6000185859 | AH70: BESE Minutes 11/18/08 incrase to 700 + high school; BOE minutes 01/22/08 renewal vote; BOE Minutes 9/27/07, amendment to increase from 300 to 320 | AI70: BOE Minutes 2/25/03 pg.9 charter renewal for max of 228; BOE Minutes 2/24/04 p.12 amendment approved for increased enrollment (to 300 as documented in board pkg) | AJ70: BESE Minutes 11/18/08 incrase to 700 + high school; BOE minutes 01/22/08 renewal vote; BOE Minutes 2/24/04 p.12 amendment approved for increased enrollment (to 300 as documented in board pkg--*Growth plan: 250 for 04-05, 280 for 05-06, 300 for 06-07) | AK70: BOE Minutes 2/25/03 pg.9 charter granted for grade span of 5-8 | AM70: Operating | AN70: COperating | AO70: YesOperating | AP70: FormerOperating | AQ70: 700Operating | AR70: SuburbOperating | AS70: MSHSOperating | AT70: 700
A71: 482 | B71: River Valley Charter School | C71: C | D71: 3 | F71: Newburyport | G71: No Status | H71: 1999 | I71: Yes | J71: 1999 | K71: 18 | L71: 2004 | M71: 2009 | N71: 2014 | O71: 2019 | P71: 2004 | Q71: 2009 | R71: 2014 | S71: NA | T71: 2014 | U71: 2019 | V71: 2019 | W71: Yes | X71: No | Y71: K-08 | Z71: 288 | AA71: Rural | AB71: ESMS | AC71: NA | AE71: Renewal granted very early in 11/2002 | AG71: VC6000187184 | AH71: charter amend 4/3/03- KM letter | AI71: BESE Minutes 2/24/09 pg.10 charter renewed; BOE Minutes 11/26/02 p. 8 charter renewal says max enroll. 256 grades 1-8 | AJ71: charter amend 4/3/03- KM letter | AK71: BESE Minutes 2/24/09 pg.10 charter renewed; BOE Minutes 11/26/02 p. 8 charter renewal says max enroll. 256 grades 1-8 | AM71: Operating | AN71: COperating | AO71: YesOperating | AP71: NoOperating | AQ71: 288Operating | AR71: RuralOperating | AS71: ESMSOperating | AT71: 288
A72: 484 | B72: Roxbury Preparatory Charter School | C72: C | D72: 3 | F72: Boston | G72: No Status | H72: 1998 | I72: Yes | J72: 1999 | K72: 18 | L72: 2004 | M72: 2009 | N72: 2014 | O72: 2019 | P72: 2004 | Q72: 2009 | R72: 2014 | S72: NA | T72: 2014 | U72: 2019 | V72: 2019 | W72: No | X72: Yes | Y72: 05-12 | Z72: 1800 | AA72: Boston | AB72: MSHS | AC72: NA | AE72: max enroll from 300 to 600 2/2011 BESE and add gr 5-12 (from 6-8) 2/2011 | AF72: Formerly 3 schools merged into 1. | AG72: VC6000185928 | AH72: BESE Minutes 2/24/09 pg.10 charter renewed; BESE Minutes 06/25/08, reduce to 300 max enro; BOE Minutes 2/24/04 pg. 6 charter renewal | AI72: charter app | AJ72: BESE Minutes 2/24/09 pg.10 charter renewed; BESE Minutes 06/25/08, grade span 6-8; BOE Minutes 2/24/04 pg. 6 charter renewal | AK72: charter app say 5-12 | AM72: Operating | AN72: COperating | AO72: NoOperating | AP72: YesOperating | AQ72: 1800Operating | AR72: BostonOperating | AS72: MSHSOperating | AT72: 1800
A73: 441 | B73: Sabis International Charter School | C73: C | D73: 4 | F73: Springfield | G73: Conditions | H73: 1995 | I73: Yes | J73: 1995 | K73: 22 | L73: 2000 | M73: 2005 | N73: 2010 | O73: 2015 | P73: 2000 | Q73: 2005 | R73: 2010 | S73: 2015 | T73: 2015 | U73: 2020 | V73: 2020 | W73: No | X73: Yes | Y73: K-12 | Z73: 1574 | AA73: Urban | AB73: K12 | AC73: NA | AG73: VC6000181490 | AH73: BOE minutes 10/24/06 pp. 10-11 | AI73: renewal app pg. 19; BOE Minutes 4/27/1999 p.19 makes no mention of enrollment max in charter renewal | AJ73: renewal app pg. 19 | AM73: Operating | AN73: COperating | AO73: NoOperating | AP73: YesOperating | AQ73: 1574Operating | AR73: UrbanOperating | AS73: K12Operating | AT73: 1574
A74: 485 | B74: Salem Academy Charter School | C74: C | D74: 3 | F74: Salem | G74: No Status | H74: 2003 | I74: Yes | J74: 2004 | K74: 13 | L74: 2009 | M74: 2014 | N74: 2019 | O74: 2024 | P74: 2009 | Q74: 2014 | R74: NA | S74: NA | T74: 2014 | U74: 2019 | V74: 2019 | W74: No | X74: No | Y74: 06-12 | Z74: 480 | AA74: Urban | AB74: MSHS | AC74: NA | AG74: VC6000233570 | AH74: BESE Minutes 2/24/09 pg.12 charter renewed; BOE Minutes 2/25/03 pg.9 charter granted | AJ74: BESE Minutes 2/24/09 pg.12 charter renewed; BOE Minutes 2/25/03 pg.9 charter granted | AL74: * | AM74: Operating | AN74: COperating | AO74: NoOperating | AP74: NoOperating | AQ74: 480Operating | AR74: UrbanOperating | AS74: MSHSOperating | AT74: 480
A75: 486 | B75: Seven Hills Charter Public School | C75: C | D75: 5 | F75: Worcester | G75: No Status | H75: 1994 | I75: Yes | J75: 1996 | K75: 21 | L75: 2001 | M75: 2006 | N75: 2011 | O75: 2016 | P75: 2001 | Q75: 2006 | R75: 2011 | S75: 2016 | T75: 2016 | U75: 2021 | V75: 2021 | W75: No | X75: Former | Y75: K-08 | Z75: 666 | AA75: Urban | AB75: ESMS | AC75: NA | AG75: VC6000183109 | AH75: BOE Minutes 2/28/06 p.6 | AI75: BOE Minutes 2/27/01 p.25 makes no mention of enrollment max in charter renewal; 6/3/96 amend approval - S. Hamilton | AJ75: BOE Minutes 2/28/06 p.6 | AK75: charter application p. 5 | AM75: Operating | AN75: COperating | AO75: NoOperating | AP75: FormerOperating | AQ75: 666Operating | AR75: UrbanOperating | AS75: ESMSOperating | AT75: 666
A76: 477 | B76: Silver Hill Horace Mann Charter School | C76: HM | D76: 2 | F76: Haverhill | G76: No Status | H76: 2008 | I76: Yes | J76: 2008 | K76: 9 | L76: 2013 | M76: 2018 | N76: 2023 | O76: 2028 | P76: 2013 | Q76: NA | R76: NA | S76: NA | T76: 2013 | U76: 2018 | V76: 2018 | W76: NA | X76: No | Y76: K-05 | Z76: 580 | AA76: Urban | AB76: ES | AC76: NA | AG76: VC0000401017 | AH76: BOE minutes 2/26/08 charter granting | AJ76: BOE minutes 2/26/08 charter granting | AM76: Operating | AN76: HMOperating | AO76: NAOperating | AP76: NoOperating | AQ76: 580Operating | AR76: UrbanOperating | AS76: ESOperating | AT76: 580
A77: 474 | B77: Sizer School, A North Central Charter Essential School | C77: C | D77: 1 | F77: Fitchburg | G77: Conditions | H77: 2001 | I77: Yes | J77: 2002 | K77: 15 | L77: 2007 | M77: 2012 | N77: 2017 | O77: 2022 | P77: 2007 | Q77: 2012 | R77: 2017 | S77: NA | T77: 2017 | U77: 2022 | V77: 2022 | W77: Yes | X77: No | Y77: 07-12 | Z77: 400 | AA77: Urban | AB77: MSHS | AC77: NA | AF77: Formally North Central Charter Essential School. | AG77: VC6000189774 | AH77: BOE minutes 2/27/07 renewal; BOE minutes 02/27/01 pg.23 charter granted | AJ77: BOE minutes 2/27/07 renewal; BOE minutes 02/27/01 pg.23 charter granted | AM77: Operating | AN77: COperating | AO77: YesOperating | AP77: NoOperating | AQ77: 400Operating | AR77: UrbanOperating | AS77: MSHSOperating | AT77: 400
A78: 488 | B78: South Shore Charter Public School | C78: C | D78: 4 | F78: Norwell | G78: No Status | H78: 1994 | I78: Yes | J78: 1995 | K78: 22 | L78: 2000 | M78: 2005 | N78: 2010 | O78: 2015 | P78: 2000 | Q78: 2005 | R78: 2010 | S78: 2015 | T78: 2015 | U78: 2020 | V78: 2020 | W78: Yes | X78: No | Y78: K-12 | Z78: 1075 | AA78: Rural | AB78: K12 | AC78: NA | AE78: Increase enroll to 1075 Feb 2016 BESE | AG78: VC6000181836 | AH78: BOE minutes 11/29/05 p. XXX Amendment approval | AI78: charter renewal application p. 24; BOE Minutes 01/25/00 p.19 charter renewal makes no mention of enrollment max; BOE Minutes 3/29/05 p.6 Remewal | AJ78: BOE Minutes 3/29/05 p.6 Remewal | AK78: charter renewal application p. 24; BOE Minutes 01/25/00 p.19 charter renewal makes no mention of enrollment max; | AM78: Operating | AN78: COperating | AO78: YesOperating | AP78: NoOperating | AQ78: 1075Operating | AR78: RuralOperating | AS78: K12Operating | AT78: 1075
A79: 3510 | B79: Springfield Preparatory Charter School | C79: C | D79: 4 | F79: Springfield | G79: No Status | H79: 2014 | I79: No | J79: 2015 | K79: 2 | L79: 2020 | M79: 2025 | N79: 2030 | O79: 2035 | P79: NA | Q79: NA | R79: NA | S79: NA | T79: 0 | U79: 2020 | V79: 2020 | W79: No | X79: No | Y79: K-08 | Z79: 486 | AA79: Urban | AB79: ESMS | AC79: NA | AF79: Scheduled to open FY16. | AG79: VC0000727415 | AM79: Operating | AN79: COperating | AO79: NoOperating | AP79: NoOperating | AQ79: 486Operating | AR79: UrbanOperating | AS79: ESMSOperating | AT79: 486
A80: 489 | B80: Sturgis Charter Public School | C80: C | D80: 2 | F80: Hyannis | G80: No Status | H80: 1998 | I80: Yes | J80: 1998 | K80: 19 | L80: 2003 | M80: 2008 | N80: 2013 | O80: 2018 | P80: 2003 | Q80: 2008 | R80: 2013 | S80: NA | T80: 2013 | U80: 2018 | V80: 2018 | W80: Yes | X80: No | Y80: 09-12 | Z80: 850 | AA80: Suburb | AB80: HS | AC80: NA | AG80: VC6000185821 | AH80: BOE minutes 10/30/07 Renewal | AI80: BOE Minutes 9/24/02 p. 6 charter renewal; charter app. Had max of 350; BOE Minutes 9/28/04 p. 6, Amendment to reduce max from 540 to 425 and change to regional; BESE mtg. 11/17/09 - increase enrollment from 425 to 800 | AJ80: BOE minutes 10/30/07 Renewal | AK80: charter app | AM80: Operating | AN80: COperating | AO80: YesOperating | AP80: NoOperating | AQ80: 850Operating | AR80: SuburbOperating | AS80: HSOperating | AT80: 850
A81: 480 | B81: UP Academy Charter School of Boston | C81: HM | D81: 5 | F81: Boston | G81: No Status | H81: 2011 | I81: Yes | J81: 2011 | K81: 6 | L81: 2016 | M81: 2021 | N81: 2026 | O81: 2031 | P81: 2016 | Q81: NA | R81: NA | S81: NA | T81: 2016 | U81: 2021 | V81: 2021 | W81: NA | X81: Yes | Y81: 06-08 | Z81: 540 | AA81: Boston | AB81: MS | AC81: NA | AG81: VC0000546000 | AH81: BESE Minutes 2/28/11 | AJ81: BESE Minutes 2/28/11 | AM81: Operating | AN81: HM3Operating | AO81: NAOperating | AP81: YesOperating | AQ81: 540Operating | AR81: BostonOperating | AS81: MSOperating | AT81: 540
A82: 3505 | B82: UP Academy Charter School of Dorchester | C82: HM | D82: 2 | F82: Boston | G82: No Status | H82: 2013 | I82: Yes | J82: 2013 | K82: 4 | L82: 2018 | M82: 2023 | N82: 2028 | O82: 2033 | P82: NA | Q82: NA | R82: NA | S82: NA | T82: 0 | U82: 2018 | V82: 2018 | W82: NA | X82: Yes | Y82: PK-08 | Z82: 820 | AA82: Boston | AB82: ESMS | AC82: NA | AG82: VC0000666898 | AH82: BESE minutes 2/13 | AM82: Operating | AN82: HM3Operating | AO82: NAOperating | AP82: YesOperating | AQ82: 820Operating | AR82: BostonOperating | AS82: ESMSOperating | AT82: 820
A83: 3512 | B83: UP Academy Charter School of Springfield | C83: HM | D83: 5 | E83: Alyssa Hopkins | F83: Springfield | G83: No Status | H83: 2015 | I83: Yes | J83: 2018 | K83: -1 | L83: 2023 | M83: 2028 | N83: 2033 | O83: 2038 | P83: NA | Q83: NA | R83: NA | S83: NA | T83: 0 | U83: 2023 | V83: 2023 | W83: NA | X83: Yes | Y83: 06-08 | Z83: 800 | AA83: Urban | AB83: MS | AC83: NA | AF83: Scheduled to open FY17. | AG83: Pending | AM83: Pending | AN83: HM3Pending | AO83: NAPending | AP83: YesPending | AQ83: 800Pending | AR83: UrbanPending | AS83: MSPending | AT83: Not Operating
A84: 498 | B84: Veritas Preparatory Charter School | C84: C | D84: 1 | F84: Springfield | G84: No Status | H84: 2011 | I84: Yes | J84: 2012 | K84: 5 | L84: 2017 | M84: 2022 | N84: 2027 | O84: 2032 | P84: 2017 | Q84: NA | R84: NA | S84: NA | T84: 2017 | U84: 2022 | V84: 2022 | W84: No | X84: No | Y84: 05-08 | Z84: 324 | AA84: Urban | AB84: MS | AC84: NA | AG84: VC0000546960 | AH84: BESE Minutes 2/28/11 | AJ84: BESE Minutes 2/28/11 | AM84: Operating | AN84: COperating | AO84: NoOperating | AP84: NoOperating | AQ84: 324Operating | AR84: UrbanOperating | AS84: MSOperating | AT84: 324
A85: 415 | B85: Amesbury Academy Charter Public School | C85: HM | D85: 5 | F85: Amesbury | G85: NA | H85: 2001 | I85: NA | J85: 2001 | K85: NA | L85: 2006 | M85: 2011 | N85: Post-Opening Surrender | O85: NA | U85: NA | V85: NA | W85: No | X85: No | Y85: 9-12 | Z85: 50 | AA85: Rural | AB85: HS | AC85: 2015 | AD85: surrender | AF85: School closing 6/30/15 to revert back to district. | AG85: VC6000189819 | AH85: BOE minutes 02/28/06 p.6 | AI85: BOE minutes 02/27/01 pg.22 charter granted | AJ85: BOE minutes 02/28/06 p.6 | AK85: BOE minutes 02/27/01 pg.22 charter granted | AM85: Closed | AN85: HMClosed | AO85: NoClosed | AP85: NoClosed | AQ85: 50Closed | AR85: RuralClosed | AS85: HSClosed | AT85: Not Operating
A86: 423 | B86: Barnstable Horace Mann Charter School | C86: HM | D86: NA | E86: NA | F86: Barnstable | G86: NA | H86: 1998 | I86: NA | J86: 1999 | K86: NA | L86: 2004 | M86: 2009 | N86: Post-Opening Surrender | O86: NA | U86: NA | V86: NA | W86: No | X86: No | Y86: 04-05 | Z86: 1000 | AA86: Suburb | AB86: MS | AC86: 2012 | AD86: surrender | AE86: Grade span amended to 4-5 in 4/09. | AG86: VC6000190867 | AH86: BESE Minutes 2/24/09 pg.9 charter renewed; BOE Minutes 2/24/04 pg. 5 charter renewal | AI86: amend approval 4/29/03 states all district students in grades 5 and 6 | AJ86: BESE Minutes 2/24/09 pg.9 charter renewed; BOE Minutes 2/24/04 pg. 5 charter renewal | AK86: amend approval 4/29/03 | AM86: Closed | AN86: HMClosed | AO86: NoClosed | AP86: NoClosed | AQ86: 1000Closed | AR86: SuburbClosed | AS86: MSClosed | AT86: Not Operating
A87: 425 | B87: Boston University Residential Charter School | C87: C | D87: NA | E87: NA | F87: Granby | G87: NA | H87: 1994 | I87: NA | J87: 1997 | K87: NA | L87: Post-Opening Surrender | M87: NA | N87: NA | O87: NA | U87: NA | V87: NA | W87: No | X87: No | Y87: 42594 | Z87: NA | AA87: Rural | AB87: MSHS | AC87: 2000 | AD87: surrender | AE87: Opened and then Charter turned in. | AG87: NA | AH87: NA | AI87: NA | AJ87: NA | AK87: NA | AM87: Closed | AN87: CClosed | AO87: NoClosed | AP87: NoClosed | AQ87: NAClosed | AR87: RuralClosed | AS87: MSHSClosed | AT87: Not Operating
A88: 457 | B88: Brooke Charter School East Boston (FY17-will merge with 0428 and 0457 as Brooke Charter School LEA, 428 K-12) | C88: C | D88: 1 | E88: VLOOKUP(A22, LIAISONS, 3, FALSE) | F88: Boston | G88: NA | H88: 2011 | I88: No | J88: 2012 | K88: NA | L88: Returned due to merger | M88: NA | N88: NA | O88: NA | P88: NA | Q88: NA | R88: NA | S88: NA | U88: NA | V88: NA | W88: Yes | X88: No | Y88: K-08 | Z88: 510 | AA88: Boston | AB88: ESMS | AC88: 2016 | AD88: consolidation | AE88: 475 to 510 (35 seats 2/2013 BESE). No more than 340 students may enroll from Boston. | AG88: VC0000571755 | AH88: SY 2012-13 max enroll TBD by MDC | AJ88: BESE Minutes 2/28/11 | AM88: Closed | AN88: CClosed | AO88: YesClosed | AP88: NoClosed | AQ88: 510Closed | AR88: BostonClosed | AS88: ESMSClosed | AT88: Not Operating
A89: 443 | B89: Brooke Charter School Mattapan (FY17-will merge with 0428 and 0457 as Brooke Charter School LEA 428, K-12) | C89: C | D89: 5 | F89: Boston | G89: NA | H89: 2011 | I89: No | J89: 2011 | K89: NA | L89: Returned due to merger | M89: NA | N89: NA | O89: NA | P89: NA | Q89: NA | R89: NA | S89: NA | U89: NA | V89: NA | W89: No | X89: No | Y89: K-08 | Z89: 510 | AA89: Boston | AB89: ESMS | AC89: 2016 | AD89: consolidation | AE89: 475 to 510 (35 seats 2/2013 BESE) | AG89: VC0000549165 | AH89: SY 2011-12 max enroll is 168 per MDC | AJ89: BESE Minutes 2/28/11 | AM89: Closed | AN89: CClosed | AO89: NoClosed | AP89: NoClosed | AQ89: 510Closed | AR89: BostonClosed | AS89: ESMSClosed | AT89: Not Operating
A90: 434 | B90: Champion Charter Public School | C90: HM | D90: NA | E90: NA | F90: Brockton | G90: NA | H90: 1998 | I90: NA | J90: 1998 | K90: NA | L90: Post-Opening Surrender | M90: NA | N90: NA | O90: NA | U90: NA | V90: NA | W90: No | X90: No | Y90: 09-12 | Z90: 125 | AA90: Urban | AB90: HS | AC90: 2008 | AD90: expired | AE90: Ungrade ages 16-21; Did not apply for renewal - turned over operation to Brockton Public Schools control. | AG90: VC6000186108 | AH90: BOE Minutes 01/28/03 p. 5 charter renewal | AI90: charter renewal | AJ90: BOE Minutes 01/28/03 p. 5 charter renewal | AK90: charter app | AM90: Closed | AN90: HMClosed | AO90: NoClosed | AP90: NoClosed | AQ90: 125Closed | AR90: UrbanClosed | AS90: HSClosed | AT90: Not Operating
A91: 433 | B91: Dorchester Prep | C91: C | D91: NA | E91: NA | F91: Boston | G91: NA | H91: 2011 | I91: NA | J91: NA | K91: NA | L91: Returned due to merger | M91: NA | N91: NA | O91: NA | U91: NA | V91: NA | W91: No | X91: Former | Y91: 05-12 | Z91: 600 | AA91: Urban | AB91: MSHS | AC91: NA | AD91: consolidation | AE91: Never opened. Merged with Roxbury Prep for 2012-13 school year. | AM91: Closed | AN91: CClosed | AO91: NoClosed | AP91: FormerClosed | AQ91: 600Closed | AR91: UrbanClosed | AS91: MSHSClosed | AT91: Not Operating
A92: 475 | B92: Dorchester Collegiate Academy Charter School | C92: C | D92: 3 | F92: Boston | G92: NA | H92: 2008 | I92: NA | J92: 2009 | K92: NA | L92: 2014 | M92: Revocation | N92: NA | O92: NA | P92: 2014 | Q92: NA | R92: NA | S92: NA | U92: NA | V92: NA | W92: No | X92: No | Y92: 04-08 | Z92: 238 | AA92: Boston | AB92: ESMS | AC92: 2016 | AD92: revocation | AF92: February 2014 BESE Minutes | AG92: VC0000400784 | AH92: BOE minutes 2/26/08 charter granting | AJ92: BOE minutes 2/26/08 charter granting | AM92: Closed | AN92: CClosed | AO92: NoClosed | AP92: NoClosed | AQ92: 238Closed | AR92: BostonClosed | AS92: ESMSClosed | AT92: Not Operating
A93: 459 | B93: Excel Academy Charter School - Boston II | C93: C | D93: NA | E93: NA | F93: Boston | G93: NA | H93: 2011 | I93: NA | J93: 2012 | K93: NA | L93: Returned due to merger | M93: NA | N93: NA | O93: NA | U93: NA | V93: NA | W93: No | X93: No | Y93: 05-12 | Z93: 448 | AA93: Boston | AB93: MSHS | AC93: 2014 | AD93: consolidation | AE93: Merge with Excel | AG93: VC0000571407 | AH93: SY 2012-13 max enroll TBD by MDC | AJ93: BESE Minutes 2/28/11 | AM93: Closed | AN93: CClosed | AO93: NoClosed | AP93: NoClosed | AQ93: 448Closed | AR93: BostonClosed | AS93: MSHSClosed | AT93: Not Operating
A94: 461 | B94: Excel Academy Charter School - Chelsea | C94: C | D94: NA | E94: NA | F94: Chelsea | G94: NA | H94: 2011 | I94: NA | J94: 2011 | K94: NA | L94: Returned due to merger | M94: NA | N94: NA | O94: NA | U94: NA | V94: NA | W94: No | X94: No | Y94: 05-12 | Z94: 448 | AA94: Urban | AB94: MSHS | AC94: 2014 | AD94: consolidation | AE94: Merge with Excel | AG94: VC0000547617 | AH94: BESE Minutes 2/28/11 | AJ94: BESE Minutes 2/28/11 | AM94: Closed | AN94: CClosed | AO94: NoClosed | AP94: NoClosed | AQ94: 448Closed | AR94: UrbanClosed | AS94: MSHSClosed | AT94: Not Operating
A95: 495 | B95: Fall River Maritime Charter Public School | C95: C | D95: NA | E95: NA | F95: Fall River | G95: NA | H95: 2006 | I95: NA | J95: NA | K95: NA | L95: Pre-Opening Surrender | M95: NA | N95: NA | O95: NA | U95: NA | V95: NA | W95: No | X95: Former | Y95: 05-08 | Z95: 80 | AA95: Urban | AB95: MS | AC95: NA | AD95: surrender | AE95: Surrendered charter per letter from Board on 11/20/06. | AG95: VC0000273047 | AH95: BOE Minutes 2/28/06, p.3 | AJ95: BOE Minutes 2/28/06, p.3 | AM95: Closed | AN95: CClosed | AO95: NoClosed | AP95: FormerClosed | AQ95: 80Closed | AR95: UrbanClosed | AS95: MSClosed | AT95: Not Operating
A96: 442 | B96: Frederick Douglass Charter School | C96: C | D96: NA | E96: NA | F96: Boston | G96: NA | H96: 1999 | I96: NA | J96: 2000 | K96: NA | L96: Non-Renewal | M96: NA | N96: NA | O96: NA | U96: NA | V96: NA | W96: No | X96: No | Y96: 06-12 | Z96: 408 | AA96: Boston | AB96: MSHS | AC96: 2005 | AD96: revocation | AE96: BESE intent to revoke vote 2-05; final BESE vote 7-28-05 | AG96: VC6000187196 | AH96: BOE minutes on 1/26/99 p. 36 (not online) Charter granted for grade 5-12 max 408 | AI96: charter application p. 16 say max 306 grades 5-10 | AJ96: 3/15/01 amend- SMB letter | AM96: Closed | AN96: CClosed | AO96: NoClosed | AP96: NoClosed | AQ96: 408Closed | AR96: BostonClosed | AS96: MSHSClosed | AT96: Not Operating
A97: 448 | B97: Gloucester Community Arts Charter School | C97: C | D97: NA | E97: NA | F97: Gloucester | G97: NA | H97: 2009 | I97: NA | J97: 2010 | K97: NA | L97: Post-Opening Surrender | M97: NA | N97: NA | O97: NA | U97: NA | V97: NA | W97: No | X97: No | Y97: K-08 | Z97: 240 | AA97: Urban | AB97: ESMS | AC97: 2013 | AD97: surrender | AE97: FY2010 opened. Turned in Charter February 2013 | AG97: VC0000468226 | AH97: BESE Minutes 02/24/09 p. 4 charter granting | AJ97: BESE Minutes 02/24/09 p. 4 charter granting | AM97: Closed | AN97: CClosed | AO97: NoClosed | AP97: NoClosed | AQ97: 240Closed | AR97: UrbanClosed | AS97: ESMSClosed | AT97: Not Operating
A98: 462 | B98: Grove Hall Prep | C98: C | D98: NA | E98: NA | F98: Boston | G98: NA | H98: 2011 | I98: NA | J98: 2011 | K98: NA | L98: Returned due to merger | M98: NA | N98: NA | O98: NA | U98: NA | V98: NA | W98: No | X98: Former | Y98: 05-12 | Z98: 600 | AA98: Urban | AB98: MS | AC98: 2012 | AD98: consolidation | AE98: Opened for one year 2011-12 then merged with Roxbury Prep for 2012-13 school year. | AM98: Closed | AN98: CClosed | AO98: NoClosed | AP98: FormerClosed | AQ98: 600Closed | AR98: UrbanClosed | AS98: MSClosed | AT98: Not Operating
A99: 448 | B99: Horace Mann Charter School of Essential Studies | C99: HM | D99: NA | E99: NA | F99: Springfield | G99: NA | H99: 1999 | I99: NA | J99: NA | K99: NA | L99: Pre-Opening Surrender | M99: NA | N99: NA | O99: NA | U99: NA | V99: NA | W99: No | X99: No | Y99: 09-12 | Z99: 600 | AA99: Urban | AB99: ESMS | AC99: NA | AD99: surrender | AE99: Never Opened and Charter turned in. | AG99: VC6000187259 | AH99: NA | AI99: NA | AJ99: NA | AK99: NA | AM99: Closed | AN99: HMClosed | AO99: NoClosed | AP99: NoClosed | AQ99: 600Closed | AR99: UrbanClosed | AS99: ESMSClosed | AT99: Not Operating
A100: 460 | B100: Lynn Community Charter School | C100: C | D100: NA | E100: NA | F100: Lynn | G100: NA | H100: 1996 | I100: NA | J100: 1997 | K100: NA | L100: Non-Renewal | M100: NA | N100: NA | O100: NA | U100: NA | V100: NA | W100: No | X100: No | Y100: K-08 | Z100: 270 | AA100: Urban | AB100: ESMS | AC100: 2002 | AD100: non-renewal | AE100: Non-renewed, BOE final vote 7/2002 | AG100: VC6000182775 | AH100: NA | AI100: NA | AJ100: NA | AK100: NA | AM100: Closed | AN100: CClosed | AO100: NoClosed | AP100: NoClosed | AQ100: 270Closed | AR100: UrbanClosed | AS100: ESMSClosed | AT100: Not Operating
A101: 465 | B101: MATCH Community Day Charter Public School | C101: C | D101: NA | E101: NA | F101: Boston | G101: NA | H101: 2011 | I101: NA | J101: 2011 | K101: NA | L101: Returned due to merger | M101: NA | N101: NA | O101: NA | U101: NA | V101: NA | W101: No | X101: No | Y101: PK-12 | Z101: 700 | AA101: Boston | AB101: K12 | AC101: 2014 | AD101: consolidation | AE101: Merge with MATCH | AG101: VC0000546953 | AH101: SY 2011-12 max enroll is 100 per MDC | AJ101: BESE Minutes 2/28/11 | AM101: Closed | AN101: CClosed | AO101: NoClosed | AP101: NoClosed | AQ101: 700Closed | AR101: BostonClosed | AS101: K12Closed | AT101: Not Operating
A102: 472 | B102: New Bedford Global Learning Charter School | C102: HM | D102: NA | E102: NA | F102: New Bedford | G102: NA | H102: 2000 | I102: NA | J102: 2002 | K102: NA | L102: Post-Opening Surrender | M102: NA | N102: NA | O102: NA | U102: NA | V102: NA | W102: No | X102: No | Y102: 05-12 | Z102: 400 | AA102: Urban | AB102: MSHS | AC102: 2007 | AD102: expired | AE102: Did not apply for renewal; Conversion" to Commonwealth 0496. | AG102: VC6000188954 | AH102: BOE Minutes 2/23/2000 p.39-40 charter granted | AI102: charter app | AJ102: BOE Minutes 2/23/2000 p.39-40 charter granted | AK102: charter app | AM102: Closed | AN102: HMClosed | AO102: NoClosed | AP102: NoClosed | AQ102: 400Closed | AR102: UrbanClosed | AS102: MSHSClosed | AT102: Not Operating
A103: 471 | B103: New Leadership Charter School | C103: HM | D103: NA | E103: NA | F103: Springfield | G103: NA | H103: 1998 | I103: NA | J103: 1998 | K103: NA | L103: 2003 | M103: 2008 | N103: Post-Opening Surrender | O103: NA | U103: NA | V103: NA | W103: No | X103: No | Y103: 06-12 | Z103: 500 | AA103: Urban | AB103: MSHS | AC103: 2013 | AD103: expired | AE103: Closed June 2013. Turned in charter. | AG103: VC6000185951 | AH103: BOE minutes 02/26/08 renewal vote; BOE Minutes 2/25/2003 p.10 charter renewal | AI103: charter renewal | AJ103: BOE minutes 02/26/08 renewal vote; BOE Minutes 2/25/2003 p.10 charter renewal | AK103: charter renewal | AM103: Closed | AN103: HMClosed | AO103: NoClosed | AP103: NoClosed | AQ103: 500Closed | AR103: UrbanClosed | AS103: MSHSClosed | AT103: Not Operating
A104: 467 | B104: New Liberty Charter School of Salem | C104: HM | D104: 5 | F104: Salem | G104: NA | H104: 2011 | I104: NA | J104: 2011 | K104: NA | L104: Post-Opening Surrender | M104: NA | N104: NA | O104: NA | P104: NA | Q104: NA | R104: NA | S104: NA | U104: NA | V104: NA | W104: NA | X104: No | Y104: 09-12 | Z104: 125 | AA104: Urban | AB104: HS | AC104: 2016 | AD104: expired | AF104: Formerly SCCS. Has indicated will not apply for renewal in FY16. | AG104: City of Salem | AH104: BESE Minutes 2/28/11 | AJ104: BESE Minutes 2/28/11 | AM104: Closed | AN104: HM3Closed | AO104: NAClosed | AP104: NoClosed | AQ104: 125Closed | AR104: UrbanClosed | AS104: HSClosed | AT104: Not Operating
A105: 473 | B105: North Star Academy Charter School | C105: C | D105: NA | E105: NA | F105: Springfield | G105: NA | H105: 1995 | I105: NA | J105: 1996 | K105: NA | L105: Post-Opening Surrender | M105: NA | N105: NA | O105: NA | U105: NA | V105: NA | W105: No | X105: No | Y105: 09-12 | Z105: 250 | AA105: Urban | AB105: HS | AC105: 2001 | AD105: surrender | AE105: Opened and then Charter turned in right before a non-renewal recommendation in January 2001 | AG105: NA | AH105: BOE Minutes on 1/23/01 p.27+ | AI105: NA | AJ105: NA | AK105: NA | AM105: Closed | AN105: CClosed | AO105: NoClosed | AP105: NoClosed | AQ105: 250Closed | AR105: UrbanClosed | AS105: HSClosed | AT105: Not Operating
A106: 476 | B106: Northern Bristol County Charter School | C106: C | D106: NA | E106: NA | F106: Bristol County | G106: NA | H106: 2001 | I106: NA | J106: NA | K106: NA | L106: Pre-Opening Surrender | M106: NA | N106: NA | O106: NA | U106: NA | V106: NA | W106: Yes | X106: No | Y106: K-08 | Z106: 500 | AA106: Urban | AB106: ESMS | AC106: NA | AD106: surrender | AE106: Never Opened and Charter turned in. | AG106: VC6000189767 | AH106: NA | AI106: NA | AJ106: NA | AK106: NA | AM106: Closed | AN106: CClosed | AO106: YesClosed | AP106: NoClosed | AQ106: 500Closed | AR106: UrbanClosed | AS106: ESMSClosed | AT106: Not Operating
A107: 451 | B107: Robert M. Hughes Academy Charter Public School | C107: C | D107: NA | E107: NA | F107: Springfield | G107: NA | H107: 1999 | I107: NA | J107: 1999 | K107: NA | L107: 2004 | M107: 2009 | N107: Revocation | O107: NA | U107: NA | V107: NA | W107: No | X107: No | Y107: K-08 | Z107: 180 | AA107: Urban | AB107: ESMS | AC107: 2010 | AD107: revocation | AE107: Charter Revoked by BOE. | AG107: VC6000187231 | AH107: BESE Minutes 1/27/09 pg.7 charter renewed; BOE Minutes 2/24/04 pg. 4 charter renewal | AI107: page 22 of 2004 renewal app. Mentions amendment to 200, but not in BOE approved motion | AJ107: BOE Minutes 2/24/04 pg. 4 charter renewal | AK107: BESE Minutes 1/27/09 pg.7 charter renewed | AM107: Closed | AN107: CClosed | AO107: NoClosed | AP107: NoClosed | AQ107: 180Closed | AR107: UrbanClosed | AS107: ESMSClosed | AT107: Not Operating
A108: 422 | B108: Roxbury Charter High Public School | C108: C | D108: NA | E108: NA | F108: Boston | G108: NA | H108: 2002 | I108: NA | J108: 2003 | K108: NA | L108: Revocation | M108: NA | N108: NA | O108: NA | U108: NA | V108: NA | W108: No | X108: No | Y108: 09-12 | Z108: 400 | AA108: Boston | AB108: HS | AC108: 2005 | AD108: revocation | AE108: BESE intent to revoke vote-12-04; BESE final revocation vote 9-05 | AG108: VC6000190524 | AH108: BOE Minutes 2/26/02 pg. 26 charter granted | AJ108: BOE Minutes 2/26/02 pg. 26 charter granted | AL108: * | AM108: Closed | AN108: CClosed | AO108: NoClosed | AP108: NoClosed | AQ108: 400Closed | AR108: BostonClosed | AS108: HSClosed | AT108: Not Operating
A109: 421 | B109: South End College Preparatory Charter School | C109: C | D109: NA | E109: NA | F109: Boston | G109: NA | H109: 2002 | I109: NA | J109: NA | K109: NA | L109: Pre-Opening Surrender | M109: NA | N109: NA | O109: NA | U109: NA | V109: NA | W109: No | X109: No | Y109: K-08 | Z109: 500 | AA109: Boston | AB109: ESMS | AC109: 2003 | AD109: surrender | AE109: Never Opened and Charter turned in. | AG109: VC6000066921 | AH109: NA | AI109: NA | AJ109: NA | AK109: NA | AM109: Closed | AN109: CClosed | AO109: NoClosed | AP109: NoClosed | AQ109: 500Closed | AR109: BostonClosed | AS109: ESMSClosed | AT109: Not Operating
A110: 476 | B110: Spirit of Knowledge Charter School | C110: C | D110: NA | E110: NA | F110: Worcester | G110: NA | H110: 2010 | I110: NA | J110: 2010 | K110: NA | L110: Post-Opening Surrender | M110: NA | N110: NA | O110: NA | U110: NA | V110: NA | W110: No | X110: No | Y110: 07-12 | Z110: 275 | AA110: Urban | AB110: MSHS | AC110: 2014 | AD110: surrender | AE110: FY2010 opened. Turned in Charter October 2013 | AG110: VC0000500710 | AH110: BESE minutes 2/23/10 p. 7 | AM110: Closed | AN110: CClosed | AO110: NoClosed | AP110: NoClosed | AQ110: 275Closed | AR110: UrbanClosed | AS110: MSHSClosed | AT110: Not Operating
A111: 490 | B111: Uphams Corner Charter School | C111: C | D111: NA | E111: NA | F111: Boston | G111: NA | H111: 2002 | I111: NA | J111: 2002 | K111: NA | L111: 2007 | M111: Revocation | N111: NA | O111: NA | U111: NA | V111: NA | W111: No | X111: No | Y111: 05-08 | Z111: 200 | AA111: Boston | AB111: MS | AC111: 2009 | AD111: revocation | AE111: Revocation vote 1-09; no appeal | AG111: VC6000190480 | AH111: BOE minutes 01/23/07 renewal; BOE Minutes 2/26/02 p.27 charter granted | AI111: charter approval 2/22/02 | AJ111: BOE minutes 01/23/07 renewal; BOE Minutes 2/26/02 p.27 charter granted | AK111: charter approval 5-8 - add? | AM111: Closed | AN111: CClosed | AO111: NoClosed | AP111: NoClosed | AQ111: 200Closed | AR111: BostonClosed | AS111: MSClosed | AT111: Not Operating
A112: 498 | B112: Youth Build Boston Charter School | C112: C | D112: NA | E112: NA | F112: Boston | G112: NA | H112: 1994 | I112: NA | J112: 1995 | K112: NA | L112: Revocation | M112: NA | N112: NA | O112: NA | U112: NA | V112: NA | W112: No | X112: No | Y112: 09-12 | Z112: 300 | AA112: Boston | AB112: HS | AC112: 1997 | AD112: surrender | AE112: Charter Revoked by BOE, went to due process hearing, school closed voluntarily | AG112: NA | AH112: NA | AI112: NA | AJ112: NA | AK112: NA | AM112: Closed | AN112: CClosed | AO112: NoClosed | AP112: NoClosed | AQ112: 300Closed | AR112: BostonClosed | AS112: HSClosed | AT112: Not Operating
B113: Total Currently Operating Commonwealths: | C113: 69
B114: Total Currently Operating Horace Manns (I): | C114: 4
B115: Total Currently Operating Horace Manns (II): | C115: 0
B116: Total Currently Operating Horace Manns (III): | C116: 5
B117: Total Charters Approved but not yet open: | C117: 5
B118: Total Charters Closed or Never Opened Since 1994: | C118: 28
B119: Total Charters Granted by BOE Since 1994: | C119: 111
A120: Updated March, 2017

Sheet TEACHEREPIMS (hidden)
A1: Teachers only
A2: NE = Not Existing
A3: Closed = Closed District
A5: ORG_CODE | B5: ORG_NAME | C5: LEA | D5: FTE_16d | E5: HC_16d | F5: FTE_16a | G5: HC_16a | H5: FTE_15d | I5: HC_15d | J5: FTE_15a | K5: HC_15a | L5: FTE_14d | M5: HC_14d | N5: FTE_14a | O5: HC_14a | P5: FTE_13d | Q5: HC_13d | R5: FTE_13a | S5: HC_13a | T5: FTE_12d | U5: HC_12d | V5: FTE_12a | W5: HC_12a | X5: FTE_11d | Y5: HC_11d | Z5: FTE_11a | AA5: HC_11a | AB5: FTE_10a | AC5: HC_10a
A6: 04070000 | B6: Dudley Street Neighborhood Charter School (District) | C6: 407 | D6: 18.21 | E6: 19 | F6: 18.25 | G6: 19 | H6: 15.94 | I6: 16 | J6: 14.98 | K6: 15 | L6: 9.999 | M6: 10 | N6: 12.998 | O6: 13 | P6: 7.994 | Q6: 8 | R6: 7.994 | S6: 8 | T6: NE | U6: NE | V6: NE | W6: NE | X6: NE | Y6: NE | Z6: NE | AA6: NE | AB6: NE | AC6: NE
A7: 04090000 | B7: Alma del Mar Charter School (District) | C7: 409 | D7: 23.92 | E7: 24 | F7: 28.92 | G7: 29 | H7: 17.03 | I7: 17 | J7: 22.38 | K7: 23 | L7: 18.99 | M7: 19 | N7: 18.99 | O7: 19 | P7: 15.24 | Q7: 15 | R7: 16.28 | S7: 16 | T7: 13.88 | U7: 14 | V7: 13.88 | W7: 14 | X7: NE | Y7: NE | Z7: NE | AA7: NE | AB7: NE | AC7: NE
A8: 04100000 | B8: Excel Academy Charter (District) | C8: 410 | D8: 70.74 | E8: 85 | F8: 53.24 | G8: 89 | H8: 51.625 | I8: 65 | J8: 56.596 | K8: 68 | L8: 19.297 | M8: 26 | N8: 22.369 | O8: 26 | P8: 19.602 | Q8: 24 | R8: 18.97 | S8: 22 | T8: 18.887 | U8: 22 | V8: 18.97 | W8: 22 | X8: 16 | Y8: 19 | Z8: 16 | AA8: 19 | AB8: 17.8 | AC8: 18
A9: 04110000 | B9: Boston Green Academy Horace Mann Charter School (District) | C9: 411 | D9: 40.59 | E9: 43 | F9: 41.02 | G9: 43 | H9: 37 | I9: 39 | J9: 35.01 | K9: 38 | L9: 27.334 | M9: 39 | N9: 33.084 | O9: 44 | P9: 27.659 | Q9: 42 | R9: 30.85 | S9: 40 | T9: 25.36 | U9: 32 | V9: 25.3 | W9: 32 | X9: NE | Y9: NE | Z9: NE | AA9: NE | AB9: NE | AC9: NE
A10: 04120000 | B10: Academy Of the Pacific Rim Charter Public (District) | C10: 412 | D10: 40.58 | E10: 44 | F10: 42.2 | G10: 46 | H10: 42.334 | I10: 45 | J10: 42.5 | K10: 45 | L10: 36.65 | M10: 39 | N10: 38.65 | O10: 41 | P10: 36.1 | Q10: 38 | R10: 35.917 | S10: 38 | T10: 36.8 | U10: 38 | V10: 36.8 | W10: 38 | X10: 33.997 | Y10: 36 | Z10: 34.8 | AA10: 37 | AB10: 35.05 | AC10: 36
A11: 04130000 | B11: Four Rivers Charter Public (District) | C11: 413 | D11: 21.75 | E11: 30 | F11: 22.82 | G11: 30 | H11: 21.955 | I11: 30 | J11: 21.11 | K11: 29 | L11: 21.81 | M11: 28 | N11: 22.36 | O11: 30 | P11: 21.855 | Q11: 28 | R11: 21.268 | S11: 28 | T11: 21.86 | U11: 29 | V11: 21.66 | W11: 30 | X11: 20.214 | Y11: 28 | Z11: 21.227 | AA11: 30 | AB11: 19.064 | AC11: 23
A12: 04140000 | B12: Berkshire Arts and Technology Charter Public (District) | C12: 414 | D12: 31.51 | E12: 37 | F12: 31.299 | G12: 37 | H12: 28.99 | I12: 37 | J12: 29.59 | K12: 34 | L12: 30.11 | M12: 37 | N12: 30.34 | O12: 37 | P12: 27.88 | Q12: 34 | R12: 27.55 | S12: 33 | T12: 24.057 | U12: 28 | V12: 24.866 | W12: 29 | X12: 23.2 | Y12: 26 | Z12: 23.416 | AA12: 26 | AB12: 22.2 | AC12: 23
A13: 04160000 | B13: Boston Preparatory Charter Public (District) | C13: 416 | D13: 32.32 | E13: 37 | F13: 34.55 | G13: 38 | H13: 30.433 | I13: 33 | J13: 33.05 | K13: 37 | L13: 34 | M13: 35 | N13: 34.5 | O13: 36 | P13: 32.895 | Q13: 34 | R13: 32.895 | S13: 34 | T13: 35 | U13: 35 | V13: 35 | W13: 35 | X13: 33.7 | Y13: 34 | Z13: 33.7 | AA13: 34 | AB13: 31.2 | AC13: 32
A14: 04150000 | B14: Amesbury Academy Charter Public (District) | C14: 415 | D14: Closed | E14: Closed | F14: Closed | G14: Closed | H14: 4.37 | I14: 6 | J14: 5.3 | K14: 7 | L14: 4.777 | M14: 8 | N14: 6.071 | O14: 8 | P14: 5.658 | Q14: 7 | R14: 7.203 | S14: 9 | T14: 4.772 | U14: 9 | V14: 5.473 | W14: 9 | X14: 5.235 | Y14: 8 | Z14: 5.9 | AA14: 8 | AB14: 5.36 | AC14: 7
A15: 04170000 | B15: Bridge Boston Charter School (District) | C15: 417 | D15: 16.15 | E15: 17 | F15: 19.4 | G15: 21 | H15: 14 | I15: 14 | J15: 14 | K15: 14 | L15: 11.625 | M15: 12 | N15: 11.625 | O15: 12 | P15: 6.488 | Q15: 7 | R15: 7.488 | S15: 8 | T15: 4.87 | U15: 6 | V15: 5.15 | W15: 6 | X15: NE | Y15: NE | Z15: NE | AA15: NE | AB15: NE | AC15: NE
A16: 04180000 | B16: Christa McAuliffe Charter Public (District) | C16: 418 | D16: 38.75 | E16: 41 | F16: 38.5 | G16: 41 | H16: 37.014 | I16: 40 | J16: 38.1 | K16: 39 | L16: 32.888 | M16: 34 | N16: 30.3 | O16: 32 | P16: 30.726 | Q16: 34 | R16: 27.224 | S16: 36 | T16: 26.293 | U16: 32 | V16: 26.45 | W16: 31 | X16: 23.444 | Y16: 25 | Z16: 23 | AA16: 24 | AB16: 22.4 | AC16: 24
A17: 04190000 | B17: Helen Y. Davis Leadership Academy Charter Public (District) | C17: 419 | D17: 16 | E17: 16 | F17: 16 | G17: 16 | H17: 15 | I17: 15 | J17: 18 | K17: 18 | L17: 17 | M17: 17 | N17: 19 | O17: 19 | P17: 19.72 | Q17: 20 | R17: 20.22 | S17: 20 | T17: 15.098 | U17: 16 | V17: 18.093 | W17: 19 | X17: 27.253 | Y17: 29 | Z17: 17.892 | AA17: 19 | AB17: 15.273 | AC17: 17
A18: 04200000 | B18: Benjamin Banneker Charter Public (District) | C18: 420 | D18: 20.02 | E18: 20 | F18: 21.024 | G18: 21 | H18: 19.97 | I18: 20 | J18: 19.97 | K18: 20 | L18: 20 | M18: 20 | N18: 20 | O18: 20 | P18: 21.973 | Q18: 22 | R18: 22.473 | S18: 23 | T18: 23.473 | U18: 24 | V18: 23.473 | W18: 24 | X18: 23.06 | Y18: 23 | Z18: 23 | AA18: 23 | AB18: 22 | AC18: 22
A19: 04240000 | B19: Boston Day and Evening Academy Charter (District) | C19: 424 | D19: 20.75 | E19: 21 | F19: 21.6 | G19: 22 | H19: 20.6 | I19: 21 | J19: 22.6 | K19: 23 | L19: 24.65 | M19: 27 | N19: 26.4 | O19: 28 | P19: 26.55 | Q19: 27 | R19: 27.5 | S19: 28 | T19: 23.3 | U19: 23 | V19: 25.55 | W19: 27 | X19: 20.7 | Y19: 21 | Z19: 24.6 | AA19: 25 | AB19: 21.8 | AC19: 22
A20: 04260000 | B20: Community Day Charter Public School - Gateway (District) | C20: 426 | D20: 23.5 | E20: 26 | F20: 24 | G20: 27 | H20: 21.6 | I20: 26 | J20: 22.6 | K20: 27 | L20: 18.09 | M20: 20 | N20: 18.09 | O20: 20 | P20: 12.836 | Q20: 14 | R20: 12.836 | S20: 14 | T20: NE | U20: NE | V20: NE | W20: NE | X20: NE | Y20: NE | Z20: NE | AA20: NE | AB20: NE | AC20: NE
A21: 04230000 | B21: Barnstable Horace Mann Charter (District) | C21: 423 | D21: Closed | E21: Closed | F21: Closed | G21: Closed | H21: Closed | I21: Closed | J21: Closed | K21: Closed | L21: Closed | M21: Closed | N21: Closed | O21: Closed | P21: Closed | Q21: Closed | R21: Closed | S21: Closed | T21: 57.239 | U21: 60 | V21: 57.239 | W21: 60 | X21: 49.305 | Y21: 60 | Z21: 48.012 | AA21: 59 | AB21: 57.067 | AC21: 62
A22: 04270000 | B22: Barnstable Community Horace Mann Charter Public (District) | C22: 427 | D22: 25.61 | E22: 26 | F22: 26.008 | G22: 26 | H22: 24.392 | I22: 26 | J22: 23.608 | K22: 24 | L22: 23.608 | M22: 24 | N22: 23.741 | O22: 24 | P22: 23.608 | Q22: 24 | R22: 23.608 | S22: 24 | T22: 22.992 | U22: 23 | V22: 22.992 | W22: 23 | X22: 22.3 | Y22: 23 | Z22: 22.3 | AA22: 23 | AB22: 25.4 | AC22: 26
A23: 04280000 | B23: Brooke Charter School (District) | C23: 428 | D23: 39 | E23: 39 | F23: 39 | G23: 39 | H23: 42 | I23: 42 | J23: 41 | K23: 41 | L23: 40 | M23: 41 | N23: 41 | O23: 42 | P23: 38 | Q23: 38 | R23: 38 | S23: 38 | T23: 36 | U23: 36 | V23: 36 | W23: 36 | X23: 33.373 | Y23: 33 | Z23: 34.995 | AA23: 35 | AB23: 36 | AC23: 36
A24: 04290000 | B24: KIPP Academy Lynn Charter (District) | C24: 429 | D24: 88.33 | E24: 93 | F24: 87.574 | G24: 94 | H24: 76.927 | I24: 80 | J24: 76.72 | K24: 80 | L24: 49.04 | M24: 54 | N24: 65.63 | O24: 69 | P24: 48.69 | Q24: 52 | R24: 49.24 | S24: 53 | T24: 31.945 | U24: 34 | V24: 32.945 | W24: 35 | X24: 25.86 | Y24: 26 | Z24: 25.86 | AA24: 26 | AB24: 26 | AC24: 28
A25: 04300000 | B25: Advanced Math and Science Academy Charter (District) | C25: 430 | D25: 75.71 | E25: 84 | F25: 76.361 | G25: 82 | H25: 80.781 | I25: 85 | J25: 81.392 | K25: 86 | L25: 86.35 | M25: 89 | N25: 86.96 | O25: 90 | P25: 81.544 | Q25: 86 | R25: 80.463 | S25: 87 | T25: 80.509 | U25: 83 | V25: 80.358 | W25: 83 | X25: 72.392 | Y25: 74 | Z25: 70.433 | AA25: 72 | AB25: 61.17 | AC25: 62
A26: 04310000 | B26: Community Day Charter Public School - R. Kingman Webster (District) | C26: 431 | D26: 24.52 | E26: 27 | F26: 25.02 | G26: 28 | H26: 23.6 | I26: 28 | J26: 22.6 | K26: 27 | L26: 18.08 | M26: 20 | N26: 18.08 | O26: 20 | P26: 13.83 | Q26: 15 | R26: 13.83 | S26: 15 | T26: NE | U26: NE | V26: NE | W26: NE | X26: NE | Y26: NE | Z26: NE | AA26: NE | AB26: NE | AC26: NE
A27: 04320000 | B27: Cape Cod Lighthouse Charter (District) | C27: 432 | D27: 20.43 | E27: 31 | F27: 21.5 | G27: 28 | H27: 21.96 | I27: 29 | J27: 21.78 | K27: 27 | L27: 18.54 | M27: 27 | N27: 17.99 | O27: 24 | P27: 18.41 | Q27: 29 | R27: 18.12 | S27: 26 | T27: 18.18 | U27: 28 | V27: 18.14 | W27: 26 | X27: 17.86 | Y27: 26 | Z27: 18.99 | AA27: 26 | AB27: 19.45 | AC27: 26
A28: 04350000 | B28: Innovation Academy Charter (District) | C28: 435 | D28: 78.15 | E28: 87 | F28: 72.555 | G28: 80 | H28: 70.253 | I28: 79 | J28: 67.131 | K28: 73 | L28: 58.822 | M28: 66 | N28: 62.313 | O28: 67 | P28: 58.345 | Q28: 65 | R28: 59.636 | S28: 65 | T28: 56.005 | U28: 63 | V28: 56.945 | W28: 61 | X28: 55.085 | Y28: 64 | Z28: 56.181 | AA28: 62 | AB28: 42.58 | AC28: 45
A29: 04360000 | B29: Community Charter School of Cambridge (District) | C29: 436 | D29: 30.51 | E29: 48 | F29: 33.46 | G29: 50 | H29: 32.18 | I29: 41 | J29: 30.939 | K29: 39 | L29: 34.386 | M29: 42 | N29: 38.17 | O29: 42 | P29: 35.39 | Q29: 38 | R29: 34.41 | S29: 37 | T29: 30.96 | U29: 34 | V29: 31.185 | W29: 33 | X29: 30.385 | Y29: 37 | Z29: 28.137 | AA29: 37 | AB29: 24.63 | AC29: 28
A30: 04370000 | B30: City on a Hill Charter Public School Circuit Street (District) | C30: 437 | D30: 24.52 | E30: 33 | F30: 25.4 | G30: 34 | H30: 22.447 | I30: 29 | J30: 26.004 | K30: 33 | L30: 23.8 | M30: 31 | N30: 23.8 | O30: 32 | P30: 24.77 | Q30: 32 | R30: 24.9 | S30: 32 | T30: 22 | U30: 30 | V30: 21.9 | W30: 30 | X30: 16.4 | Y30: 25 | Z30: 19 | AA30: 27 | AB30: 20.2 | AC30: 27
A31: 04380000 | B31: Codman Academy Charter Public (District) | C31: 438 | D31: 29.42 | E31: 33 | F31: 30.35 | G31: 33 | H31: 20.75 | I31: 23 | J31: 25.903 | K31: 28 | L31: 17.41 | M31: 19 | N31: 18.71 | O31: 20 | P31: 14.05 | Q31: 19 | R31: 14.98 | S31: 18 | T31: 14.61 | U31: 16 | V31: 15.26 | W31: 16 | X31: 14.07 | Y31: 17 | Z31: 14.2 | AA31: 18 | AB31: 15.1 | AC31: 18
A32: 04390000 | B32: Conservatory Lab Charter (District) | C32: 439 | D32: 13.99 | E32: 14 | F32: 26.505 | G32: 27 | H32: 18 | I32: 18 | J32: 18 | K32: 18 | L32: 14.25 | M32: 15 | N32: 14 | O32: 14 | P32: 8 | Q32: 8 | R32: 8 | S32: 8 | T32: 9 | U32: 9 | V32: 9 | W32: 9 | X32: 10 | Y32: 10 | Z32: 10 | AA32: 10 | AB32: 14.4 | AC32: 16
A33: 04400000 | B33: Community Day Charter Public School - Prospect (District) | C33: 440 | D33: 42 | E33: 42 | F33: 42 | G33: 42 | H33: 43.3 | I33: 48 | J33: 43.8 | K33: 49 | L33: 33.83 | M33: 36 | N33: 33.83 | O33: 36 | P33: 35.75 | Q33: 37 | R33: 35.75 | S33: 37 | T33: 38.125 | U33: 39 | V33: 38.125 | W33: 39 | X33: 34.462 | Y33: 37 | Z33: 34.462 | AA33: 37 | AB33: 34.617 | AC33: 37
A34: 04410000 | B34: Sabis International Charter (District) | C34: 441 | D34: 65.98 | E34: 96 | F34: 64.16 | G34: 94 | H34: 65.45 | I34: 96 | J34: 64.59 | K34: 95 | L34: 65.45 | M34: 96 | N34: 63.23 | O34: 94 | P34: 65.79 | Q34: 96 | R34: 64.54 | S34: 94 | T34: 66.32 | U34: 97 | V34: 65.3 | W34: 96 | X34: 63.23 | Y34: 95 | Z34: 63.93 | AA34: 97 | AB34: 70.1 | AC34: 93
A35: 04440000 | B35: Neighborhood House Charter (District) | C35: 444 | D35: 36.5 | E35: 38 | F35: 37.504 | G35: 39 | H35: 34.334 | I35: 36 | J35: 34.334 | K35: 36 | L35: 34.64 | M35: 35 | N35: 32.35 | O35: 33 | P35: 34.979 | Q35: 35 | R35: 34.979 | S35: 35 | T35: 38.554 | U35: 39 | V35: 36.69 | W35: 37 | X35: 42 | Y35: 42 | Z35: 41.8 | AA35: 42 | AB35: 40.8 | AC35: 41
A36: 04450000 | B36: Abby Kelley Foster Charter Public (District) | C36: 445 | D36: 115.26 | E36: 118 | F36: 118.053 | G36: 120 | H36: 116.544 | I36: 118 | J36: 117.043 | K36: 119 | L36: 116.588 | M36: 118 | N36: 111.805 | O36: 114 | P36: 113.555 | Q36: 116 | R36: 116.58 | S36: 120 | T36: 113.06 | U36: 113 | V36: 111.898 | W36: 114 | X36: 112.98 | Y36: 114 | Z36: 111.701 | AA36: 115 | AB36: 101.55 | AC36: 103
A37: 04430000 | B37: Brooke Charter School Mattapan (District) | C37: 443 | D37: Closed | E37: Closed | F37: 41 | G37: 41 | H37: 42.963 | I37: 43 | J37: 41.883 | K37: 42 | L37: 26 | M37: 26 | N37: 33 | O37: 33 | P37: 24.25 | Q37: 26 | R37: 24.25 | S37: 26 | T37: 16 | U37: 16 | V37: 16 | W37: 16 | X37: NE | Y37: NE | Z37: NE | AA37: NE | AB37: NE | AC37: NE
A38: 04460000 | B38: Foxborough Regional Charter (District) | C38: 446 | D38: 80.8 | E38: 90 | F38: 82.182 | G38: 93 | H38: 84.061 | I38: 92 | J38: 86.003 | K38: 91 | L38: 86.643 | M38: 91 | N38: 82.119 | O38: 91 | P38: 81.048 | Q38: 91 | R38: 78.242 | S38: 89 | T38: 85.326 | U38: 94 | V38: 84.8 | W38: 94 | X38: 79.269 | Y38: 89 | Z38: 83 | AA38: 91 | AB38: 77.4 | AC38: 77
A39: 04470000 | B39: Benjamin Franklin Classical Charter Public (District) | C39: 447 | D39: 29.73 | E39: 31 | F39: 27.201 | G39: 28 | H39: 23.144 | I39: 32 | J39: 25.109 | K39: 34 | L39: 33.007 | M39: 33 | N39: 32.994 | O39: 33 | P39: 31.001 | Q39: 31 | R39: 32.994 | S39: 33 | T39: 28.934 | U39: 30 | V39: 36.782 | W39: 40 | X39: 30.791 | Y39: 34 | Z39: 30.791 | AA39: 34 | AB39: 30.74 | AC39: 33
A40: 04490000 | B40: Boston Collegiate Charter (District) | C40: 449 | D40: 59.14 | E40: 62 | F40: 63.206 | G40: 64 | H40: 59.167 | I40: 63 | J40: 58.741 | K40: 64 | L40: 60.177 | M40: 62 | N40: 62.11 | O40: 64 | P40: 60.939 | Q40: 60 | R40: 61.147 | S40: 63 | T40: 54.159 | U40: 59 | V40: 52.584 | W40: 58 | X40: 44.555 | Y40: 56 | Z40: 44.405 | AA40: 55 | AB40: 39.018 | AC40: 49
A41: 04500000 | B41: Hilltown Cooperative Charter Public (District) | C41: 450 | D41: 20.06 | E41: 23 | F41: 20.055 | G41: 23 | H41: 15.989 | I41: 19 | J41: 16.989 | K41: 20 | L41: 14.442 | M41: 18 | N41: 14.692 | O41: 19 | P41: 14.692 | Q41: 18 | R41: 14.692 | S41: 18 | T41: 14.391 | U41: 18 | V41: 14.391 | W41: 18 | X41: 13.69 | Y41: 15 | Z41: 13.69 | AA41: 15 | AB41: 13.69 | AC41: 15
A42: 04520000 | B42: Edward M. Kennedy Academy for Health Careers (Horace Mann Charter) (District) | C42: 452 | D42: 23.25 | E42: 26 | F42: 27.854 | G42: 30 | H42: 24.275 | I42: 27 | J42: 28.25 | K42: 31 | L42: 23.349 | M42: 29 | N42: 25.317 | O42: 30 | P42: 23.54 | Q42: 27 | R42: 23.54 | S42: 27 | T42: 20.1 | U42: 25 | V42: 19.7 | W42: 25 | X42: 20 | Y42: 24 | Z42: 20 | AA42: 24 | AB42: 18.9 | AC42: 22
A43: 04480000 | B43: Gloucester Community Arts Charter (District) | C43: 448 | D43: Closed | E43: Closed | F43: Closed | G43: Closed | H43: Closed | I43: Closed | J43: Closed | K43: Closed | L43: Closed | M43: Closed | N43: Closed | O43: Closed | P43: Closed | Q43: Closed | R43: 12.004 | S43: 12 | T43: 13.207 | U43: 15 | V43: 14.228 | W43: 18 | X43: 7.8 | Y43: 8 | Z43: 8.8 | AA43: 9 | AB43: NE | AC43: NE
A44: 04530000 | B44: Holyoke Community Charter (District) | C44: 453 | D44: 53.68 | E44: 54 | F44: 52.03 | G44: 52 | H44: 50.948 | I44: 51 | J44: 50.938 | K44: 51 | L44: 53.118 | M44: 54 | N44: 53.618 | O44: 54 | P44: 51.115 | Q44: 51 | R44: 50.145 | S44: 50 | T44: 47.916 | U44: 48 | V44: 48.906 | W44: 49 | X44: 48.048 | Y44: 48 | Z44: 46.059 | AA44: 46 | AB44: 45 | AC44: 45
A45: 04540000 | B45: Lawrence Family Development Charter (District) | C45: 454 | D45: 57.47 | E45: 58 | F45: 56.466 | G45: 57 | H45: 56 | I45: 56 | J45: 56 | K45: 56 | L45: 53 | M45: 53 | N45: 54 | O45: 54 | P45: 54 | Q45: 54 | R45: 54 | S45: 54 | T45: 52.956 | U45: 53 | V45: 51.956 | W45: 52 | X45: 49 | Y45: 49 | Z45: 50 | AA45: 50 | AB45: 51 | AC45: 51
A46: 04550000 | B46: Hill View Montessori Charter Public (District) | C46: 455 | D46: 17.75 | E46: 22 | F46: 19.553 | G46: 24 | H46: 21.576 | I46: 24 | J46: 22.676 | K46: 23 | L46: 20.653 | M46: 24 | N46: 20.153 | O46: 22 | P46: 22.352 | Q46: 23 | R46: 21.477 | S46: 23 | T46: 27.478 | U46: 30 | V46: 27.828 | W46: 29 | X46: 24.201 | Y46: 27 | Z46: 26.625 | AA46: 29 | AB46: 23.725 | AC46: 25
A47: 04510000 | B47: Robert M. Hughes Academy Charter Public (District) | C47: 451 | D47: Closed | E47: Closed | F47: Closed | G47: Closed | H47: Closed | I47: Closed | J47: Closed | K47: Closed | L47: Closed | M47: Closed | N47: Closed | O47: Closed | P47: Closed | Q47: Closed | R47: Closed | S47: Closed | T47: Closed | U47: Closed | V47: Closed | W47: Closed | X47: Closed | Y47: Closed | Z47: Closed | AA47: Closed | AB47: 8.48 | AC47: 10
A48: 04560000 | B48: Lowell Community Charter Public (District) | C48: 456 | D48: 62.65 | E48: 63 | F48: 61.54 | G48: 62 | H48: 49.94 | I48: 50 | J48: 55.94 | K48: 56 | L48: 48.13 | M48: 48 | N48: 48.09 | O48: 48 | P48: 45.63 | Q48: 47 | R48: 47.46 | S48: 49 | T48: 47.69 | U48: 48 | V48: 45.94 | W48: 46 | X48: 61.293 | Y48: 62 | Z48: 57.857 | AA48: 59 | AB48: 79 | AC48: 79
A49: 04580000 | B49: Lowell Middlesex Academy Charter (District) | C49: 458 | D49: 11 | E49: 12 | F49: 9.668 | G49: 10 | H49: 11.77 | I49: 13 | J49: 11.905 | K49: 14 | L49: 11.911 | M49: 14 | N49: 12.51 | O49: 13 | P49: 13.713 | Q49: 15 | R49: 12.977 | S49: 15 | T49: 10.4 | U49: 14 | V49: 11.4 | W49: 14 | X49: 12.8 | Y49: 15 | Z49: 12 | AA49: 15 | AB49: 9.6 | AC49: 11
A50: 04630000 | B50: KIPP Academy Boston Charter School (District) | C50: 463 | D50: 38.5 | E50: 39 | F50: 38.25 | G50: 39 | H50: 26.979 | I50: 27 | J50: 28.977 | K50: 29 | L50: 12.988 | M50: 13 | N50: 14.987 | O50: 15 | P50: 6.5 | Q50: 8 | R50: 8.194 | S50: 10 | T50: NE | U50: NE | V50: NE | W50: NE | X50: NE | Y50: NE | Z50: NE | AA50: NE | AB50: NE | AC50: NE
A51: 04640000 | B51: Marblehead Community Charter Public (District) | C51: 464 | D51: 20.65 | E51: 22 | F51: 19.25 | G51: 21 | H51: 20.8 | I51: 22 | J51: 20.4 | K51: 22 | L51: 21.35 | M51: 24 | N51: 22.15 | O51: 25 | P51: 19.75 | Q51: 22 | R51: 19.55 | S51: 22 | T51: 20.645 | U51: 23 | V51: 20.645 | W51: 23 | X51: 21.9 | Y51: 25 | Z51: 21.65 | AA51: 25 | AB51: 20.5 | AC51: 23
A52: 04660000 | B52: Martha's Vineyard Charter (District) | C52: 466 | D52: 16.93 | E52: 22 | F52: 18.2 | G52: 22 | H52: 18.07 | I52: 22 | J52: 18.04 | K52: 21 | L52: 17.32 | M52: 21 | N52: 19.21 | O52: 23 | P52: 17.36 | Q52: 21 | R52: 17.95 | S52: 22 | T52: 19.46 | U52: 22 | V52: 19.46 | W52: 22 | X52: 19.38 | Y52: 22 | Z52: 19.748 | AA52: 22 | AB52: 18.764 | AC52: 20
A53: 04570000 | B53: Brooke Charter School East Boston (District) | C53: 457 | D53: Closed | E53: Closed | F53: 40 | G53: 40 | H53: 33 | I53: 33 | J53: 33 | K53: 33 | L53: 24.5 | M53: 25 | N53: 24.5 | O53: 25 | P53: 15.5 | Q53: 16 | R53: 15.5 | S53: 16 | T53: NE | U53: NE | V53: NE | W53: NE | X53: NE | Y53: NE | Z53: NE | AA53: NE | AB53: NE | AC53: NE
A54: 04690000 | B54: MATCH Charter Public School (District) | C54: 469 | D54: 67.31 | E54: 74 | F54: 69.504 | G54: 76 | H54: 53.29 | I54: 61 | J54: 57.3 | K54: 63 | L54: 31.04 | M54: 33 | N54: 33.04 | O54: 35 | P54: 30.2 | Q54: 32 | R54: 30.2 | S54: 32 | T54: 27.5 | U54: 28 | V54: 27 | W54: 27 | X54: 24.5 | Y54: 25 | Z54: 24.5 | AA54: 25 | AB54: 23.24 | AC54: 26
A55: 04700000 | B55: Mystic Valley Regional Charter (District) | C55: 470 | D55: 106.74 | E55: 113 | F55: 102.677 | G55: 110 | H55: 104.606 | I55: 111 | J55: 106.903 | K55: 113 | L55: 103.615 | M55: 110 | N55: 104.815 | O55: 112 | P55: 103.853 | Q55: 108 | R55: 102.387 | S55: 108 | T55: 98.055 | U55: 100 | V55: 93.347 | W55: 99 | X55: 89.115 | Y55: 91 | Z55: 88.368 | AA55: 92 | AB55: 94.99 | AC55: 95
A56: 04590000 | B56: Excel Academy Charter School - Boston II | C56: 459 | D56: Closed | E56: Closed | F56: Closed | G56: Closed | H56: Closed | I56: Closed | J56: Closed | K56: Closed | L56: 8.625 | M56: 14 | N56: 11.099 | O56: 15 | P56: 4.17 | Q56: 6 | R56: 5.298 | S56: 6 | T56: NE | U56: NE | V56: NE | W56: NE | X56: NE | Y56: NE | Z56: NE | AA56: NE | AB56: NE | AC56: NE
A57: 04740000 | B57: Sizer School: A North Central Charter Essential (District) | C57: 474 | D57: 37.54 | E57: 48 | F57: 35.821 | G57: 44 | H57: 36.35 | I57: 44 | J57: 39.029 | K57: 47 | L57: 34.101 | M57: 43 | N57: 35.389 | O57: 43 | P57: 34.836 | Q57: 42 | R57: 35.142 | S57: 40 | T57: 35.077 | U57: 45 | V57: 34.589 | W57: 43 | X57: 34.325 | Y57: 41 | Z57: 33.917 | AA57: 39 | AB57: 34.125 | AC57: 37
A58: 04610000 | B58: Excel Academy Charter School - Chelsea | C58: 461 | D58: Closed | E58: Closed | F58: Closed | G58: Closed | H58: Closed | I58: Closed | J58: Closed | K58: Closed | L58: 12.734 | M58: 17 | N58: 14.896 | O58: 17 | P58: 7.806 | Q58: 12 | R58: 10.002 | S58: 12 | T58: 5.104 | U58: 6 | V58: 5.802 | W58: 6 | X58: NE | Y58: NE | Z58: NE | AA58: NE | AB58: NE | AC58: NE
A59: 04620000 | B59: Grove Hall Preparatory Charter School (District) | C59: 462 | D59: Closed | E59: Closed | F59: Closed | G59: Closed | H59: Closed | I59: Closed | J59: Closed | K59: Closed | L59: Closed | M59: Closed | N59: Closed | O59: Closed | P59: Closed | Q59: Closed | R59: Closed | S59: Closed | T59: 7.94 | U59: 8 | V59: 7.99 | W59: 8 | X59: NE | Y59: NE | Z59: NE | AA59: NE | AB59: NE | AC59: NE
A60: 04770000 | B60: Silver Hill Horace Mann Charter (District) | C60: 477 | D60: 36.44 | E60: 37 | F60: 35.938 | G60: 37 | H60: 36.943 | I60: 37 | J60: 36.993 | K60: 37 | L60: 38.513 | M60: 38 | N60: 38.057 | O60: 38 | P60: 35.735 | Q60: 36 | R60: 35.921 | S60: 36 | T60: 32.193 | U60: 35 | V60: 35.966 | W60: 36 | X60: 34.966 | Y60: 35 | Z60: 34.966 | AA60: 35 | AB60: 38.75 | AC60: 39
A61: 04780000 | B61: Francis W. Parker Charter Essential (District) | C61: 478 | D61: 37.56 | E61: 42 | F61: 44.81 | G61: 49 | H61: 33.95 | I61: 38 | J61: 45.75 | K61: 50 | L61: 47.411 | M61: 51 | N61: 47.242 | O61: 52 | P61: 45.197 | Q61: 50 | R61: 45.096 | S61: 49 | T61: 45.46 | U61: 50 | V61: 45.45 | W61: 50 | X61: 44.775 | Y61: 48 | Z61: 44.775 | AA61: 48 | AB61: 45.025 | AC61: 51
A62: 04790000 | B62: Pioneer Valley Performing Arts Charter Public (District) | C62: 479 | D62: 37.28 | E62: 43 | F62: 39.2 | G62: 45 | H62: 35.696 | I62: 45 | J62: 39.52 | K62: 50 | L62: 35.396 | M62: 43 | N62: 40.83 | O62: 54 | P62: 42.37 | Q62: 56 | R62: 41.86 | S62: 59 | T62: 43.44 | U62: 55 | V62: 39.829 | W62: 54 | X62: 39.74 | Y62: 60 | Z62: 39 | AA62: 59 | AB62: 35.85 | AC62: 59
A63: 04650000 | B63: MATCH Community Day Charter Public School | C63: 465 | D63: Closed | E63: Closed | F63: Closed | G63: Closed | H63: Closed | I63: Closed | J63: Closed | K63: Closed | L63: 20.4 | M63: 21 | N63: 18.4 | O63: 19 | P63: 12.5 | Q63: 13 | R63: 12.5 | S63: 13 | T63: 8 | U63: 8 | V63: 8 | W63: 8 | X63: NE | Y63: NE | Z63: NE | AA63: NE | AB63: NE | AC63: NE
A64: 04800000 | B64: UP Academy Charter School of Boston (District) | C64: 480 | D64: 38.37 | E64: 40 | F64: 41.4 | G64: 42 | H64: 42.98 | I64: 44 | J64: 45.5 | K64: 47 | L64: 27.01 | M64: 29 | N64: 45.1 | O64: 46 | P64: 45.78 | Q64: 48 | R64: 47.37 | S64: 48 | T64: 41.16 | U64: 43 | V64: 42.5 | W64: 43 | X64: NE | Y64: NE | Z64: NE | AA64: NE | AB64: NE | AC64: NE
A65: 04670000 | B65: New Liberty Charter School of Salem (District) | C65: 467 | D65: Closed | E65: Closed | F65: 4.49 | G65: 6 | H65: 5.6 | I65: 7 | J65: 5.43 | K65: 6 | L65: 4.6 | M65: 6 | N65: 4.634 | O65: 6 | P65: 4.3 | Q65: 6 | R65: 4.82 | S65: 6 | T65: 5.52 | U65: 7 | V65: 5.565 | W65: 8 | X65: NE | Y65: NE | Z65: NE | AA65: NE | AB65: NE | AC65: NE
A66: 04810000 | B66: Boston Renaissance Charter Public (District) | C66: 481 | D66: 77 | E66: 77 | F66: 74.02 | G66: 76 | H66: 77 | I66: 77 | J66: 76 | K66: 76 | L66: 73 | M66: 73 | N66: 72.67 | O66: 74 | P66: 70.05 | Q66: 70 | R66: 70.82 | S66: 71 | T66: 78.77 | U66: 79 | V66: 76.86 | W66: 77 | X66: 93.68 | Y66: 94 | Z66: 93.8 | AA66: 94 | AB66: 95 | AC66: 96
